{"text_format":"1","workbook":"xlsx","n_sheets":11,"sheets":["Prompt","C100","C101","C200","C300","C335","C400","C500","C700","C800","Enviar"],"not_rendered":{"charts":0,"images":6,"macros":1,"external_links":0,"defined_names":5,"comments":1,"pivot_tables":0},"unopened":[],"bounds":{"document_bytes":16777216,"sheet_cells":100000,"rows_first":2000,"rows_last":500,"rows_between":2000,"halvings":0,"cell_chars":16384,"cell_head_chars":4096},"cells_cut":0,"cells_raw":0,"read":"whole","date_system":"1900"}

{"sheet":"Prompt","index":0,"n_rows":79,"n_cols":4,"rows_kept":79,"cut":false,"hidden":true,"merged":[[1,3,2,6],[4,1,6,8],[43,1,44,8],[78,1,79,8],[9,1,10,8]]}
[]
[null,null,null,"¡ATENCIÓN!"]
[]
[]
[null,"Para hacer uso de las funcionalidades de esta Cédula Electrónica debe habilitar macros"]
[]
[]
[]
[]
[null,"Si utiliza Excel 2013 siga el siguiente procedimiento:"]
[]
[]
[]
[]
[]
[]
[]
[]
[]
[]
[]
[]
[]
[]
[]
[]
[]
[]
[]
[]
[]
[]
[]
[]
[]
[]
[]
[]
[]
[]
[]
[]
[]
[null,"Si utiliza Excel 2007 siga el siguiente procedimiento:"]
[]
[]
[]
[]
[]
[]
[]
[]
[]
[]
[]
[]
[]
[]
[]
[]
[]
[]
[]
[]
[]
[]
[]
[]
[]
[]
[]
[]
[]
[]
[]
[]
[]
[]
[null,"Si utiliza Excel 2000, 2002, 2003 siga el siguiente procedimiento:"]

{"sheet":"C100","index":1,"n_rows":474,"n_cols":23,"rows_kept":474,"cut":false,"hidden":false,"merged":[[2,22,4,23],[1,22,1,23],[14,7,14,8],[14,19,14,22],[14,11,14,16],[12,7,12,8],[472,16,472,17],[436,19,436,20],[437,19,437,20],[443,15,445,17],[443,19,444,20],[443,21,444,22],[455,16,455,18],[462,15,464,17],[462,18,463,19],[462,20,463,21],[353,18,353,22],[363,17,363,21],[184,19,184,20],[185,19,185,20],[200,19,200,22],[215,19,215,22],[228,6,228,11],[251,6,251,11],[252,17,252,21],[359,6,359,9],[360,6,360,9],[293,17,293,21],[334,11,335,11],[336,11,337,11],[343,11,344,11],[324,4,324,10],[325,11,326,11],[327,11,328,11],[329,11,330,11],[331,11,332,11],[338,11,339,11],[1,7,1,19],[2,7,2,19],[3,7,3,19],[170,8,170,9],[170,10,170,11],[171,8,171,9],[171,10,171,11],[5,2,5,23],[167,3,168,6],[9,2,9,23],[31,2,31,23],[167,7,168,7],[167,8,168,9],[167,10,169,11],[169,8,169,9],[37,10,37,11],[106,4,106,10],[12,14,12,22],[40,10,40,11],[36,15,37,17],[36,21,37,21],[37,19,37,20],[38,19,38,20],[39,19,39,20],[372,6,372,11],[383,6,383,10],[376,19,376,22],[395,6,395,10],[434,6,434,10],[455,8,455,10],[456,8,456,10],[471,6,471,10],[416,19,416,22],[435,19,435,20],[430,19,430,22],[40,19,40,20],[41,19,41,20],[43,4,45,5],[43,7,43,10],[44,7,44,8],[44,9,44,10],[46,17,46,19],[52,2,52,12],[73,3,73,5],[82,3,82,5],[100,6,100,10],[118,6,118,10],[90,17,90,22],[105,19,105,20],[112,14,112,17],[112,21,112,22],[113,21,113,22],[114,21,114,22],[115,21,115,22],[116,21,116,22],[117,21,117,22],[118,16,118,18],[118,21,118,22],[133,17,133,22],[134,8,134,9],[135,8,135,9],[136,8,136,11],[139,14,139,17],[154,6,154,11],[124,3,124,6],[124,10,124,11],[125,10,125,11],[126,10,126,11],[127,10,127,11],[128,10,128,11],[132,3,133,5],[132,8,132,9],[132,10,132,11],[133,8,133,9]]}
[]
[null,null,null,null,null,null,null,"CENSO EDUCATIVO 2023",null,null,null,null,null,null,null,null,null,null,null,null,null,null,"CÉDULA"]
[null,null,null,null,null,null,null,"EDUCACIÓN BÁSICA REGULAR",null,null,null,null,null,null,null,null,null,null,null,null,null,null,"1A"]
[null,null,null,null,null,null,null,"INICIAL ESCOLARIZADA"]
[null,null,"Versión :","3 - (32 y 64 bits)"]
[null,null,"INSTRUCCIONES DEL FORMATO ELECTRÓNICO "]
[]
[]
[]
[null,null,"IDENTIFICACIÓN DEL SERVICIO EDUCATIVO"]
[]
[]
[null,null,null,"1. CÓDIGO MODULAR:",null,null,null,null,null,null,null,null,null,"3. NOMBRE DEL SERVICIO:  "]
[]
[null,null,null,"2. CÓDIGO DE LOCAL EDUCATIVO:",null,null,null,null,null,null,"4. DISTRITO:  ",null,null,null,null,null,null,null,"LOCALIDAD:  "]
[]
[]
[null,null,"5. NIVEL EDUCATIVO",null,null,null,null,null,null," (Marcar con \"X\" según corresponda)",null,null,null,null,null,null,null,"6. EL SERVICIO/NIVEL EDUCATIVO"]
[null,null,null,null,null,null,null,null,null,null,null,null,null,null,null,null,null,"¿PROCEDE DE UNA CONVERSIÓN (PRONOEI)?"]
[null,null,null,null,"A1 - Cuna  "]
[null,null,null,null,"a. ¿Cuenta con estudiantes del ciclo II (3 a 5 años o más) ?      ",null,null,null,null,null,null,"Si  ",null,null,"No",null,null,"Si  ",null,null,null,null,"¿Desde qué año?"]
[]
[null,null,null,null,"A2 - Jardín   "]
[null,null,null,null,"b. ¿Cuenta con estudiantes del ciclo I (0 a 2 años)?",null,null,null,null,null,null,"Si  ",null,null,"No",null,null,"No  "]
[]
[null,null,null,null,"A3 - Cuna y Jardín  "]
[]
["GESTIÓN"]
[{"$f":"CONCATENATE(J29,O29,T29)","v":""},null,"Esta Institución Educativa es de Gestión : ",null,null,null,null,null,null,""," 1 - Pública de gestión directa",null,null,null,""," 2 - Pública de gestión privada",null,null,null,null," 3 - Privada"]
[]
[]
[null,null,"100. CARACTERÍSTICAS DEL SERVICIO EDUCATIVO  (Para II.EE. Públicas y Privadas)"]
[]
["Meses",null,"A. CARACTERÍSTICA DE LA ENSEÑANZA"]
["01: Enero",null,"101.A  CON RESPECTO A LAS CLASES:",null,null,null,null,null,null,null,null,null,null,"103.A. ¿CUÁNTO ES LA DURACIÓN EN MINUTOS?"]
["02: Febrero"]
["03: Marzo",null,null,"A. ¿CUÁNDO INICIARON LAS CLASES?",null,null,null,null,"Día",null,"Mes",null,null,null,null,"Espacio educativo para interacción social",null,null,"¿Tiene?","¿ Dentro Horario?",null,"Tiempo en Minutos","SI"]
["04: Abril",null,null," (Primer día en que asistieron los estudiantes)",null,null,null,null,null,"-",null,null,null,null,null,null,null,null,"Sí - No","Sí - No",null,null,"NO"]
["05: Mayo",null,null,null,null,null,null,null,null,null,null,null,null,null,1,"De los recreos",null,""]
["06: Junio",null,null,"B. ¿CUÁNDO TERMINARÁN LAS CLASES?",null,null,null,null,"Día",null,"Mes",null,null,null,2,"Del desayuno escolar",null,""]
["07: Julio",null,null,"(Último día en que asistirán los estudiantes)",null,null,null,null,null,"-",null,null,null,null,3,"Del almuerzo escolar",null,""]
["08: Agosto",null,null,null,null,null,null,null,null,null,null,null,null,null,4,"De la lonchera"]
["09: Septiembre",null,"102.A  HORARIO DE CLASES DE LOS ESTUDIANTES:",null,null,null,null,null,null,null,null,null,null,null,null,null,null,"",{"$f":"COUNTIF(S39:S42,\"SI\")+COUNTIF(S39:S42,\"NO\")","v":0}]
["10: Octubre",null,null,null,"TURNO",null,null,"Horario de clases",null,null,null,null,null,"104.A. ¿ESTE SERVICIO/NIVEL EDUCATIVO BRINDA EL SERVICIO DE ALIMENTACIÓN"]
["11: Noviembre",null,null,null,null,null,null,"Inicio",null,"Término",null,null,null,null,"QUIOSCO Y/O COMEDOR?"]
["12: Diciembre",null,null,null,null,null,{"$f":"SUM(G47:G49)","v":0},"Hora","Minutos","Hora","Minutos",null,null,null,null,null,null,"Precise si cuenta con los:"]
["01: Enero",null,null,null,1,"Mañana",{"$f":"COUNT(H47:K47)","v":0},null,null,null,null,{"$f":"IF(OR(H47=\"\",I47=\"\",J47=\"\",K47=\"\"),1,0)","v":1},null,null,"Sí","X",null,"Servicios",null,null,null,"Sí - No"]
["02: Febrero",null,null,null,2,"Tarde",{"$f":"COUNT(H48:K48)","v":0},null,null,null,null,{"$f":"IF(OR(H48=\"\",I48=\"\",J48=\"\",K48=\"\"),1,0)","v":1},null,null,null,null,null,1,"Agua",null,""]
[null,null,null,null,3,"Discontinuo",{"$f":"COUNT(H49:K49)","v":0},null,null,null,null,{"$f":"IF(OR(H49=\"\",I49=\"\",J49=\"\",K49=\"\"),1,0)","v":1},null,null,null,null,null,2,"Desague",null,""]
[null,null,null,null,null,null,null,null,null,null,null,null,null,null,"No  ","",null,3,"Electricidad",null,""]
["SI / NO",null,null,null,null,null,null,null,null,null,null,null,null,null,null,null,null,null,null,null,null,{"$f":"COUNTIF(V48:V50,\"SI\")+COUNTIF(V48:V50,\"NO\")","v":0}]
["SI"]
["NO",null,"105.A  EN EL PRESENTE AÑO 2023, ¿BAJO QUÉ MODALIDAD SE REALIZAN LAS CLASES EN ESTE ",null,null,null,null,null,null,null,null,null,null,"112.A. ¿REALIZÓ LA RESERVA COMO MÍNIMO DE (02) VACANTES POR CADA AULA PARA ESTUDIANTES"]
[null,null,null,"SERVICIO/NIVEL EDUCATIVO?",null,null,"Marque con una “X”, solo una opción",null,null,null,null,null,null,null,"CON NECESIDADES EDUCATIVAS ESPECIALES ASOCIADA A DISCAPACIDAD LEVE O MODERADA?"]
[]
[null,null,null,null," Presencial",null,null," Semi presencial",null,null," Virtual",null,null,null,"Sí",null,"No  "]
[]
["FRECUENCIA",null,"106.A. ¿CUENTA CON ESPACIO FÍSICO PARA IMPLEMENTAR MÁS AULAS, CONSIDERANDO",null,null,null,null,null,null,null,null,null,null,"113.A  ¿HA RECIBIDO MATERIALES FORMATIVOS O INFORMATIVOS , FÍSICOS O DIGITALES"]
["1: Semanal",null,null,"LAS QUE TIENE ACTUALMENTE?",null,null,null,null,null,null,null,null,null,null,"SOBRE LOS INSTRUMENTOS DE GESTIÓN?"]
["2: Quincenal"]
["3: Mensual",null,null,"Sí",null,null," No  ",null,null,null,null,null,null,null,"Marque con una \"X\", una o más ocpiones"]
["4: Bimensual",null,null,null,null,null,null,null,null,null,null,null,null,null,null,"He recibido materiales y/o formación a través de la UGEL."]
["5: Trimestral",null,"107.A. ¿CUENTA CON LOS SIGUIENTES ESPACIOS EDUCATIVOS?",null,null,null,null,null,null,null,null,null,null,null,null,"He recibido materiales y/o formación a través de la DRE."]
["6: Semestral",null,null,"Marque con una “X”, una o más opciones",null,null,null,null,null,null,null,null,null,null,null,"He recibido materiales y/o formación a través de los programas formativos …"]
["7: No se reunen",null,null,null,null,null,null,null,null,null,null,null,null,null,null,"He recibido materiales y/o formación a través de páginas web oficiales del Minedu…"]
[null,null,null,null,null,"Espacios internos",null,null,null,null,null,null,null,null,null,"He recibido materiales y/o formación a través de mis colegas o redes profesionales"]
[null,null,null,null,null,"Espacios intermedios",null,null,null,null,null,null,null,null,null,"No he recibido materiales y/o información sobre los Instrumentos de Gestión"]
[null,null,null,null,null,"Espacios externos"]
[null,null,null,null,null,"Espacios virtuales",null,null,null,null,null,null,null,"114.A  ¿SE HA ELABORADO EL PLAN ANUAL DE TRABAJO (PAT) 2023?"]
[]
[null,null,"108.A  EN ESTE SERVICIO/NIVEL EDUCATIVO, ¿CUANTAS VACANTES POR GRADO Y ",null,null,null,null,null,null,null,null,null,null,null,"Sí",null," No  "]
[null,null,null,"TURNO OFRECIÓ PARA EL PRESENTE PERIODO LECTIVO?"]
[null,null,null,null,null,null,null,null,null,null,null,null,null,null,null,null,"¿Han sido incorporadas las actividades anuales del plan TOECE?"]
[null,null,null,"EDAD",null,null,0,1,2,3,4,5,null,null,null,null,"Sí  ",null,null,"No"]
[null,null,null,"Turno mañana",null,null,null,null,null,null,null,null,{"$f":"SUM(G75:L75)","v":0}]
[null,null,null,null,null,null,null,null,null,null,null,null,null,"115.A  EL SERVICIO/NIVEL EDUCATIVO, ¿CUENTA CON UN PLAN APROBADO DE GESTIÓN"]
[null,null,null,"Turno tarde",null,null,null,null,null,null,null,null,3,null,"DE RIESGO DE DESASTRES QUE CONTEMPLE LA FASE DE SOPORTE SOCIOEMOCIONAL,"]
[null,null,null,null,null,null,null,null,null,null,null,null,null,null,"FASE DE ACTIVIDADES LÚDICAS Y FASE DE APLICACIÓN DEL CURRÍCULO?"]
[]
[null,null,"109.A  EN ESTE SERVICIO/NIVEL EDUCATIVO, ¿CUANTOS POSTULANTES POR GRADO",null,null,null,null,null,null,null,null,null,null,null,"Sí",null," No  "]
[null,null,null,"Y TURNO SE PRESENTARON PARA EL PRESENTE PERIODO LECTIVO?"]
[null,null,null,null,null,null,null,null,null,null,null,null,null,"116.A  EN LOS ÚLTIMOS TRES MESES, ¿SE COORDINÓ U OFRECIÓ ALGÚN PROGRAMA O"]
[null,null,null,"EDAD",null,null,0,1,2,3,4,5,null,null,"SERVICIO, COMO?:"]
[null,null,null,"Turno mañana",null,null,null,null,null,null,null,null,{"$f":"SUM(G84:L84)","v":0},null,"Marque con una “X”, una o más opciones"]
[]
[null,null,null,"Turno tarde",null,null,null,null,null,null,null,null,{"$f":"SUM(G86:L86)","v":0},null,null,"Programa Qali Warma"]
[null,null,null,null,null,null,null,null,null,null,null,null,null,null,null,"Campaña de vacunación"]
[null,null,"110.A. EN EL PROCESO DE MATRÍCULA DEL PERIODO 2023, LOS PADRES DE FAMILIA, CUIDADORES(AS)",null,null,null,null,null,null,null,null,null,null,null,null,"Control de crecimiento y desarrollo"]
[null,null,null,"O APODERADOS(AS) QUE SOLICITARON UNA O MÁS VACANTES EN ESTE SERVICIO/NIVEL",null,null,null,null,null,null,null,null,null,null,null,"Servicio de Apoyo y Asesoramiento a las Necesidades Educativas Especiales (SAANEE)"]
[null,null,null,"EDUCATIVO, ¿LOGRARON OBTENER EL TOTAL DE VACANTES SOLICITADAS?",null,null,null,null,null,null,null,null,null,null,null,"Servicio de Apoyo Educativo Virtual (SAEV)"]
[null,null,null,null,null,null,null,null,null,null,null,null,null,null,null,"Otro  -  especifique"]
[null,null,null,null,"Sí",null,"Pase a la pregunta 112.A",null,null,null,null,null,null,null,null,"Ninguno"]
[]
[null,null,null,null,"No",null,"¿Por qué no lograron una ó más vacante(s) ?",null,null,null,null,null,null,"117.A  EL SERVICIO/NIVEL EDUCATIVO,  ¿CUENTA CON UN PLAN APROBADO DE LUCHA CONTRA "]
[null,null,null,null,null,null,"Marque con un aspa “X” una opcion",null,null,null,null,null,null,null,"LA ANEMIA?"]
[]
[null,null,null,null,null,null,null,null,null,null,null,null,null,null,"Sí",null,"No  "]
[null,null,null,null,null,"No hay capacidad para recibirlos"]
[null,null,null,null,null,"Hay capacidad, pero existen aulas con mucho riesgo",null,null,null,null,null,null,null,null,null,null,"¿Está incorporado en los documentos de gestión?"]
[null,null,null,null,null,"Prefiero tener una carga docente baja, para un mejor aprendizaje"]
[null,null,null,null,null,"Otro",null,null,null,null,null,null,null,null,null,null,"Sí  ",null,null,"No  "]
[]
[null,null,"111.A. ¿QUÉ CRITERIOS DE PRIORIZACIÓN TUVIERON EN CUENTA PARA LA MATRÍCULA DE LOS",null,null,null,null,null,null,null,null,null,null,"118.A  DURANTE EL 2022 ¿HA COORDINADO CON ALGUNA INSTITUCION PARA REALIZAR"]
[null,null,null,"ESTUDIANTES QUE SOLICITARON UNA VACANTE EN ESTE SERVICIO/NIVEL EDUCATIVO?",null,null,null,null,null,null,null,null,null,null,"ACTIVIDADADES RELACIONADA A LA LUCHA CONTRA LA ANEMIA?"]
[null,null,null,"Seleccione  \"SI\" o \"NO\", según corresponda por cada criterio"]
[null,null,null,null,null,null,null,null,null,null,null,null,null,null,"Sí",null,"No  ",null,null,"No sabe"]
[null,null,null,"NRO.","CRITERIOS",null,null,null,null,null,null," SI - NO"]
[null,null,{"$f":"COUNTIF(L108:L119,\"NO\")","v":0},1,"Cercanía del lugar de residencia del estudiante a la I.E.",null,null,null,null,null,null,null,null,null,null,null,null,null,"Pase a la pregunta 120.A"]
[null,null,null,2,"Cercanía del trabajo de los padres o apoderados del estudiante a la I.E."]
[null,null,null,3,"Hermanos (as) estudiando en la misma I.E.",null,null,null,null,null,null,null,null,"119.A  INDIQUE USTED, ¿CUÁLES DE LAS SIGUIENTES INSTITUCIONES ORGANIZARON "]
[null,null,null,4,"Hijos (as) de ex alumnos (as)",null,null,null,null,null,null,null,null,null,"ALGUNA ACTIVIDAD RELACIONADA A LA LUCHA CONTRA LA ANEMIA?"]
[null,null,null,5,"Niños (as) con Necesidades Educativas Especiales (NEE)"]
[null,null,null,6,"Estado civil de los padres",null,null,null,null,null,null,null,null,null,"Entidad que Organizó",null,null,null,{"$f":"COUNTIF(T114:U119,\"X\")","v":0},"SI","NO","Fecha (dd-mm-aaaa)"]
[null,null,null,7,"Record de rendimiento académico del estudiante",null,null,null,null,null,null,null,null,null,1,"Servicio / Nivel Educativo"]
[null,null,null,8,"Documentos que sustenten solvencia económica de los padres o apoderados",null,null,null,null,null,null,null,null,null,2,"UGEL/DRE"]
[null,null,null,9,"Orden de llegada de los documentos de inscripción del estudiante",null,null,null,null,null,null,null,null,null,3,"Establecimiento de salud"]
[null,null,null,10,"Que los estudiantes cuenten con documento de identidad",null,null,null,null,null,null,null,null,null,4,"Municipalidad"]
[null,null,{"$f":"COUNTIF(L108:L133,\"NO\")","v":0},11,"Que el estudiante haya rendido una evaluación de ingreso previa a matrícula",null,null,null,null,null,null,null,null,null,5,"Organización No Gubernamental (ONG)"]
[null,null,null,12,"Otros",null,null,null,null,null,null,null,null,null,6,"Otro"]
[null,null,null,null,null,null,null,null,null,null,null,{"$f":"COUNTIF(L108:L119,\"SI\") + COUNTIF(L108:L119,\"NO\")","v":0}]
[]
[null,null,"120.A  DURANTE EL AÑO 2022 ¿QUÉ ACTIVIDADES CON FAMILIAS SE HAN REALIZADO",null,null,null,null,null,null,null,null,null,null,"124.A  DURANTE EL AÑO 2022 Y HASTA LA FECHA DE LA APLICACIÓN DEL CENSO 2023,"]
[null,null,null,"DESDE ESTE SERVICIO/NIVEL EDUCATIVO?",null,null,null,null,null,null,null,null,null,null,"¿EN ESTE SERVICIO/NIVEL EDUCATIVO SE HAN REALIZADO ACCIONES PARA ATENDER"]
[null,null,null,null,null,null,null,null,null,null,null,null,null,null,"SITUACIONES DE INTERRUPCIÓN DE ESTUDIOS DE LOS ESTUDIANTES?"]
[null,null,null,"Entidad que Organizó",null,null,null,{"$f":"COUNTIF(I126:J129,\"X\")","v":0}," SI"," NO","Nro. de actividades"]
[null,null,null,1,"Jornadas con familias",null,null,null,null,null,null,null,null,null,"Sí",null,"No  "]
[null,null,null,2,"Encuentros familiares"]
[null,null,null,3,"Reuniones informativas con familias",null,null,null,null,null,null,null,null,null,null,null,"¿Qué acciones se realizaron?"]
[null,null,null,4,"Talleres con familias",null,null,null,null,null,null,null,null,null,null,"Marque con una “X”, una o más opciones"]
[null,null,null,null,null,null,null,null,null,null,null,null,null,null,null,null,"Seguimiento y visitas a estudiantes en riesgo de abandono"]
[null,null,"121.A  EL SERVICIO/NIVEL EDUCATIVO, ¿TIENE PRACTICANTES DE UNIVERSIDADES O INSTITUTOS ?",null,null,null,null,null,null,null,null,null,null,null,null,null,"Orientaciones a las familias sobre la continuidad en la IE"]
[null,null,null,null,null,null,null,null,null,null,null,null,null,null,null,null,"Flexibilización de la atención educativa brindada en la IE"]
[null,null,null,"Entidad de Procedencia",null,null,null,"Marcar","Nro. de",null,"Asistencia en nro. de:",null,null,null,null,null,"Orientación a los docentes para atender a los estudiantes en riesgo"]
[null,null,null,null,null,null,{"$f":"COUNTIF(H135:H137,\"X\")","v":0},"\"X\"","Practicantes",null,"Dias","Meses",null,null,null,null,"Otros      "]
[null,null,null,1,"de Universidad"]
[null,null,null,2,"de Instituto",null,null,null,null,null,null,null,null,"125.A. ¿EL SERVICIO/NIVEL EDUCATIVO, HA DESARROLLADO UNA O ALGUNAS DE"]
[null,null,null,3,"Ninguno",null,null,null,null,null,null,null,null,null,"LAS ACTIVIDADES PROPUESTAS PARA LA IMPLEMENTACIÓN DE LA EIT?"]
[null,null,null,null,null,null,null,null,null,null,null,null,null,null,"Educación Intercultural para Todos y Todas"]
[null,null,"122.A  ¿ESTE SERVICIO/NIVEL EDUCATIVO SE ENCUENTRA EN EL ÁMBITO DE ALGÚN"]
[null,null,null,"ESTABLECIMIENTODE SALUD ?",null,null,null,null,null,null,null,null,null,null,"Activivades EIT",null,null,null,null,null,{"$f":"COUNTIF(V141:V143,\"SI\")+COUNTIF(V141:V143,\"NO\")","v":0}," SI-NO"]
[null,null,null,null,null,null,null,null,null,null,null,null,null,null,1,"Descubriendo nuevos orígenes"]
[null,null,null,"Sí",null,"No  ",null,null,null,"Pase a la pregunta 124.A",null,null,null,null,2,"Encuentro con nuestra diversidad"]
[null,null,null,null,null,null,null,null,null,null,null,null,null,null,3,"Feria de la diversidad"]
[null,null,"123.A  ¿ESTE SERVICIO/NIVEL EDUCATIVO REALIZA COORDINACIONES Y/O ACCIONES DE"]
[null,null,null,"ARTICULACIÓN CON EL ESTABLECIMIENTO DE SALUD?"]
[null,null,null,null,null,null,null,null,null,null,null,null,null,"126.A. ¿CUENTA CON ESTUDIANTES BENEFICIADOS CON BECAS DE ESTUDIOS, AL AMPARO"]
[null,null,null,"Sí",null,"No  ",null,null,null,null,null,null,null,null,"DE LA LEY Nº 23583, “ESTUDIANTES DE PLANTELES Y UNIVERSIDADES PARTICULARES"]
[null,null,null,null,null,null,null,null,null,null,null,null,null,null,"QUE PIERDAN A SUS PADRES O TUTORES TIENEN DERECHO A BECA”?"]
[null,null,null,null,null,"¿Qué tipo de coordinaciones y/o acciones realiza?"]
[null,null,null,null,"Marque con una “X”, una o más opciones",null,null,null,null,null,null,null,null,null,"Sí",null,"No  "]
[null,null,null,null,null,"Salud física de estudiantes"]
[null,null,null,null,null,"Salud física de docentes"]
[null,null,null,null,null,"Salud mental del estudiante",null,null,null,null,null,null,null,null,null,null,"Cantidad de beneficiarios"]
[null,null,null,null,null,"Salud mental del docente"]
[null,null,null,null,null,"Otros      "]
[]
[]
[null,null,"B. TUTORÍA , ORIENTACIÓN EDUCATIVA Y CONVIVENCIA ESCOLAR"]
[null,null,"101.B  EN ESTE SERVICIO/NIVEL EDUCATIVO ¿SE DESARROLLAN PROGRAMAS QUE PROMUEVAN LA ÉTICA",null,null,null,null,null,null,null,null,null,null,"110.B. ¿EL SERVICIO/NIVEL EDUCATIVO CUENTA CON AL MENOS UNA/UN RESPONSABLE"]
[null,null,null,"INTEGRIDAD Y VALORES?",null,null,null,null,null,null,null,null,null,null,"DE CONVIVENCIA ESCOLAR ASIGNADO PARA EL AÑO 2023?"]
[]
[null,null,null,"Sí",null," No  ",null,null,null,null,null,null,null,null,"Sí",null," No  "]
[]
[null,null,"102.B   INDIQUE,  ¿CON CUALES DE LOS SIGUIENTES COMITÉS CUENTA ESTE SERVICIO NIVEL EDUCATIVO Y ",null,null,null,null,null,null,null,null,null,null,null,null,null,"¿Se encuentra registrado en el portal SíseVe?"]
[null,null,null,"CON QUE FRECUENCIA SE REUNEN?"]
[null,null,null,"Selecciones SI o No en la o las alternativas que correspondan",null,null,null,null,null,null,null,null,null,null,null,null,"Sí  ",null,null,"No"]
[]
[null,null,null,"Detalle de los comités en el  Servicio/Nivel Educativo",null,null,null,"Cuenta con este comité","¿Está conformado mediante (RD)?",null,"Frecuencia de las reuniones",null,null,"111.B  EL SERVICIO/NIVEL EDUCATIVO, ¿CUENTA CON LIBRO DE REGISTRO DE INCIDENCIAS "]
[null,null,null,null,null,null,null,null,null,null,null,null,null,null,"SOBRE VIOLENCIA Y ACOSO ESCOLAR EN EL MARCO DE LA LEY 29719?"]
[null,null,null,null,null,null,null,"SI - NO","SI - NO"]
[null,null,null,1,"Comité de Tutoría",null,null,null,null,null,null,null,"",null,"Sí",null," No  ",null,null,null,"Pase a la pregunta 113.B"]
[null,null,null,2,"Comité de Gestión del Bienestar",null,null,null,null,null,null,null,""]
[null,null,null,null,null,null,null,{"$f":"COUNTIF(H171:H172,\"SI\")+COUNTIF(H171:H172,\"NO\")","v":0},null,null,null,null,null,null,null,null,"¿El libro de registro se encuentra en un lugar visible?"]
[null,null,"103.B  EL SERVICIO/NIVEL EDUCATIVO, ¿CUENTA CON PLAN DE TUTORÍA, ORIENTACIÓN EDUCATIVA Y "]
[null,null,null,"CONVIVENCIA ESCOLAR?",null,null,null,null,null,null,null,null,null,null,null,null,"Sí  ",null,null,"No"]
[]
[null,null,null,"Sí",null," No  ",null,null,null,"Pase a la pregunta 107.B",null,null,null,"112.B. EN EL AÑO 2022, ¿SE HIZO USO DEL LIBRO DE REGISTRO DE INCIDENCIAS?"]
[]
[null,null,"104.B  ¿EL PLAN DE TUTORÍA, ORIENTACIÓN EDUCATIVA Y CONVIVENCIA ESCOLAR PRESENTA AL MENOS",null,null,null,null,null,null,null,null,null,null,null,"Sí",null," No  "]
[null,null,null,"UNA ACTIVIDAD RELACIONADA A LA GESTIÓN DE BIENESTAR EN EL RETORNO A LA"]
[null,null,null,"SEMIPRESENCIALIDAD O PRESENCIALIDAD?",null,null,null,null,null,null,null,null,null,null,null,null,"¿Cuántas incidencias se registraron en el año 2022?"]
[]
[null,null,null,"Sí",null," No  ",null,null,null,null,null,null,null,null,null,null,"Anote la fecha de la última incidencia registrada en el año 2022"]
[]
[null,null,"105.B  ¿SE HA ACTUALIZADO EL PLAN DE TUTORÍA, CON RELACIÓN A LO ELABORADO  EN EL AÑO 2022?",null,null,null,null,null,null,null,null,null,null,null,null,null,null,null,"DÍA","MES",null,"AÑO"]
[null,null,null,"",null,null,null,null,null,null,null,null,null,null,null,null,null,null,null,null,null,2022]
[null,null,null,"Sí",null," No  "]
[null,null,null,null,null,null,null,null,null,null,null,null,null,"113.B  EL SERVICIO/NIVEL EDUCATIVO, ¿REALIZA ACTIVIDADES PARA UNA CONVIVENCIA"]
[null,null,"106.B  LOS DOCENTES TUTORES, ¿CUENTAN CON UN PLAN TUTORIAL DE AULA PARA ESTE AÑO 2023?",null,null,null,null,null,null,null,null,null,null,null,"ESCOLAR DEMOCRÁTICA ?"]
[]
[null,null,null,null,"Marque con una “X”, una opción",null,null,null,null,null,null,null,null,null," Sí",null," No  "]
[null,null,null,null,null,"1 - Sí, todos los docentes"]
[null,null,null,null,null,"2 - Sí, algunos docentes",null,null,null,null,null,null,null,null,null,null,"¿Cuenta con medios de verificación?"]
[null,null,null,null,null,"3 - Ninguno",null,null,null,null,null,null,null,null,null,null," Sí   ",null,null," No  "]
[]
[null,null,"107.B. EL SERVICIO/NIVEL EDUCATIVO, ¿CUENTA CON NORMAS DE CONVIVENCIA",null,null,null,null,null,null,null,null,null,null,null,null,null,null,null,"¿Con que medios de verificación cuenta?"]
[null,null,null,"ESCOLAR ACTUALIZADAS PARA EL AÑO 2023?",null,null,null,null,null,null,null,null,null,null,null,null,null,null,"(Marque con una “X”, una o más opciones)"]
[null,null,null,null,null,null,null,null,null,null,null,null,null,null,null,null,null,null,"Informe de actividades"]
[null,null,null," Sí",null," No  ",null,"Pase a la pregunta 131.","Pase a la pregunta 111.B",null,null,null,null,null,null,null,null,null,"Fotografías"]
[null,null,null,null,null,null,null,null,null,null,null,null,null,null,null,null,null,null,"Videos"]
[null,null,null,null,null,"¿Están incorporadas al reglamento interno?",null,null,null,null,null,null,null,null,null,null,null,null,"Otro"]
[]
[null,null,null,null,null," Sí   ",null,null," No  ",null,null,null,null,"114.B  EL SERVICIO/NIVEL EDUCATIVO, ¿REALIZA ACTIVIDADES PARA LA PREVENCIÓN DE LA"]
[null,null,null,null,null,null,null,null,null,null,null,null,null,null,"VIOLENCIA CONTRA NIÑAS, NIÑOS Y ADOLESCENTES?"]
[]
[null,null,"108.B  ¿LAS NORMAS DE CONVIVENCIA ESCOLAR INCLUYEN NORMAS RELACIONADAS A LA GESTIÓN",null,null,null,null,null,null,null,null,null,null,null," Sí",null," No  ",null,null,null,"Pase a la pregunta 116.B"]
[null,null,null,"DE BIENESTAR EN EL RETORNO A LA SEMIPRESENCIALIDAD O PRESENCIALIDAD ?"]
[null,null,null,null,null,null,null,null,null,null,null,null,null,null,null,null,"¿Cuenta con medios de verificación?"]
[null,null,null,"Sí",null," No  ",null,null,null,null,null,null,null,null,null,null," Sí   ",null,null," No  "]
[]
[null,null,null,null,null,null,null,null,null,null,null,null,null,null,null,null,null,null,"¿Cuenta con que medios de verificación?"]
[null,null,"109.B. ¿LAS NORMAS DE CONVIVENCIA ESCOLAR HAN SIDO CONSTRUIDAS CON LA PARTICIPACIÓN",null,null,null,null,null,null,null,null,null,null,null,null,null,null,null,"Marque con una “X”, una o más opciones"]
[null,null,null,"DE REPRESENTANTES DE LAS/LOS ESTUDIANTES?",null,null,null,null,null,null,null,null,null,null,null,null,null,null,"Informe de actividades"]
[null,null,null,null,null,null,null,null,null,null,null,null,null,null,null,null,null,null,"Fotografías"]
[null,null,null,"Sí",null," No  ",null,null,null,null,null,null,null,null,null,null,null,null,"Videos"]
[null,null,null,null,null,null,null,null,null,null,null,null,null,null,null,null,null,null,"Otro"]
[]
[]
[null,null,"115.B  ¿CUÁLES SON LAS ACTIVIDADES QUE REALIZA ESTE NIVEL/SERVICIO EDUCATIVO, PARA LA ",null,null,null,null,null,null,null,null,null,null,"120.B. SEÑOR(A) DIRECTOR(A), EN EL AÑO 2022, ¿SE APLICARON LOS PROTOCOLOS"]
[null,null,null,"PREVENCIÓN DE LA VIOLENCIA CONTRA NIÑAS, NIÑOS Y ADOLESCENTES?",null,null,null,null,null,null,null,null,null,null,"PARA LA ATENCIÓN DE LOS CASOS DE VIOLENCIA EN EL SERVICIO/NIVEL"]
[null,null,null,"Marque con una “X”, una o más opciones",null,null,null,null,null,null,null,null,null,null,"EDUCATIVO QUE FUERON ACTUALIZADOS PARA LA EDUCACIÓN A DISTANCIA?"]
[]
[null,null,null,null,null,"Gestión de talleres o reuniones con estudiantes.",null,null,null,null,null,null,null,null," Sí",null," No  "]
[null,null,null,null,null,"Capacitación a docentes para prevenir y/o atender casos de riesgo."]
[null,null,null,null,null,"Envío de orientaciones a apoderados/as.",null,null,null,null,null,null,null,"121.B. ESTE SERVICIO/NIVEL EDUCATIVO, ¿RECIBE ASISTENCIA TÉCNICA PARA LA PROMOCIÓN"]
[null,null,null,null,null,"Gestión de talleres o reuniones con apoderados/as.",null,null,null,null,null,null,null,null,"DE LA CONVIVENCIA ESCOLAR, LA PREVENCIÓN Y ATENCIÓN DE LA VIOLENCIA ESCOLAR?"]
[null,null,null,null,null,"Gestión de estrategias en conjunto con otras organizaciones."]
[null,null,null,null,null,"Monitoreo de situación emocional y familiar de estudiantes.",null,null,null,null,null,null,null,null," Sí",null," No  "]
[null,null,null,null,null,"Otro"]
[null,null,null,null,null,null,null,null,null,null,null,null,null,"122.B ¿USTED HA RECURRIDO A LA UGEL/DRE SOLICITANDO ORIENTACIONES PARA"]
[null,null,null,null,null,null,null,null,null,null,null,null,null,null,"MEJORAR LA CONVIVENCIA EN SU SERVICIO/NIVEL EDUCATIVO?"]
[null,null,"116.B  USTED, SEÑOR(A) DIRECTOR(A), ¿CONOCE EL PORTAL SÍSEVE?",null,null,null,null,null,null,null,null,null,null,null,"Orientaciones para la prevención de la violencia, atención de casos y promoción de la convivencia"]
[null,null,null,null,null,null,null,null,null,null,null,null,null,null," Sí",null," No  "]
[null,null,null," Sí",null," No  ",null,null,null,"Pase a la pregunta 119.B"]
[null,null,null,null,null,null,null,null,null,null,null,null,null,null,null,null,"¿Usted ha recibido alguna información y/o capacitación?"]
[null,null,null,null,null,"¿Ha sido capacitado por algún integrante de la UGEL/DRE",null,null,null,null,null,null,null,null,null,null," Sí   ",null,null," No  "]
[null,null,null,null,null,"en el uso del Portal SíseVe? "]
[null,null,null,null,null," Sí   ",null,null," No  ",null,null,null,null,"123.B. ¿EL SERVICIO/NIVEL EDUCATIVO CUENTA CON UN MAPA O DIRECTORIO DE ALIADOS"]
[null,null,null,null,null,null,null,null,null,null,null,null,null,null,"ESTRATÉGICOS PARA LA PREVENCIÓN Y ATENCIÓN DE CASOS DE VIOLENCIA ESCOLAR?"]
[]
[null,null,"117.B. EL SERVICIO/NIVEL EDUCATIVO, ¿SE ENCUENTRA AFILIADO AL SÍSEVE?",null,null,null,null,null,null,null,null,null,null,null," Sí",null," No  ",null,null,null,"Pase a la pregunta 125.B"]
[]
[null,null,null,"Sí",null,"¿Cuántos casos han sido reportados?"]
[null,null,null,null,null,null,null,null,null,null,null,null,null,null,null,"En caso de que cuente con un mapa o directorio de aliados estratégicos, "]
[null,null,null,null,null,null,null,null,null,null,null,null,null,null,null,"por favor, indique quiénes lo conforman:"]
[null,null,null,"No",null,"¿Porque razón el servicio y/o nivel educativo no está afiliado al SÍSEVE?",null,null,null,null,null,null,null,null,null,"Marque con una “X”, una o más opciones"]
[null,null,null,null,null,null,null,null,null,null,null,null,null,null,null,null,"DEMUNA"]
[null,null,null,null,null,"Marque con una “X”, una opción",null,null,null,null,null,null,null,null,null,null,"Defensoría del pueblo"]
[null,null,null,null,null,"Por falta de internet",null,null,null,null,null,null,null,null,null,null,"Centro de emergencia Mujer (CEM)"]
[null,null,null,null,null,"Lo conoce y no le parece importante afiliarse",null,null,null,null,null,null,null,null,null,null,"Centro o posta de salud"]
[null,null,null,null,null,"Le parece importante, pero no lo ve necesario para su I.E.",null,null,null,null,null,null,null,null,null,null,"Iglesia"]
[null,null,null,null,null,"Otro",null,null,null,null,null,null,null,null,null,null,"Comisaría"]
[null,null,null,null,null,null,null,null,null,null,null,null,null,null,null,null,"Otro"]
[]
[null,null,"118.B. EN EL AÑO 2022, ¿UD. HA REPORTADO ALGUNA INCIDENCIA EN EL PORTAL SÍSEVE ?",null,null,null,null,null,null,null,null,null,null,"124.B  ¿EL SERVICIO/NIVEL EDUCATIVO HA REALIZADO ALGUNA ACTIVIDAD COORDINADA"]
[null,null,null,"Sistema Especializado en Reporte de casos sobre Violencia Escolar",null,null,null,null,null,null,null,null,null,null,"CON ALGUNO DE LOS ALIADOS ESTRATÉGICOS?"]
[null,null,null,null,null,"  Para el año 2022"]
[null,null,null," Sí",null,"¿Cuántos casos fueron reportados?",null,null,null,null,null,null,null,null," Sí",null," No  "]
[]
[null,null,null,"No",null,null,null,null,null,null,null,null,null,"125.B  SEÑOR(A) DIRECTOR(A,) ¿EMPLEA USTED HERRAMIENTAS DE CONSULTA PARA"]
[null,null,null,null,null,null,null,null,null,null,null,null,null,null,"VERIFICAR LA SITUACIÓN DEL PERSONAL DE ESTE SERVICIO/NIVEL EDUCATIVO, TAL COMO"]
[null,null,null,null,null,null,null,null,null,null,null,null,null,null,"EL REGISTRO NACIONAL DE SANCIONES CONTRA SERVIDORES CIVILES – RNSSC?"]
[null,null,"119.B. USTED, SEÑOR(A) DIRECTOR(A), ¿CONOCE LOS PROTOCOLOS PARA LA ATENCIÓN DE LOS"]
[null,null,null,"CASOS DE VIOLENCIA EN ESTE SERVICIO/NIVEL EDUCATIVO",null,null,null,null,null,null,null,null,null,null," Sí",null," No  "]
[]
[null,null,null," Sí",null," No  ",null,null,null,null,null,null,null,"126.B  SEÑOR(A) DIRECTOR(A) ¿CONOCE USTED QUE PUEDE PRESENTAR DENUNCIAS SOBRE"]
[null,null,null,null,null,null,null,null,null,null,null,null,null,null,"POSIBLE ACTOS DE SOBORNO DE MANERA ANÓNIMA, CON LA FINALIDAD DE PROTEGER"]
[null,null,null,null,null,"¿Ha sido capacitado por algún integrante de la UGEL/DRE en el uso",null,null,null,null,null,null,null,null,"SU IDENTIDAD?"]
[null,null,null,null,null,"de los Protocolos para la atención de los casos de violencia en la "]
[null,null,null,null,null,"Institución Educativa?",null,null,null,null,null,null,null,null," Sí",null," No  "]
[]
[null,null,null,null,null," Sí   ",null,null," No  ",null,null,null,null,"127.B  SEÑOR(A) DIRECTOR(A) ¿TIENE CONOCIMIENTO QUE LOS HECHOS DE VIOLENCIA,"]
[null,null,null,null,null,null,null,null,null,null,null,null,null,null,"ADEMÁS DE SER REPORTADOS EN EL PORTAL DEL SÍSEVE, DEBEN SER REPORTADOS"]
[null,null,null,null,null,null,null,null,null,null,null,null,null,null,"A LA UGEL?"]
[]
[null,null,null,null,null,null,null,null,null,null,null,null,null,null," Sí",null," No  "]
[]
[]
[null,null,"128.B  SEÑOR(A) DIRECTOR(A) ¿CONOCE USTED EN QUE CASOS TIENE COMPETENCIA PARA",null,null,null,null,null,null,null,null,null,null,"132.B  SEÑOR(A) DIRECTOR(A), EN ESTE SERVICIO/NIVEL EDUCATIVO, ¿SE TIENEN IMPLEMENTADAS"]
[null,null,null,"INVESTIGAR UNA DENUNCIA QUE HAYA SIDO PRESENTADA EN CONTRA DE PROFESORES,",null,null,null,null,null,null,null,null,null,null,"MEDIDAS DE SEGURIDAD PARA EL TRATAMIENTO DE LOS DATOS PERSONALES QUE"]
[null,null,null,"PERSONAL JERÁRQUICO Y SUBDIRECTOR DE ESTE SERVICIO/NIVEL EDUCATIVO QUE DIRIGE?\n",null,null,null,null,null,null,null,null,null,null,"ADMINISTRAN?"]
[null,null,null,null,null,null,null,null,null,null,null,null,null,null,"Ya sea de alumnos, profesores, personal administrativo o terceros. En cumplimiento de la"]
[null,null,null," Sí",null," No  ",null,null,null,null,null,null,null,null," ley N° 29733 y su reglamento"]
[]
[null,null,"129.B  SEÑOR(A) DIRECTOR(A), DURANTE EL PRESENTE AÑO, ¿HA RECIBIDO DENUNCIAS",null,null,null,null,null,null,null,null,null,null,null," Sí",null," No  "]
[null,null,null,"CONTRA EL PERSONAL DOCENTE DE ESTE SERVICIO/NIVEL EDUCATIVO?"]
[null,null,null,null,null,null,null,null,null,null,null,null,null,"133.B. ¿QUÉ ESTRATEGIAS DE TUTORÍA Y ORIENTACIÓN EDUCATIVA IMPLEMENTAN CON"]
[null,null,null," Sí",null," No  ",null,null,null,"Pase a la pregunta 131.B",null,null,null,null,"LOS ESTUDIANTES?",null,null,"Marque con una “X”, una o más opciones"]
[null,null,null,null,null,null,null,null,null,null,null,null,null,null,null,"Tutoría Individual"]
[null,null,null,null,null,null,"¿Cuántas?",null,null,null,null,null,null,null,null,"Tutoría grupal"]
[null,null,null,null,null,null,null,null,null,null,null,null,null,null,null,"Participación estudiantil"]
[null,null,null,null,null,null,null,null,null,null,null,null,null,null,null,"Trabajo con las familias y la comunidad"]
[null,null,"130.B  SOBRE LA ATENCIÓN A LAS DENUNCIAS RECIBIDAS CONTRA EL PERSONAL DOCENTE",null,null,null,null,null,null,null,null,null,null,null,null,"Orientación Educativa permanente"]
[null,null,null,"EN EL PRESENTE AÑO, INDIQUE USTED:",null,null,null,null,null,null,null,null,null,null,null,"Otro","Especificar"]
[null,null,null,null,null,null,null,null,null,null,null,null,null,null,null,"Ninguno"]
[null,null,null,null,"A.   ¿ CUÁNTAS DERIVÓ A LA CPPADD ?"]
[null,null,null,null,"B.   ¿CUÁNTAS ASUMIÓ LA INVESTIGACIÓN",null,null,null,null,null,null,null,null,"134.B. USTED SEÑOR(A) DIRECTOR(A), ¿TIENE AULA A CARGO?"]
[null,null,null,null,"        POR SER DE SU COMPETENCIA?"]
[null,null,null,null,null,null,null,null,null,null,null,null,null,null," Sí",null,null,"¿Cuál de las siguientes afirmaciones considera que expresa"]
[null,null,"131.B  SEÑOR(A) DIRECTOR(A), DURANTE EL PRESENTE AÑO, ¿USTED HA SIDO OBJETO DE DENUNCIAS",null,null,null,null,null,null,null,null,null,null,null,null,null,null,"mejor su opinión respecto a tener asignada un aula a su cargo?"]
[null,null,null,"POR ADOPTAR MEDIDAS EN PROTECCIÓN DEL ESTUDIANTE O DENUNCIAS DE CORRUPCIÓN?",null,null,null,null,null,null,null,null,null,null,null,null,null,"Marque con una “X”, una opción"]
[null,null,null,null,null,null,null,null,null,null,null,null,null,null,null,null,null,null,"Es beneficiosa para el cumplimiento de mis funciones"]
[null,null,null," Sí",null," No  ",null,null,null,null,null,null,null,null,null,null,null,null,"Es indiferente para el cumplimiento de mis funciones"]
[null,null,null,null,null,null,null,null,null,null,null,null,null,null,null,null,null,null,"Es perjudicial para el cumplimiento de mis funciones"]
[null,null,null,null,null,null,"¿Cuántas?",null,null,null,null,null,null,null," No  "]
[]
[]
[null,null,"C. ACOMPAÑAMIENTO Y SOPORTE PEDAGÓGICO"]
[null,null,"101.C  DESDE EL INICIO DEL AÑO ESCOLAR 2021 HASTA LA FECHA DE REPORTE DEL CENSO EDUCATIVO",null,null,null,null,null,null,null,null,null,null,"105.C. DURANTE EL AÑO 2022, EL EQUIPO DIRECTIVO DE ESTE SERVICIO/NIVEL EDUCATIVO"]
[null,null,null,"EL SERVICIO/NIVEL EDUCATIVO, ¿HA RECIBIDO COMUNICACIÓN O PARTICIPACIÓN PRESENCIAL",null,null,null,null,null,null,null,null,null,null,"¿HA REALIZADO EL MONITOREO A LA PRÁCTICA PEDAGÓGICA DE LOS DOCENTES?"]
[null,null,null,"O VIRTUAL/REMOTA DEL ESPECIALISTA PEDAGÓGICO DE LA UGEL, CON LA FINALIDAD DE"]
[null,null,null,"BRINDAR ASISTENCIA TÉCNICA?",null,null,null,null,null,null,null,null,null,null," Sí",null,null," No  ",null,null,null,"Pase a la pregunta 107.C"]
[]
[null,null,null,"Sí",null,null,"¿Cuántas veces?"]
[null,null,null,null,null,null,null,null,"Presencial:",null,null,null,null,null,null,"¿A cuántos",null,"Marque con una “X” una opción"]
[null,null,null,null,null,null,null,null,"Virtual/Remota:",null,null,null,null,null,null,"docentes?",null,null,"Todos los docentes"]
[null,null,null,null,null,null,null,null,null,null,null,null,null,null,null,null,null,null,"Más del 50% de docentes"]
[null,null,null," No  ",null,null,"Pase a la pregunta 103.C",null,null,null,null,null,null,null,null,null,null,null,"Menos del 50% de docentes"]
[]
[null,null,null,null,null,null,null,null,null,null,null,null,null,null,null,null,"¿Con qué frecuencia monitorea a cada docente"]
[null,null,"102.C  ¿CUÁLES DE LAS SIGUIENTES ACCIONES HA REALIZADO EL ESPECIALISTA PEDAGÓGICO AL",null,null,null,null,null,null,null,null,null,null,null,null,null,"durante el año escolar?"]
[null,null,null,"MOMENTO DE BRINDAR LA ASISTENCIA TÉCNICA AL SERVICIO/NIVEL EDUCATIVO?"]
[null,null,null,"Seleccione “Si” o “No” según corresponda en cada acción",null,null,null,null,null,null,null,null,null,null,null,null,null,null,"Al menos 1 vez al año"]
[null,null,null,null,null,null,null,null,null,null,null,null,null,null,null,null,null,null,"2 veces al año"]
[null,null,null,"NRO.","ACCIONES",null,null,null,null,null,null," SI - NO",null,null,null,null,null,null,"3 vces al año"]
[null,null,{"$f":"COUNTIF(L326:L345,\"NO\")","v":0},1,"Pregunto sobre las necesidades y demandas pedagógicas del",null,null,null,null,null,null,null,null,null,null,null,null,null,"4 veces 2 veces al año"]
[null,null,null,null,"servicio/nivel educativo"]
[null,null,null,2,"Observó alguna sesión o actividades de aprendizaje, ya sea de",null,null,null,null,null,null,null,null,"106.C. DURANTE EL AÑO 2022, EN PROMEDIO, ¿CUÁNTAS REUNIONES POR SEMANA DE TRABAJO"]
[null,null,null,null,"manera presencial o virtual/remota (por lo menos una vez)",null,null,null,null,null,null,null,null,null,"COLEGIADO O FORMACIÓN REALIZÓ CON EL PERSONAL DE ESTE SERVICIO/NIVEL EDUCATIVO?"]
[null,null,null,3,"Sostuvó un clima de confianza y proximidad durante sus acciones"]
[null,null,null,null,"de asistencia técnica con este servicio/ nivel educativo",null,null,null,null,null,null,null,null,null,null,"Promedio de reuniones por semana"]
[null,null,null,4,"Generó algún espacio para que el director(a) del servicio/nivel"]
[null,null,null,null,"educativo autoevalúe su práctica",null,null,null,null,null,null,null,null,"107.C  EN EL PRESENTE AÑO, EL PERSONAL DIRECTIVO DE ESTE SERVICIO/NIVEL EDUCATIVO"]
[null,null,null,5,"Escuchó y respondió las dudas y consultas realizadas por usted",null,null,null,null,null,null,null,null,null,"¿BRINDA SOPORTE Y APOYO A LOS DOCENTES EN TORNO A SU DESEMPEÑO"]
[null,null,null,6,"Las orientaciones brindadas atendieron las necesidades y",null,null,null,null,null,null,null,null,null,"EN EL MARCO DEL ACOMPAÑAMIENTO PEDAGÓGICO Y ESPACIOS DE TRABAJO COLEGIADO?"]
[null,null,null,null,"demandas señaladas"]
[null,null,null,7,"Brindó orientaciones para la mejora de las prácticas pedagógicas"]
[null,null,null,null,"y de gestión acorde al enfoque por competencias.",null,null,null,null,null,null,null,null,null,"Sí",null," No  ",null,null,null,"Pase a la pregunta 109.C"]
[null,null,null,8,"Sugirió estrategias pedagógicas contextualizadas para mejorar las"]
[null,null,null,null,"prácticas docentes",null,null,null,null,null,null,null,null,"108.C  ¿QUÉ TEMAS HAN SIDO ABORDADOS MAYORITARIAMENTE POR EL EQUIPO"]
[null,null,null,9,"Dio a conocer las fortalezas del servicio / nivel educativo",null,null,null,null,null,null,null,null,null,"DIRECTIVO DURANTE LAS SESIONES DE SOPORTE Y APOYO A LOS DOCENTES"]
[null,null,null,10,"Durante las orientaciones utiliza alguna herramienta curricular o fascículos",null,null,null,null,null,null,null,null,null,"EN EL MARCO DEL ACOMPAÑAMIENTO PEDAGÓGICO Y ESPACIOS DE TRABAJO COLEGIADO?"]
[null,null,null,11,"Se asumieron compromisos y/o acuerdos para la mejora"]
[null,null,null,12,"Brindó orientaciones y/o acompañamientos periódicos para la",null,null,null,null,null,null,null,null,null,null,"Marque con una  “X” una o más opciones"]
[null,null,null,null,"Implementación de la metodología CAP en la IE."]
[null,null,null,null,null,null,null,null,null,null,null,{"$f":"COUNTIF(L326:L345,\"SI\")+COUNTIF(L326:L345,\"NO\")","v":0},null,null,null,null,"Planificación curricular"]
[null,null,null,null,null,null,null,null,null,null,null,null,null,null,null,null,"Conducción de los aprendizajes"]
[null,null,"103.C  DURANTE EL AÑO 2022 Y HASTA EL REPORTE DEL CENSO EDUCATIVO 2023, EL",null,null,null,null,null,null,null,null,null,null,null,null,null,"Como brindar acompañamiento socioafectivo y cognitivo"]
[null,null,null,"EL SERVICIO/NIVEL EDUCATIVO, ¿HA RECIBIDO ALGÚN TIPO DE ACOMPAÑAMIENTO",null,null,null,null,null,null,null,null,null,null,null,null,"Uso de los recursos y materiales educativos para atender la diversidad"]
[null,null,null,"DIRIGIDO AL DIRECTIVO?",null,null,null,null,null,null,null,null,null,null,null,null,"Evaluación formativa y retroalimentación"]
[null,null,null,null,null,null,null,null,null,null,null,null,null,null,null,null,"Fortalecimiento del uso de TIC"]
[null,null,null,"Sí",null," No  ",null,null,null,"Pase a la pregunta 105.C",null,null,null,null,null,null,"Competencia de las áreas curriculares"]
[null,null,null,null,null,null,null,null,null,null,null,null,null,null,null,null,"Conclusiones descriptivas"]
[null,null,null,null,null,"¿Que Institución le brindó el acompañamiento?",null,null,null,null,null,null,null,null,null,null,"Otros temas"]
[null,null,null,null,null,"Marque con una “X” una o más opciones"]
[null,null,null,null,null,null,null,null,null,null,null,null,null,"109.C  EL SERVICIO/NIVEL EDUCATIVO, ¿ DESARROLLA LAS SIGUIENTES ESTRATEGIAS"]
[null,null,null,"Nro.","Institución",null,null,null,null,{"$f":"COUNTIF(I358:I361,\"SI\") + COUNTIF(I358:I361,\"NO\")","v":0},"GESTIÓN",null,null,null,"DE ACOMPAÑAMIENTO ?"]
[null,null,null,1,"DRE",null,null,null,null,null,null,null,null,null,null,null,null,null,null,null,"¿Cuántos?"]
[null,null,null,2,"UGEL",null,null,null,null,null,null,null,null,null,"Marque con una “X”, una o más opciones",null,null,null,null,null,"Marque con una  “X” una opción"]
[null,null,null,3,"MINEDU",null,null,null,null,null,null,null,null,null,null,null,null,null,null,null,null,"de 1 a 4 por área"]
[null,null,null,4,"Otros",null,null,null,null,null,null,null,null,null,null,"Visita en aula",null,null,null,null,null,"de 4 a 8 por área"]
[null,null,null,null,null,null,null,null,null,null,null,null,null,null,null,"Grupos de Interaprendizaje (GIA)",null,null,null,null,null,"Más de 8 por área"]
[null,null,null,null,"“Sólo si marco DRE o UGEL”",null,null,null,null,null,null,null,null,null,null,"Talleres"]
[null,null,null,null,"¿Sobre qué temas recibió acompañamiento como director por parte de la DRE/UGEL?",null,null,null,null,null,null,null,null,null,null,"Otros","Especificar"]
[null,null,null,null,"Marque con una “X”, una o más opciones"]
[null,null,null,null,null,null,null,null,null,null,null,null,null,"110.C. EL SERVICIO/NIVEL EDUCATIVO, ¿REALIZA ACTIVIDADES CON FAMILIAS Y"]
[null,null,null,null,"Liderazgo directivo",null,null,null,null,null,null,null,null,null,"COMUNIDAD QUE AYUDEN A LA PROMOCIÓN DE UN AMBIENTE INSTITUCIONAL FAVORABLE"]
[null,null,null,null,"Temas administrativos",null,null,null,null,null,null,null,null,null,"PARA LA ATENCIÓN DE LA DIVERSIDAD?"]
[null,null,null,null,"Temas estratégicos"]
[null,null,null,null,"Temas pedagógicos",null,null,null,null,null,null,null,null,null," Sí",null,null,"¿Qué actividades realiza?"]
[null,null,null,null,"Temas comunitarios"]
[null,null,null,null,"Temas sobre implementación de las Comunidades de Aprendizaje Profesional CAP",null,null,null,null,null,null,null,null,null,null,null,null,"Marque con una “X”, una o más  opciónes"]
[null,null,null,null,"Otros",null,null,null,null,null,null,null,null,null,null,null,null,null,"Acompañamiento en el proceso de aprendizaje"]
[null,null,null,null,"Ninguna",null,null,null,null,null,null,null,null,null,null,null,null,null,"Actividades que fortalecen las competencias parentales"]
[null,null,null,null,null,null,null,null,null,null,null,null,null,null,null,null,null,null,"Vínculos afectivos con hijos e hijas"]
[null,null,null,null,null,null,null,null,null,null,null,null,null,null,null,null,null,null,"Jornadas con madres y padres"]
[null,null,"104.C. EN EL CASO DE QUE SU RESPUESTA DE LA PREGUNTA ANTERIOR, SEA DRE/UGEL,",null,null,null,null,null,null,null,null,null,null,null,null,null,null,null,"Otro"]
[null,null,null,"INDIQUE : ¿QUÉ TIPO DE ACOMPAÑAMIENTO HA RECIBIDO DE LA DRE/UGEL?"]
[null,null,null,null,null,null,null,null,null,null,null,null,null,null," No  "]
[null,null,null,"Marque con una “X”, una o más opciones"]
[null,null,null,null,"Mentoría a directivos/Coaching",null,null,null,null,null,null,null,null,"111.C. DURANTE EL AÑO 2022, ¿SE REALIZÓ EL INFORME DEL PROGRESO DE LOS"]
[null,null,null,null,"Asistencia técnica en Comunidades de Aprendizaje Profesional (CAP)",null,null,null,null,null,null,null,null,null,"ESTUDIANTES A LOS PADRES DE FAMILIA?"]
[null,null,null,null,"Grupos de inter aprendizaje de directores (temáticas diversas)"]
[null,null,null,null,"Otros - Especificar",null,null,null,null,null,null,null,null,null," Sí",null," No  ",null,null,null,"Pase a la pregunta 113.C"]
[]
[null,null,null,null,null,null,null,null,null,null,null,null,null,null,null,null,null,"¿Cuántas?"]
[]
[]
[null,null,"     112.C ¿CÓMO SE REALIZÓ EL INFORME DEL PROGRESO DE LOS ESTUDIANTES A LOS PADRES DE",null,null,null,null,null,null,null,null,null,null,"121.C. SEÑOR(A) DIRECTOR(A), ¿UD. CONOCE EL SISTEMA INTEGRADO DE FORMACIÓN"]
[null,null,"      FAMILIA EN EL AÑO 2022?",null,null,null,null,null,null,null,null,null,null,null,"DOCENTE EN SERVICIO (SIFODS)?"]
[]
[null,null,null,null,"Marque con una \"X\", solo una opción",null,null,null,null,null,null,null,null,null,"Sí",null," No  "]
[null,null,null,null,null,"Individual - (Informe de cada estudiante a cada PPFF)"]
[null,null,null,null,null,"Pequeños grupos - (Informe en grupos de 2 hasta 10 estudiantes)",null,null,null,null,null,null,null,null,null,null,null,"¿Qué módulo(s) ha utilizado del SIFODS?"]
[null,null,null,null,null,"Grupal - (Informe en grupos de 11 a más estudiantes)",null,null,null,null,null,null,null,null,null,null,null,"Marque con una “X”, una o más opciones"]
[null,null,null,null,null,"Otros"]
[null,null,null,null,null,null,null,null,null,null,null,null,null,null,null,null,null,null,"File Docente"]
[null,null,"113.C  ¿HA VISITADO EL PORTAL WEB PARA DIRECTIVOS EN LOS ÚLTIMOS TRES MESES?",null,null,null,null,null,null,null,null,null,null,null,null,null,null,null,"Docente al Día"]
[null,null,null,null,null,null,null,null,null,null,null,null,null,null,null,null,null,null,"Portafolio de la Oferta Formativa"]
[null,null,null,"Sí",null," No  ",null,null,null,null,null,null,null,null,null,null,null,null,"Centro de Recursos"]
[null,null,null,null,null,null,null,null,null,null,null,null,null,null,null,null,null,null,"Guías docentes AeC"]
[null,null,null,null,null,"¿La información encontrada en el portal web para directivos",null,null,null,null,null,null,null,null,null,null,null,null,"Asistencia Virtual Docente"]
[null,null,null,null,null,"le resultó de utilidad?",null,null,null,null,null,null,null,null,null,null,null,null,"Comunidades"]
[null,null,null,null,null,null,null,null,null,null,null,null,null,null,null,null,null,null,"Entorno Personal"]
[null,null,null,null,null,"Sí  ",null,null,"No"]
[null,null,null,null,null,null,null,null,null,null,null,null,null,"122.C. SEÑOR(A) DIRECTOR(A), ¿CÓMO HA IDENTIFICADO LAS NECESIDADES FORMATIVAS"]
[null,null,"114.C  ¿EL PERSONAL DE ESTE SERVICIO/NIVEL EDUCATIVO, HA RECIBIDO ALGÚN TIPO",null,null,null,null,null,null,null,null,null,null,null,"PARA EL PERSONAL DOCENTE DE ESTE SERVICIO/NIVEL EDUCATIVO?"]
[null,null,null,"DE SOPORTE O ACOMPAÑAMIENTO SOCIOEMOCIONAL DE PARTE DE EQUIPOS DE UGEL O DRE?"]
[null,null,null,null,null,null,null,null,null,null,null,null,null,null,"Sí",null," No  ",null,null,null,"Pase a la pregunta 124.C"]
[null,null,null,"Sí",null," No  "]
[]
[null,null,null,null,null,null,null,null,null,null,null,null,null,null,null,null,null,"¿Cómo identificó las necesidades formativas?"]
[null,null,"115.C ¿EL SERVICIO/NIVEL EDUCATIVO HA INCORPORADO/IMPLEMENTADO PROCESOS",null,null,null,null,null,null,null,null,null,null,null,null,null,null,"Marque con una “X”, una o más opciones"]
[null,null,null,"DE ENSEÑANZA Y APRENDIZAJE HÍBRIDO?",null,null,null,null,null,null,null,null,null,null,null,null,null,null,"Observación en aula"]
[null,null,null,null,null,null,null,null,null,null,null,null,null,null,null,null,null,null,"Cuestionario de autodiagnóstico"]
[null,null,null,"Sí",null," No  ",null,null,null,null,null,null,null,null,null,null,null,null,"Monitoreo pedagógico"]
[null,null,null,null,null,null,null,null,null,null,null,null,null,null,null,null,null,null,"Otros"]
[]
[null,null,"116.C SEÑOR(A) DIRECTOR(A), ¿TIENE USTED CONOCIMIENTO SI AL MENOS EL 50% DEL PERSONAL",null,null,null,null,null,null,null,null,null,null,"123.C. SEÑOR(A) DIRECTOR (A), ¿EN ESTE SERVICIO/NIVEL EDUCATIVO HA GESTIONADO"]
[null,null,null,"DOCENTE DE SU IE REALIZA ACTIVIDADES PEDAGÓGICAS PARA FORTALECER",null,null,null,null,null,null,null,null,null,null,"ALGÚN TIPO DE ACCIÓN FORMATIVA PARA ATENDER DICHAS NECESIDADES"]
[null,null,null,"LA AUTONOMÍA EN LAS Y LOS ESTUDIANTES EN EL CONTEXTO DE APRENDIZAJE HÍBRIDO?",null,null,null,null,null,null,null,null,null,null,"DEL PERSONAL DOCENTE DE ESTE SERVICIO/NIVEL EDUCATIVO?"]
[]
[null,null,null," Sí",null," No  ",null,null,null,"Pase a la pregunta 118.C",null,null,null,null,"Sí",null," No  "]
[]
[null,null,null,null,null,null,null,null,null,null,null,null,null,null,null,null,"¿Qué tipo de acciones formativas gestionó para atender dichas"]
[null,null,"117.C ¿QUÉ ASPECTOS ABORDAN LOS DOCENTES PARA PROMOVER LA AUTONOMÍA",null,null,null,null,null,null,null,null,null,null,null,null,null,"necesidades del personal docente de este Servicio/Nivel Educativo?"]
[null,null,null,"DE LAS Y LOS ESTUDIANTES EN EL CONTEXTO DE APRENDIZAJE HÍBRIDO?"]
[null,null,null,"Marque con una  “X” una o más opciones",null,null,null,null,null,null,null,null,null,null,null,null,null,"Marque con una “X”, una o más opciones"]
[null,null,null,null,null,null,null,null,null,null,null,null,null,null,null,null,null,null,"Cursos virtuales"]
[null,null,null,null,null,"Desarrollo de la automotivación",null,null,null,null,null,null,null,null,null,null,null,null,"Programas formativos"]
[null,null,null,null,null,"Desarrollo del autoconcepto",null,null,null,null,null,null,null,null,null,null,null,null,"Otros"]
[null,null,null,null,null,"Desarrollo de la regulación emocional"]
[null,null,null,null,null,"Monitoreo de la acción o las tareas",null,null,null,null,null,null,null,"124.C. EN LOS ÚLTIMOS CINCO (05) AÑOS, ¿ALGUNA VEZ EN ESTE SERVICIO/NIVEL EDUCATIVO"]
[null,null,null,null,null,"Promoción de la toma de decisiones responsables",null,null,null,null,null,null,null,null,"SE IMPLEMENTÓ UN PROYECTO DE INNOVACIÓN EDUCATIVA O BUENA PRÁCTICA PEDAGÓGICA?"]
[null,null,null,null,null,"Otro     "]
[null,null,null,null,null,null,null,null,null,null,null,null,null,null,null,null,null,null,null,"Sí - No"]
[null,null,null,null,null,null,null,null,null,null,null,null,null,null,null,1,"Innovación educativa"]
[null,null,"118.C ¿EL SERVICIO/NIVEL EDUCATIVO REALIZA EL ACOMPAÑAMIENTO A LAS ACTIVIDADES",null,null,null,null,null,null,null,null,null,null,null,null,2,"Buena práctica pedagógica"]
[null,null,null,"PEDAGÓGICAS RELACIONADAS A PROCESOS DE ENSEÑANZA Y APRENDIZAJE HÍBRIDO?"]
[null,null,null,null,null,null,null,null,null,null,null,null,null,"125.C. EN LOS ÚLTIMOS DOCE (12) MESES, ¿ESTE SERVICIO/NIVEL EDUCATIVO CONTÓ"]
[null,null,null," Sí",null," No  ",null,null,null,null,null,null,null,null,"CON ALGÚN PROYECTO DE INNOVACIÓN EDUCATIVA O BUENA PRÁCTICA"]
[null,null,null,null,null,null,null,null,null,null,null,null,null,null,"PEDAGÓGICA ENMARCADOS EN ALGUNA DE LAS SIGUIENTES TEMÁTICAS/EJES?"]
[]
[null,null,"119.C. SEÑOR(A) DIRECTOR(A), DURANTE EL AÑO 2022 Y HASTA EL MOMENTO DEL CENSO",null,null,null,null,null,null,null,null,null,null,null,null,"Temática / Eje",null,null,null,"Innovación educativa",null,"Buena práctica pedagógica"]
[null,null,null,"EDUCATIVO 2023, EN SU CONDICIÓN DE DIRECTOR(A), ¿USTED HA RECIBIDO ALGÚNA VISITA"]
[null,null,null,"POR PARTE DE LOS ESPECIALISTAS DE UGEL Y/O DRE?",null,null,null,null,null,null,null,null,null,null,null,null,null,null,null,"SI","NO","SI","NO"]
[null,null,null,null,null,null,null,null,null,null,null,null,null,{"$f":"CONCATENATE(T447,U447,V447,W447)","v":""},1,"Gestión escolar"]
[null,null,null," Sí",null," No  ",null,null,null,"Pase a la pregunta 121.C",null,null,null,{"$f":"CONCATENATE(T448,U448,V448,W448)","v":""},2,"Mejoramiento del Servicio Educativo"]
[null,null,null,null,null,null,null,null,null,null,null,null,null,"",3,"Humanidades"]
[null,null,null,null,null,null,"Marque con una “X”, una o más opciones",null,null,null,null,null,null,"",4,"Ciencias"]
[null,null,null,null,null,null,null,null,null,null,null,null,null,"",5,"Medio ambiente"]
[null,null,null,null,null,null,"Nro.","Institución",null,null,null,"PEDA-",null,"",6,"Violencia escolar (Bullying, acoso)"]
[null,null,null,null,null,null,null,null,null,null,{"$f":"COUNTIF(L454:L457,\"X\")","v":0},"GÓGICO",null,"",7,"Emprendimientos, productivos"]
[null,null,null,null,null,null,1,"DRE",null,null,null,null,null,"",8,"Inclusión"]
[null,null,null,null,null,null,2,"UGEL",null,null,null,null,null,"",9,"Nuevas tecnologías"]
[null,null,null,null,null,null,3,"MINEDU",null,null,null,null,null,"",10,"Otro"]
[null,null,null,null,null,null,4,"Otros",null,null,null,null,null,null,null,null,null,null,null,{"$f":"COUNTIF(T447:U456,\"X\")","v":0},null,{"$f":"COUNTIF(V447:W456,\"X\")","v":0}]
[null,null,null,null,null,null,null,null,null,null,null,null,null,"126.C. SEÑALE MARCANDO CON UNA \"X\" SI EN LOS ÚLTIMOS 12 MESES HA CONTADO CON ALIADOS"]
[null,null,null,null,null,null,null,null,null,null,null,null,null,null,"ESTRATÉGICOS QUE LE HAN BENEFICIADO CON ALGÚN INCENTIVO ECONÓMICO PARA LA"]
[null,null,"120.C. ¿QUÉ TEMÁTICAS SE HAN ABORDADO EN LAS ASISTENCIAS PEDAGÓGICAS",null,null,null,null,null,null,null,null,null,null,null,"IMPLEMENTACIÓN Y/O SOSTENIBILIDAD DE SU INNOVACIÓN O BUENA PRÁCTICA PEDAGÓGICA"]
[null,null,null,"QUE HA RECIBIDO POR PARTE DE LOS ESPECIALISTAS DE DRE/UGEL?"]
[null,null,null,"Marque con una  “X” una o más opciones"]
[null,null,null,null,null,null,null,null,null,null,null,null,null,null,null,"Aliados Estratégicos",null,null,"Innovación Educativa",null,"Buena práctica pedagógica"]
[null,null,null,null,null,"Planificación curricular"]
[null,null,null,null,null,"Metodología y estrategias didácticas",null,null,null,null,null,null,null,null,null,null,null,null,"SI","NO","SI","NO"]
[null,null,null,null,null,"Retroalimentación, criterios e instrumentos de evaluación",null,null,null,null,null,null,null,{"$f":"CONCATENATE(S466,T466,U466,V466)","v":""},1,"Gobierno regional"]
[null,null,null,null,null,"Soporte emocional",null,null,null,null,null,null,null,{"$f":"CONCATENATE(S467,T467,U467,V467)","v":""},2,"DRE/UGEL"]
[null,null,null,null,null,"Experiencias pedagógicas innovadoras",null,null,null,null,null,null,null,"",3,"Gobierno local"]
[null,null,null,null,null,"Acompañamiento pedagógico",null,null,null,null,null,null,null,"",4,"Aliados privados"]
[null,null,null,null,null,"Implementación de Refuerzo Escolar",null,null,null,null,null,null,null,"",5,"MINEDU-FONDEP"]
[null,null,null,null,null,"Atención Diferenciada",null,null,null,null,null,null,null,"",6,"Padres y madres de familia"]
[null,null,null,null,null,"Otros",null,null,null,null,null,null,null,"",7,"Recursos propios de la IE"]
[null,null,null,null,null,"Ninguna",null,null,null,null,null,null,null,"",8,"Otro"]
[null,null,null,null,null,null,null,null,null,null,null,null,null,null,null,null,null,null,{"$f":"COUNTIF(S466:T473,\"X\")","v":0},null,{"$f":"COUNTIF(U466:V473,\"X\")","v":0}]

{"sheet":"C101","index":2,"n_rows":161,"n_cols":22,"rows_kept":161,"cut":false,"hidden":false,"merged":[[160,8,160,11],[160,17,160,20],[134,6,134,10],[142,21,142,22],[143,21,143,22],[146,6,146,10],[154,10,154,11],[154,17,154,22],[156,8,156,11],[157,8,157,11],[158,17,158,22],[159,8,159,10],[159,17,159,22],[132,19,132,22],[34,2,34,12],[39,18,41,19],[40,2,40,12],[40,20,40,22],[64,21,64,22],[78,8,78,9],[96,9,96,11],[98,20,98,22],[109,6,109,10],[18,18,20,22],[20,6,20,10],[30,20,30,22],[1,6,1,20],[2,6,2,20],[9,14,11,21],[11,4,11,9],[17,19,17,20]]}
[]
[null,null,null,null,null,null,"CENSO EDUCATIVO 2023"]
[null,null,null,null,null,null,"MATRÍCULA, DOCENTES Y MATERIALES EDUCATIVOS"]
[]
[]
["GESTIÓN"]
[{"$f":"IF(OR(UPPER('C100'!J29)=\"X\",UPPER('C100'!O29)=\"X\"),\"X\",\"\")","v":""},null,"D. SOBRE LA BASE DEL CENSO DE POBLACIÓN Y VIVIENDA 2017 DEL INEI"]
[{"$f":"IF(UPPER('C100'!T29)=\"X\",\"X\",\"\")","v":""},null,"101.D  SEGÚN LAS COSTUMBRES Y EL ORIGEN FAMILIAR, ¿USTED CONSIDERA QUE SU SERVICIO/NIVEL"]
[null,null,null,"EDUCATIVO CUENTA CON ESTUDIANTES PERTENECIENTES A LOS SIGUIENTES"]
[null,null,null,"GRUPOS ÉTNICOS?",null,null,null,null,null,null,null,null,null,null,"SOLO SI MARCÓ DOS O MÁS ALTERNATIVAS EN LA PREGUNTA ANTERIOR, RESPONDA:"]
[]
[null,null,null,"COD.","GRUPO ÉTNICO",null,null,null,null,null,{"$f":"COUNTIF(L13:L21,\"SI\")","v":0}," SI - NO"]
[null,null,null,1,"Quechua",null,null,null,null,null,null,null,{"$f":"IF(L13=\"SI\",1,0)","v":0}]
[null,null,null,2,"Aimara",null,null,null,null,null,null,null,{"$f":"IF(L14=\"SI\",1,0)","v":0}]
[null,null,null,3,"Nativo o indígena de la Amazonía",null,null,null,null,null,null,null,0]
[null,null,null,4,"Perteneciente o parte de otro pueblo indígena u originario",null,null,null,null,null,null,null,0,"102.D  ¿EXISTE UN GRUPO QUE TENGA MAYOR CANTIDAD DE ESTUDIANTES?"]
[null,null,null,5,"Negro moreno, zambo, mulato/Pueblo afroperuano o afrodescendiente",null,null,null,null,null,null,null,0]
[null,null,null,6,"Blanco",null,null,null,null,null,null,null,0,null,"Sí",null,null,null,"Código"]
[null,null,null,7,"Mestizo",null,null,null,null,null,null,null,0,null,null,null,null,null,"Indique el grupo étnico en el que identifica mayor cantidad de estudiantes utilizando el COD. seleccionado en la pregunta 101.D"]
[null,null,null,8,"Asiático peruano",null,null,null,null,null,null,null,0,null,"No"]
[null,null,null,9,"Otro  especifique",null,null,null,null,null,null,null,0]
[null,null,null,null,null,null,null,null,null,null,{"$f":"IF(K12>1,\"X\",\"\")","v":""},{"$f":"COUNTIF(L13:L21,\"SI\")+COUNTIF(L13:L21,\"NO\")","v":0}]
[]
[]
[null,null,"E. CARACTERÍSTICAS DE LA ENSEÑANZA EN CONTEXTOS BILINGÜES - SOLO GESTIÓN PÚBLICA",null,null,null,null,null,null,null,null,null,null,null,null,null,null,null,""]
[null,null,null,null,null,null,null,null,null,null,null,null,null,null,null,null,null,null,""]
[null,null,"101.E  ESTE SERVICIO/NIVEL EDUCATIVO, ¿ESTÁ RECONOCIDO COMO EIB?",null,null,null,null,null,null,null,null,null,null,"104.E. USTED, SEÑOR(A) DIRECTOR(A), ¿CONOCE SI EN LA COMUNIDAD DONDE SE"]
[null,null,null,null,null,null,null,null,null,null,null,null,null,null,"ENCUENTRA EL SERVICIO/NIVEL EDUCATIVO, LOS PADRES DE FAMILIA, OTROS"]
[null,null,null,null,null,"EIB de Fortalecimiento",null,null,null,null,null,null,null,null,"ADULTOS Y/O ANCIANOS Y ANCIANAS HABLAN UNA LENGUA ORIGINARIA?"]
[null,null,null,"Sí",null,"EIB de Revitalización"]
[null,null,null,null,null,"EIB en Ámbitos Urbano",null,null,null,null,null,null,null,null,null,null,null,null,null,"¿Qué lengua originaria?  "]
[null,null,null,null,null,null,null,null,{"$f":"CONCATENATE(I30,I31)","v":""},null,null,null,null,null,"Sí",null,null,null,null,null,null,"Anote el código según la"]
[null,null,null,"No",null,null,"Pase a la pregunta 104.E",null,null,null,null,null,null,null,null,null,null,null,null,null,null,"tabla de Lenguas Originarias"]
[null,null,null,null,null,null,null,null,null,null,null,null,null,null,"No",null,null,null,null,null,null,"de la página 18."]
[null,null,"SOLO SI ES EIB DE FORTALECIMIENTO, RESPONDA:",null,null,null,null,null,null,null,null,null,null,null,null,null,null,null,""]
[null,null,"102.E. ESTE SERVICIO/NIVEL EDUCATIVO, ¿OFRECE ENSEÑANZA DEL CASTELLANO COMO",null,null,null,null,null,null,null,null,null,null,"105. E.  LOS ESTUDIANTES DE ESTE SERVICIO/NIVEL EDUCATIVO,  ¿HABLAN UNA LENGUA"]
[null,null,null,"SEGUNDA LENGUA?",null,null,null,null,null,null,null,null,null,null,"ORIGINARIA?"]
[null,null,null,null,null,null,null,null,null,null,null,null,null,null,null,null,null,null,""]
[null,null,null,"Sí",null,null,null,null," No",null,null,null,null,null,"Sí"]
[null,null,null,null,null,null,null,null,null,null,null,null,null,null,null,null,"Todos",null,"¿Qué\nlengua  originaria?"]
[null,null,"SOLO SI ES EIB DE REVITALIZACIÓN O EIB EN ÁMBITOS URBANOS, RESPONDA:",null,null,null,null,null,null,null,null,null,null,null,null,null,"La mayoría"]
[null,null,"103.E. ESTE SERVICIO/NIVEL EDUCATIVO, ¿OFRECE ENSEÑANZA DE LA LENGUA ORIGINARIA COMO ",null,null,null,null,null,null,null,null,null,null,null,null,null,"Pocos"]
[null,null,null,"SEGUNDA LENGUA?",null,null,null,null,null,null,null,null,null,null,null,null,null,{"$f":"CONCATENATE(R42,R41,R40)","v":""},null,null,null,"Anote el código según la"]
[null,null,null,null,null,null,null,null,null,null,null,null,null,null,"No",null,null,null,null,null,null,"tabla de Lenguas Originarias"]
[null,null,null,"Sí",null,null,null,null," No",null,null,null,null,null,null,null,null,null,null,null,null,"de la página 23."]
[]
[]
[null,null,"F. ATENCIÓN A LA DIVERSIDAD Y SOBRE EL SERVICIO DE APOYO Y ASESORAMIENTO A LAS NECESIDADES EDUCATIVAS ESPECIALES - SAANEE"]
[null,null,"101.F. ESTE SERVICIO/NIVEL EDUCATIVO ¿TIENE TECNOLOGÍA PARA RESPONDER A LAS NECESIDADES",null,null,null,null,null,null,null,null,null,null,"106.F.  ¿CUÁNTOS DOCENTES DE ESTE SERVICIO/NIVEL EDUCATIVO HAN RECIBIDO ASISTENCIA Y"]
["Lengua originaria",null,null,"EDUCATIVAS ESPECIALES (NEE) DE LOS ESTUDIANTES?",null,null,null,null,null,null,null,null,null,null,"ORIENTACIÓN PARA LA ATENCIÓN EDUCATIVA DE ESTUDIANTES CON DISCAPACIDAD DE PARTE"]
["0200: Achuar",null,null,"Sí",null,null,null,null,"No",null,null,null,null,null,"DEL EQUIPO DE SERVICIO DE APOYO Y ASESORAMIENTO DE LAS NECESIDADES EDUCATIVAS"]
["0300: Aimara",null,null,null,null,null,null,null,null,null,null,null,null,null,"ESPECIALES (SAANEE) ?"]
["0400: Amahuaca",null,"102.F. ESTE SERVICIO/NIVEL EDUCATIVO ¿CUENTA CON MATERIALES EDUCATIVOS PARA ATENDER A",null,null,null,null,null,null,null,null,null,null,null,null,null,null,"Cantidad"]
["0500: Arabela",null,null," ESTUDIANTES CON NECESIDADES EDUCATIVAS ESPECIALES (NEE)?"]
["0600: Asháninka",null,null,"Sí",null,null,null,null,"No",null,null,null,null,"107.F. ¿ALGUNO DE LOS DOCENTES DE ESTE SERVICIO/NIVEL EDUCATIVO HAN RECIBIDO O RECIBEN"]
["0610: Asheninka",null,null,null,null,null,null,null,null,null,null,null,null,null," CAPACITACIÓN EN TEMAS RELACIONADOS A INCLUSIÓN Y ATENCIÓN A LA DIVERSIDAD EN LOS"]
["0700: Awajún",null,"103.F.  EL LOCAL DONDE OPERA ESTE SERVICIO/NIVEL EDUCATIVO, ¿CUENTA CON INFRAESTRUCTURA",null,null,null,null,null,null,null,null,null,null,null," ÚLTIMOS 2 AÑOS?"]
["0800: Bora",null,null,"PARA RESPONDER A LA DIVERSIDAD O LAS NEE, (RAMPA, SEÑALÉTICA, ENTRE OTROS)?",null,null,null,null,null,null,null,null,null,null,null,null,null,null,"¿DE QUIEN RECIBIERON O RECIBEN?"]
["0900: Kapanawa",null,null,"Sí",null,null,null,null,"No",null,null,null,null,null,"Sí",null,null,null,null,null,"Minedu"]
["1000: Cashinahua",null,null,null,null,null,null,null,null,null,null,null,null,null,null,null,null,null,null,null,"DRE/GRE"]
["1100: Kawki",null,null,null,null,"¿Es suficiente? ",null,null,null,null,null,null,null,null,null,null,null,null,null,null,"UGEL"]
["1200: Chamikuro",null,null,null,null,null,null,null,null,null,null,null,null,null,null,null,null,null,null,null,"Organizaciones sin fines de lucro"]
["1300: Ese eja",null,null,null,null,"Sí",null,null,"No",null,null,null,null,null,"No",null,null,null,null,null,"Entidad privada, como auspicio"]
["1400: Harakbut",null,null,null,null,null,null,null,null,null,null,null,null,null,null,null,null,null,null,null,"Inversión propia"]
["1500: Iñapari",null,"104.F. ESTE SERVICIO/NIVEL EDUCATIVO, ¿CUENTA CON UN ESPECIALISTA DEL EQUI PO DE SERVICIO",null,null,null,null,null,null,null,null,null,null,null,null,null,null,null,null,null,"Otros"]
["1600: Ikuitu",null,null,"DE APOYO Y ASESORAMIENTO DE LAS NECESIDADES EDUCATIVAS ESPECIALES (SAANEE) QUE "]
["1700: Iskonawa",null,null,"LE HAYA SIDO ASIGNADO?",null,null,null,null,null,null,null,null,null,"108.F. ¿EL SERVICIO/NIVEL EDUCATIVO HA RECIBIDO ASISTENCIA Y ORIENTACION"]
["1800: Jaqaru",null,null,"Sí",null,null,null,null,"No",null,null,null,null,null,"PARA LA ATENCION EDUCATIVA DE ESTUDIANTES CON DISCAPACIDAD, DE"]
["1900: Kakataibo",null,null,null,null,null,null,null,null,null,null,null,null,null,"PARTE DEL SERVICIO DE APOYO EDUCATIVO VIRTUAL (SAEV)?"]
["2000: Kakinte (caquinte)",null,"105.F. DURANTE EL PRESENTE AÑO, ESTE SERVICIO/NIVEL EDUCATIVO ¿HA RECIBIDO ASISTENCIA Y"]
["2110: Kandozi (Chapra)",null,null,"ORIENTACIÓN PARA LA ATENCIÓN EDUCATIVA DE ESTUDIANTES CON DISCAPACIDAD, DE PARTE",null,null,null,null,null,null,null,null,null,null,"Sí",null,null,"No"]
["2120: Kandozi (Kandozi)",null,null,"DEL EQUIPO DE SERVICIO DE APOYO Y ASESORAMIENTO DE LAS NECESIDADES EDUCATIVAS"]
["2200: Kukama-kukamiria",null,null,"ESPECIALES (SAANEE)?"]
["2300: Madija (culina)",null,null,null,null,null,null,null,null,null,null,null,null,null,null,null,null,"¿Cuántos estudiantes con discapacidad están a cargo de los"]
["2400: Maijiki",null,null,"Sí",null,"No  ",null,null,null,"Pase a la pregunta 107.F",null,null,null,null,null,null,null,"docentes que han recibido asistencia y orientación por el"]
["2500: Matsés",null,null,null,null,null,null,null,null,null,null,null,null,null,null,null,null,"Servicio de Apoyo Educativo Virtual (SAEV)?"]
["2600: Matsigenka",null,null,null,null,"¿Cuántas asesorías (presenciales o virtuales) ha brindado el equipo SAANEE a este "]
["2700: Munichi",null,null,null,null,"servicio educativo 2022?"]
["2800: Murui-muinani",null,null,null,null,null,null,null,"Cantidad :",null,null,null,null,null,null,null,null,"Cantidad"]
["2900: Matsigenka-montetokunirira"]
["3000: Nomatsigenga"]
["3100: Ocaina"]
["3200: Omagua",null,"109.F.  ¿DURANTE LOS ÚLTIMOS 5 AÑOS, EL PERSONAL DE ESTE SERVICIO/NIVEL EDUCATIVO",null,null,null,null,null,null,null,null,null,null,"113.F. DE LAS ACTIVIDADES QUE REALIZA CON FAMILIAS Y COMUNIDAD, ¿POR LO MENOS"]
["3310: Quechua amazónico (Kichwa)",null,null,"(YA SEA PERSONAL DIRECTIVO/JERÁRQUICO, PERSONAL DOCENTE, AUXILIARES O PERSONAL",null,null,null,null,null,null,null,null,null,null,"UNA DE ELLAS TIENE COMO EJE PRINCIPAL LA EDUCACIÓN INCLUSIVA?"]
["3321: Quechua central (Ancash)",null,null,"ADMINISTRATIVO), HA RECIBIDO CAPACITACIÓN EN TEMAS DE EDUCACIÓN INCLUSIVA O "]
["3322: Quechua central (Huánuco)",null,null,"ATENCIÓN A LA DIVERSIDAD DE PARTE DE ESPECIALISTAS DE DRE/GRE Y/O UGEL, O ALGUNA",null,null,null,null,null,null,null,null,null,null,"Sí",null,null,"No"]
["3323: Quechua central (Wanka)",null,null,"OTRA INSTITUCIÓN?"]
["3324: Quechua central (Pasco)"]
["3331: Quechua norteño (Cajamarca)",null,null,null,null,null,null,null,null,null,null,null,null,"114.F. ¿EL SERVICIO/NIVEL EDUCATIVO, CUENTA CON EL SERVICIO DE APOYO EDUCATIVO"]
["3332: Quechua norteño (Inkawasi Kañaris)",null,null,null,null,null,"¿Qué instancia o institución brindó la capacitación?",null,null,null,null,null,null,null,"INTERNO (SAEI)?"]
["3341: Quechua sureño (Chanka)",null,null,"Sí",null,null,null,null,"Minedu"]
["3342: Quechua sureño (Collao)",null,null,null,null,null,null,null,"DRE/GRE",null,null,null,null,null,"Sí",null,"¿Cuántas personas lo integran?"]
["3400: Resígaro",null,null,null,null,null,null,null,"UGEL"]
["3500: Secoya",null,null,null,null,null,null,null,"Organizaciones sin fines de lucro",null,null,null,null,null,"No",null,"¿Por qué?"]
["3600: Sharanahua",null,null,"No",null,null,null,null,"Entidad privada, como auspicio",null,null,null,null,null,null,null,"Marque con una “X”, una o más opciones"]
["3700: Shawi",null,null,null,null,null,null,null,"Inversión propia"]
["3800: Shipibo-Konibo",null,null,null,null,null,null,null,"Otros",null,null,null,null,null,null,null,null,null,"Aún no cuentan con lineamientos para implementarlo."]
["3900: Shiwilu",null,null,null,null,null,null,null,null,null,null,null,null,null,null,null,null,null,"Aún desconocen las funciones del SAEI."]
["4000: Taushiro",null,null,null,null,null,null,null,null,null,null,null,null,null,null,null,null,null,"Otro motivo"]
["4100: Ticuna"]
["4200: Urarina",null,"110.F  ¿QUÉ ESTRATEGIAS FORMATIVAS VIRTUALES PRIORIZARÍA SOBRE TEMAS DE"]
["4300: Wampis",null,null,"EDUCACIÓN INCLUSIVA O ATENCIÓN A LA DIVERSIDAD?",null,null,null,null,null,null,null,null,null,"115.F. EL SERVICIO/NIVEL EDUCATIVO, DE ACUERDO AL DIAGNÓSTICO DE LOGROS DE APRENDIZAJE"]
["4400: Yagua",null,null,null,null,null,null,null,null,null,null,null,null,null,"DE LAS/OS ESTUDIANTES QUE REQUIEREN MAYORES APOYOS EDUCATIVOS ¿HA ELABORADO"]
["4500: Yaminahua",null,null,null,null,"Curso virtual tutorado",null,null,null,null,null,null,null,null,"PLANES EDUCATIVOS PERSONALIZADOS (PEP)?"]
["4600: Yanesha",null,null,null,null,"Curso virtual autoformativo"]
["4700: Yine",null,null,null,null,"Grupo o círculo de interaprendizaje",null,null,null,null,null,null,null,null,"Sí",null,null,"No"]
["4800: Nahua",null,null,null,null,"Comunidades profesionales de apendizaje"]
[null,null,null,null,null,"Asesoría personalizada",null,null,null,null,null,null,null,null,null,null,"¿Todos los/as estudiantes con alguna necesidad"]
["LENGUA EXTRANJERA: ",null,null,null,null,"Pasantia",null,null,null,null,null,null,null,null,null,null,"educativa cuentan con un PEP?"]
["5100: Alemán",null,null,null,null,"Otros "]
["5200: Inglés",null,null,null,null,null,null,null,null,null,null,null,null,null,null,null,"Sí  ",null,null,"No"]
["5300: Italiano"]
["5400: Japonés",null,"111.F.  ¿EL SERVICIO/NIVEL EDUCATIVO, CUENTA CON RESPONSABLE DE INCLUSIÓN?"]
["5500: Portugués",null,null,null,null,null,null,null,null,null,null,null,null,"116.F. ¿EN LOS PLANES TUTORIALES SE HA PRIORIZADO ALGÚN TEMA SOBRE EL EJE"]
["5600: Ruso",null,null,"Sí",null,null,null,null,"No",null,null,null,null,null,"DE INCLUSIÓN Y ATENCIÓN A LA DIVERSIDAD?"]
["5700: Francés"]
["5800: Otra lengua extranjera",null,null,null,null,"¿Este personal labora a tiempo completo?",null,null,null,null,null,null,null,null,"Sí",null,null,"No"]
[]
["SI - NO",null,null,null,null,"Sí  ",null,null,"No"]
["SI",null,null,null,null,null,null,null,null,null,null,null,null,"117.F. EN EL AÑO 2022, ¿ESTE SERVICIO/NIVEL EDUCATIVO HA INCORPORADO ACCIONES"]
["NO",null,null,null,null,null,null,null,null,null,null,null,null,null,"Y CAMBIOS EN LA GESTIÓN PARA ATENDER A LA DIVERSIDAD Y BRINDAR"]
[null,null,"112.F. DESDE EL AÑO 2021 HASTA HOY, EN ESTE SERVICIO/NIVEL EDUCATIVO, ¿HA IMPLEMENTADO",null,null,null,null,null,null,null,null,null,null,null,"UNA EDUCACIÓN INCLUSIVA SEGÚN LAS NORMATIVAS VIGENTES?"]
[null,null,null,"MEDIDAS Y ACCIONES EN FAVOR DE LA INCLUSIÓN Y ATENCIÓN A LA DIVERSIDAD DE LAS/OS"]
[null,null,null,"ESTUDIANTES Y/O DOCENTES? (EN CUMPLIMIENTO DEL D.S. N° 007-2021-MINEDU)",null,null,null,null,null,null,null,null,null,null,"Sí",null,null,"No"]
[]
[null,null,null,"Sí",null,null,"No",null,null,null,null,null,null,null,null,null,"¿Precise los documentos de gestión?"]
[null,null,null,null,null,null,null,null,null,null,null,null,null,null,null,null,"Marque con una “X”, una o más opciones"]
[]
[null,null,null,null,null,null,null,"¿Por qué?",null,null,null,null,null,null,null,null,null,null,"Proyecto Educativo Institucional (PEI)"]
[null,null,null,null,"Marque con una “X”, una o más opciones",null,null,null,null,null,null,null,null,null,null,null,null,null,"Plan Anual de Trabajo (PAT)"]
[null,null,null,null,null,null,null,null,null,null,null,null,null,null,null,null,null,null,"Proyecto Curricular Institucional (PCI)"]
[null,null,null,null,null,"Aún no cuentan con responsable de inclusión.",null,null,null,null,null,null,null,null,null,null,null,null,"Reglamento Interno (RI)"]
[null,null,null,null,null,"Aún desconocen sobre el D.S. 007-2021-MINEDU respecto a la educación inclusiva.",null,null,null,null,null,null,null,null,null,null,null,null,"Otros"]
[null,null,null,null,null,"Aún no cuentan con orientaciones para implementar la educación inclusiva."]
[null,null,null,null,null,"Otro motivo"]
[]
[]
[null,null,"G. SUPERVISIÓN DE LA PRESTACIÓN DEL SERVICIO EDUCATIVO - SOLO GESTIÓN PRIVADA"]
[null,null,"101.G.  EN EL PRESENTE AÑO 2022, ¿ESTE NIVEL/SERVICIO EDUCATIVO FUE SUPERVISADO",null,null,null,null,null,null,null,null,null,null,"103.G.  FORMA DE CONSTITUCIÓN (Sólo para personas jurídicas)"]
[null,null,null,"  POR LA UGEL A LA QUE PERTENECE?",null,null,null,null,null,null,null,null,null,null,"Marque con un aspa ‘’x’’ y registra la información solicitada según corresponda"]
[]
[null,null,null," Sí",null,null,null," No  ",null,null,null,null,null,null,null,"  Sociedad"]
[null,null,null,null,null,null,null,null,null,null,null,null,null,null,null,null,null,"N° de Partida Regristral  "]
[null,null,null,null,null,"¿Qué aspectos fueron supervisados?",null,null,null,null,null,null,null,null,null,null,null,"N° de Asiento Registral  "]
[null,null,null,null,null,"Entrega de información a los usuarios(as) respecto del servicio educativo"]
[null,null,null,null,null,"Infraestructura educativa",null,null,null,null,null,null,null,null,null,"  Asociación"]
[null,null,null,null,null,"Otros"]
[]
[null,null,null,null,null,null,null,null,null,null,null,null,null,"104.G. ¿ESTE SERVICIO/NIVEL EDUCATIVO PERTENECE A ALGUNA ASOCIACIÓN"]
[null,null,"102.G. COMPLETE LOS SIGUIENTES DATOS SOBRE LA PROMOTORÍA DE ESTE NIVEL",null,null,null,null,null,null,null,null,null,null,null,"QUE AGRUPE A II.EE. PRIVADAS?"]
[null,null,null,"SERVICIO EDUCATIVO DE GESTIÓN PRIVADA"]
[null,null,null,"Marque con un aspa ‘’X’’ y registra la información solicitada según corresponda",null,null,null,null,null,null,null,null,null,null," Sí",null,null,null," No  "]
[null,null,null,"TIpo de persona:"]
[]
[null,null,null,null,null,"  Natural",null,"DNI/CE",null,":",null,null,null,null,"Nombre de la asociación :"]
[]
[null,null,null,null,null,null,null,"Nombres  ",null,null,null,null,null,null,"Datos de contacto de la asociación:"]
[null,null,null,null,null,null,null,"Apellidos  "]
[null,null,null,null,null,null,null,null,null,null,null,null,null,null,null,null,"Web "]
[null,null,null,null,null,"  Jurídica",null,"RUC  ",null,null,null,null,null,null,null,null,"Correo electrónico "]
[null,null,null,null,null,null,null,"Razón social  ",null,null,null,null,null,null,null,null,"Teléfono/celular "]

{"sheet":"C200","index":3,"n_rows":91,"n_cols":21,"rows_kept":91,"cut":false,"hidden":false,"merged":[[83,4,83,5],[1,5,1,16],[2,5,2,16],[69,13,69,14],[69,15,69,16],[49,13,49,14],[49,15,49,16],[37,4,39,7],[6,2,6,20],[11,19,11,20],[11,13,11,14],[11,9,11,10],[11,11,11,12],[10,4,12,4],[10,5,11,6],[40,2,43,3],[69,17,69,18],[69,19,69,20],[77,4,77,5],[68,2,70,4],[68,6,70,6],[68,7,69,8],[69,9,69,10],[69,11,69,12],[49,17,49,18],[49,19,49,20],[63,4,63,5],[48,2,50,4],[48,6,50,6],[48,7,49,8],[49,9,49,10],[49,11,49,12],[23,2,25,3],[38,9,38,14],[11,15,11,16],[11,17,11,18],[37,9,37,14],[21,2,22,3],[21,4,22,4],[21,8,22,8],[21,5,22,5],[21,6,22,6],[21,7,22,7],[13,2,15,3],[10,2,12,3],[11,7,11,8]]}
[null,""]
[null,"",null,null,null,"CENSO EDUCATIVO 2023"]
[null,"",null,null,null,"MATRÍCULA, DOCENTES Y MATERIALES EDUCATIVOS"]
[]
[]
[]
[null,null,"200. MATRICULA Y SECCIONES"]
[]
[null,null,201,"MATRÍCULA TOTAL POR EDADES, SEGÚN TURNO DE ENSEÑANZA"]
[]
[null,null,"VARIABLE",null,"TURNO","TOTAL",null,"EDADES"]
[null,null,null,null,null,null,null,0,null,1,null,2,null,3,null,4,null,5,null,"6 y más"]
[null,null,null,null,null,"H","M","H","M","H","M","H","M","H","M","H","M","H","M","H","M"]
["00",null,"MATRÍCULA",null,"TOTAL",{"$f":"H14+J14+L14+N14+P14+R14+T14","v":0},0,{"$f":"SUM(H15:H16)","v":0},0,{"$f":"SUM(J15:J16)","v":0},0,0,0,0,0,0,0,0,0,0,0]
["01",null,null,null,"MAÑANA",0,0]
["02",null,null,null,"TARDE",0,0]
[null,null,"Nota:","Incluya todos los estudiantes matriculados en este Servicio/Nivel Educativo, así la prestación de servicio sea presencial, semipresencial o virtual."]
[]
[]
[null,null,202,"SECCIONES POR EDADES, SEGÚN TURNO DE ENSEÑANZA"]
[]
[null,null,"VARIABLE",null,"TURNO",null,null,null,"TOTAL","EDADES"]
[null,null,null,null,null,null,null,null,null,0,1,2,3,4,"5 y más"]
["00",null,"SECCIONES",null,"TOTAL",null,null,null,{"$f":"SUM(J24:O24)","v":0},{"$f":"SUM(J25:J26)","v":0},{"$f":"SUM(K25:K26)","v":0},0,0,0,0]
["01",null,null,null,"MAÑANA",null,null,null,{"$f":"SUM(J25:O25)","v":0}]
["02",null,null,null,"TARDE",null,null,null,{"$f":"SUM(J26:O26)","v":0}]
[]
[]
[null,null,"203. ESTE SERVICIO/NIVEL EDUCATIVO, ¿CUENTA CON ESPACIOS O AMBIENTES DE ATENCIÓN POR GRUPOS MULTIEDAD?"]
[]
[null,null,"NOTA:","Espacios o ambientes multiedad, se refiere a estudiantes de",null,null,null,"Sí",null,null,"No"]
[null,null,null,"diferentes edades que son atendidos a la vez y de manera"]
[null,null,null,"conjunta en un mismo espacio o ambiente educativo.",null,null,null,null,null,null,null,null,"Pase al cuadro 205"]
[]
[]
[null,null,204,"DETALLE DE EDADES O GRUPOS DE EDAD SEGÚN ESPACIO O AMBIENTE MULTIEDAD"]
[]
[null,null,null,null,"Detalle de Espacio o ambiente Multiedad",null,null,null,null,"Edades o grupos de edad atendidas en el"]
[null,null,"NOTA :",null,null,null,null,null,null,"Espacio o ambiente Multiedad"]
[null,null,null,null,null,null,null,null,{"$f":"COUNTIF(J41:O44,\"X\")","v":0},0,1,2,3,4,"5 y más"]
["01",null,"Marque con una “X” dos o más edades por cada fila  según corresponda",null,"Espacio o ambiente Multiedad (1)",null,null,null,{"$f":"COUNTIF(J41:O41,\"X\")","v":0}]
["02",null,null,null,"Espacio o ambiente Multiedad (2)",null,null,null,{"$f":"COUNTIF(J42:O42,\"X\")","v":0}]
["03",null,null,null,"Espacio o ambiente Multiedad (3)",null,null,null,{"$f":"COUNTIF(J43:O43,\"X\")","v":0}]
["04",null,null,null,"Espacio o ambiente Multiedad (4)",null,null,null,{"$f":"COUNTIF(J44:O44,\"X\")","v":0}]
[]
[]
["SI - NO",null,205,"MATRÍCULA TOTAL POR GRADO DE ESTUDIO Y SEXO, SEGÚN TIPO DE DISCAPACIDAD"]
[]
["SI",null,"TIPO DE DISCAPACIDAD",null,null,null,"Elija una opción","TOTAL",null,"EDADES"]
["NO",null,null,null,null,{"$f":"COUNTIF(G53:G64,\"SI\")","v":0},null,null,null,0,null,1,null,2,null,3,null,4,null,"5 y más"]
[null,null,null,null,null,{"$f":"COUNTIF(G53:G64,\"SI\") + COUNTIF(G53:G64,\"NO\")","v":0},null,"H","M","H","M","H","M","H","M","H","M","H","M","H","M"]
["00",null,"TOTAL",null,null,null,"SN",{"$f":"SUM(H53:H64)","v":0},{"$f":"SUM(I53:I64)","v":0},{"$f":"SUM(J53:J64)","v":0},{"$f":"SUM(K53:K64)","v":0},0,0,0,0,0,0,0,0,0,0]
["01",null,"Discapacidad Intelectual - Leve",null,null,null,null,{"$f":"J53+L53+N53+P53+R53+T53","v":0},0]
["02",null,"Discapacidad Intelectual - Moderada",null,null,null,null,0,0]
["03",null,"Discapacidad Auditiva - Hipoacusia",null,null,null,null,0,0]
["04",null,"Discapacidad Auditiva - Sordera",null,null,null,null,0,0]
["05",null,"Discapacidad Visual - Baja Visión",null,null,null,null,0,0]
["06",null,"Discapacidad Visual - Ceguera",null,null,null,null,{"$f":"J58+L58+N58+P58+R58+T58","v":0},0]
["07",null,"Discapacidad Física o Motora",null,null,null,null,0,0]
["08",null,"TEA - Requiere de apoyo (Nivel 1)",null,null,null,null,0,0]
["09",null,"TEA - Requiere de apoyo notable  (Nivel 2)",null,null,null,null,0,0]
["10",null,"TEA - Requiere de apoyo muy notable  (Nivel 3)",null,null,null,null,0,0]
["11",null,"Sordoceguera",null,null,null,null,0,0]
["12",null,"Otra discapacidad",null,null,null,null,0,0]
[]
[]
[null,null,206,"MATRÍCULA TOTAL POR GRADO DE ESTUDIO Y SEXO, SEGÚN OTRAS CONDICIONES DETECTADAS"]
[]
[null,null,"OTRAS CONDICIONES DETECTADAS",null,null,null,"Elija una opción","TOTAL",null,"EDADES"]
[null,null,null,null,null,{"$f":"COUNTIF(G73:G91,\"SI\")","v":0},null,null,null,0,null,1,null,2,null,3,null,4,null,"5 y más"]
[null,null,null,null,null,{"$f":"COUNTIF(G73:G91,\"SI\") + COUNTIF(G73:G91,\"NO\")","v":0},null,"H","M","H","M","H","M","H","M","H","M","H","M","H","M"]
["00",null,"TOTAL",null,null,null,"SN",{"$f":"SUM(H73:H91)","v":0},0,{"$f":"SUM(J73:J91)","v":0},{"$f":"SUM(K73:K91)","v":0},0,0,{"$f":"SUM(N73:N91)","v":0},0,0,0,0,0,0,0]
["01",null,"Retraso global del desarrollo",null,null,null,null,{"$f":"J73+L73+N73+P73+R73+T73","v":0},{"$f":"K73+M73+O73+Q73+S73+U73","v":0}]
["02",null,"Trastorno por Déficit de Atención - TDAH",null,null,null,null,0,0]
["03",null,"TEA - Dislexia",null,null,null,null,0,0]
["04",null,"TEA - Discalculia",null,null,null,null,0,0]
["05",null,"TEA - Disgrafia",null,null,null,null,0,0]
["06",null,"TEA - Otros",null,null,null,null,0,0]
["07",null,"Esquizofrenia (E)",null,null,null,null,0,0]
["08",null,"Depresión (D)",null,null,null,null,0,0]
["09",null,"Ansiedad (A)",null,null,null,null,0,0]
["10",null,"Trastornos de personalidad",null,null,null,null,0,0]
["11",null,"Otros",null,null,null,null,0,0]
["12",null,"Enfermedades Raras",null,null,null,null,0,0]
["13",null,"Talla Baja",null,null,null,null,0,0]
["14",null,"Menos de 15 días de hospitalización",null,null,null,null,0,0]
["15",null,"De 15 a 30 días de hospitalización",null,null,null,null,0,0]
["16",null,"Más de 30 días de hospitalización",null,null,null,null,0,0]
["17",null,"Talento",null,null,null,null,0,0]
["18",null,"Superdotación",null,null,null,null,{"$f":"J90+L90+N90+P90+R90+T90","v":0},{"$f":"K90+M90+O90+Q90+S90+U90","v":0}]
["19",null,"Otras condiciones relacionadas",null,null,null,null,0,0]

{"sheet":"C300","index":4,"n_rows":428,"n_cols":64,"rows_kept":428,"cut":false,"hidden":false,"merged":[[16,37,18,37],[16,56,18,56],[16,39,18,39],[16,38,18,38],[16,61,17,61],[16,54,17,54],[16,40,16,45],[17,50,18,50],[17,47,18,47],[17,48,18,48],[17,49,18,49],[16,32,18,32],[16,26,18,26],[16,33,18,33],[16,34,18,34],[16,36,18,36],[16,35,18,35],[16,30,18,30],[16,31,18,31],[1,14,1,22],[2,14,2,22],[16,12,18,12],[16,13,18,13],[16,27,18,27],[16,22,18,22],[16,23,18,23],[16,24,18,24],[16,14,18,14],[16,21,17,21],[6,11,6,25],[16,11,18,11],[16,17,18,17],[16,18,18,18],[16,19,18,19],[16,15,16,16],[15,15,15,16],[16,25,18,25],[16,20,18,20],[16,28,18,28],[16,29,18,29],[16,63,18,63],[15,40,15,45],[15,46,15,49],[15,50,15,52],[16,46,16,49],[16,50,16,52],[16,53,17,53],[16,55,17,55],[16,57,17,57],[16,60,17,60],[16,62,18,62],[17,46,18,46],[17,51,17,52],[16,59,18,59],[16,58,17,58],[17,40,17,45]]}
[]
[null,null,null,null,null,null,null,null,null,null,null,null,null,null,"CENSO EDUCATIVO 2023"]
[null,null,null,null,null,null,null,null,null,null,null,null,null,null,"MATRÍCULA, DOCENTES Y MATERIALES EDUCATIVOS"]
[]
["PERSONAL",{"$f":"P10+V10+Y10","v":0}]
[]
["DOCENTES",{"$f":"COUNTIF(R20:R219,\"01: Docente\")","v":0},null,null,null,null,null,null,null,null,null,"300. PERSONAL DOCENTE, AUXILIARES DE EDUCACIÓN Y ADMINISTRATIVOS  (Para II.EE. Públicas y Privadas)"]
["AUXILIARES",{"$f":"COUNTIF(R20:R219,\"03: Aux. de Educación\")","v":0},null,null,null,null,null,null,null,null,null,"Anote los totales del personal que labora en el Servicio/Nivel educativo:"]
["ADMINISTRATIVOS",{"$f":"COUNTIF(R20:R219,\"02: Administrativo\")","v":0}]
["DOCENTE DE AULA",{"$f":"COUNTIF(AJ20:AJ219,\"05: (111)-Docente de Aula\")","v":0},null,null,null,null,null,null,null,null,null,null,null,null,"Total Docentes : ",null,null,"Docentes de Aula : ",null,null,"Auxiliar de Educación  : ",null,null,"Administrativos : "]
["DOCENTES CON SECCIÓN",{"$f":"COUNTIF(AN20:AN219,\"SI\")","v":0}]
[null,{"$f":"B7+B8+B9","v":0},null,null,null,null,null,null,null,null,null,"El “Total Docentes”, considera a todos los que cumplen funciones docentes en el Servicio/Nivel educativo: Directivos con o sin aula a cargo, docentes de aula, jefes o jerárquicos, especiales (ed. física, computación, etc.)"]
["LICENCIA",{"$f":"COUNTIF(AL20:AL219,\"01: En uso de Licencia\")","v":0},null,null,null,null,null,null,null,null,null,"En el caso de Auxiliares de Educación y Personal que cumple funciones administrativas, anote el total en los recuadros correspondientes."]
[null,null,null,null,null,null,null,null,null,10]
[null,null,null,null,null,null,null,null,null,null,null,null,null,null,null,null,null,null,null,null,null,null,null,null,"G. Pública",null,null,null,null,null,null,"G. Pública",null,null,"G. Pública",null,null,null,"G. Pública",null,null,null,null,null,null,null,null,null,null,null,null,null,null,null,"G. Pública"]
["DOC. LENGUA ORIGINARIA",{"$f":"SUM(B229:B428)","v":0},null,null,null,null,null,null,null,null,null,null,301.10000000000002,301.2,301.3,302,null,303,304,305,306,307,308,309,310,311,312,313,314,315,316,317,318,319,320,321,322,323,324,325,326,null,null,null,null,null,327,null,null,null,328,null,null,329,330,331,332,333,333.1,333.2,333.3,334.1,334.2,334.3]
["GESTION",{"$f":"IF(OR('C100'!J29=\"X\",'C100'!O29=\"X\"),1,IF('C100'!T29=\"X\",3,\"\"))","v":""},null,null,null,null,null,null,null,null,null,"Nº","Apellido Paterno","Apellido Materno","Nombres","Documento de Identidad",null,"Tipo de\nPersonal","Edad","Sexo","Lengua\nmaterna","¿Domina una\nlengua\noriginaria?","Lengua originaria\nque domina","Fuente de\nfinanciamiento","Condición Laboral","Modalidad de Contrato","Máximo nivel\neducativo alcanzado","Especialidad Pedagógica\nque ha estudiado","¿En qué tipo de\ninstitución obtuvo\nsu formación pedagógica?","Segunda especialidad","Estudios de Postgrado en Pedagogía","Tiempo de Servicio\n(en años)","Años de Experiencia Laboral","Años de\nexperiencia\nlaboral en\neste servicio / nivel\neducativo","Escala\nMagisterial","Función o cargo","Situación en cargo\ndirectivo","Licencia \no\nDestaque","Jornada Laboral según\nNombramiento\no Contrato","¿Tiene secciones a cargo?","Edades Atendidas",null,null,null,null,null,"Conocimiento de Ingles",null,null,null,"Certificación de Inglés",null,null,"¿El docente enseña inglés?","Desde el año 2022 a la fecha, ¿ha recibido capacitación en la implementación del Currículo Nacional?","¿Cuenta con constancia de participación en el curso virtual autoformativo vinculado al Currículo Nacional de la Educación Básica Perú Educa?","¿En qué turno(s) labora este personal docente o administrativo?","¿ Atiende a estudiantes con NEE asociadas a discapacidad ?","¿Presenta alguna discapacidad?","Solo si respondió Sí en la pregunta\n333.1 ¿Cúal es el tipo de discapacidad?","¿Ha recibido asistencia y orientación para la atención educativa de estudiantes con discapacidad del equipo SAEV?","¿Recibió asesoría pedagógica en el marco de refuerzo escolar?","Solo si respondió Sí en la pregunta 334.1 ¿cuántas veces desde el inicio del año lectivo, recibió asesoría pedagógica en el marco de refuerzo escolar?","Solo si respondió Sí en la pregunta 334.1 Sobre qué temas ha recibido asistencia técnica"]
[null,null,"Exp1","Exp2","Exp3","Exp4","Exp5","Exp6","Exp7",null,null,null,null,null,null,302.10000000000002,302.2,null,null,null,null,null,null,null,null,null,null,null,null,null,null,null,null,null,null,null,null,null,null,null,"Marque con una “X”, según corresponda",null,null,null,null,null,"No Sabe","Habla","Lee","Escribe","No Tiene","Si Tiene"]
["302.1 Tipo de documento de Identidad","314. Tipo de inst. donde estudio","Corr","Escala","Gest","Secc","Fun- cion","Duplex","Fmt",null,null,null,null,null,null,null,null,null,null,null,null,null,null,null,null,null,null,null,null,null,null,null,null,null,null,null,null,null,null,null,0,1,2,3,4,5,null,null,null,null,null,null,null,"SI - NO","SI - NO","SI - NO",null,"SI - NO","SI - NO",null,"SI - NO","SI - NO"]
["01: DNI.","01: IESP (Público)",1,{"$f":"IF(AND(LEFT(R20,2)=\"01\",LEFT(X20,2)=\"01\",LEFT(Y20,2)=\"01\",E20=1),1,0)","v":0},{"$f":"$B$17","v":""},{"$f":"COUNTIF(AO20:AT20,\"X\")","v":0},{"$f":"IF(R20<>\"\",VALUE(LEFT(R20,2)),0)","v":0},{"$f":"IF(Q20<>\"\",COUNTIF($Q$20:$Q$219,Q20),0)","v":0},{"$f":"IF(L20<>\"\",1,0)","v":0},null,null,{"$f":"IF($C20<=$B$5,C20,\"\")","v":""}]
["02: Carnet Ext.","02: IESP (Privado)",2,{"$f":"IF(AND(LEFT(R21,2)=\"01\",LEFT(X21,2)=\"01\",LEFT(Y21,2)=\"01\",E21=1),1,0)","v":0},{"$f":"$B$17","v":""},{"$f":"COUNTIF(AO21:AT21,\"X\")","v":0},{"$f":"IF(R21<>\"\",VALUE(LEFT(R21,2)),0)","v":0},{"$f":"IF(Q21<>\"\",COUNTIF($Q$20:$Q$219,Q21),0)","v":0},0,null,null,{"$f":"IF($C21<=$B$5,C21,\"\")","v":""}]
["03: Pasaporte","03: Universidad Privada",3,0,"",0,0,0,0,null,null,""]
[null,"04: Universidad Pública",4,0,"",0,0,0,0,null,null,""]
["303. Tipo de Personal",null,5,0,"",0,0,0,0,null,null,""]
["01: Docente","315. Segunda Especialidad",6,0,"",0,0,0,0,null,null,""]
["02: Administrativo","Utilice las especialidades de la tabla de códigos 313.",7,0,"",0,0,0,0,null,null,""]
["03: Aux. de Educación",null,8,0,"",0,0,0,0,null,null,""]
[null,"316. Estudios de Postgrado en Pedagogía",9,0,"",0,0,0,0,null,null,""]
["305. Sexo","Estudios de Maestría y doctorado",10,0,"",0,0,0,0,null,null,""]
["Hombre","01: Maestria concluida con grado",11,0,"",0,0,0,0,null,null,""]
["Mujer","02: Maestria concluida sin grado",12,0,"",0,0,0,0,null,null,""]
[null,"03: Maestria en proceso",13,0,"",0,0,0,0,null,null,""]
["306. Lengua Materna","04: Doctorado concluido con grado",14,0,"",0,0,0,0,null,null,""]
["0100: Castellano","05: Doctorado concluido sin grado",15,0,"",0,0,0,0,null,null,""]
["0200: Achuar","06: Doctorado en proceso",16,0,"",0,0,0,0,null,null,""]
["0300: Aimara","07: Sin Postgrado",17,0,"",0,0,0,0,null,null,""]
["0400: Amahuaca",null,18,0,"",0,0,0,0,null,null,""]
["0500: Arabela",null,19,0,"",0,0,0,0,null,null,""]
["0600: Asháninka","317. Tiempo de Servicio",20,0,"",0,0,0,0,null,null,""]
["0610: Asheninka","Solo personal Nombrado.",21,0,"",0,0,0,0,null,null,""]
["0700: Awajún","Tiempo contado expresado en años desde su fecha de Nombramiento",22,0,"",0,0,0,0,null,null,""]
["0800: Bora",null,23,0,"",0,0,0,0,null,null,""]
["0900: Kapanawa","318. Años de Experiencia Laboral",24,0,"",0,0,0,0,null,null,""]
["1000: Cashinahua","Registre el total de años que tiene como experiencia",25,0,"",0,0,0,0,null,null,""]
["1100: Kawki","en el Tipo de Personal que se está registrando (Tabla 301.)",26,0,"",0,0,0,0,null,null,""]
["1200: Chamikuro",null,27,0,"",0,0,0,0,null,null,""]
["1300: Ese eja","319. Años de experiencia laboral en este servicio/ nivel educativo",28,0,"",0,0,0,0,null,null,""]
["1400: Harakbut","Anote el N° de años de experiencia prestando servicios",29,0,"",0,0,0,0,null,null,""]
["1500: Iñapari","en este servicio/nivel educativo por el tipo de personal",30,0,"",0,0,0,0,null,null,""]
["1600: Ikuitu","que se está registrando (Tabla 301.)",31,0,"",0,0,0,0,null,null,""]
["1700: Iskonawa",null,32,0,"",0,0,0,0,null,null,""]
["1800: Jaqaru","320. Escala Magisterial",33,0,"",0,0,0,0,null,null,""]
["1900: Kakataibo","Complete los datos de Escala Magisterial, según corresponda",34,0,"",0,0,0,0,null,null,""]
["2000: Kakinte (caquinte)","01: Primera",35,0,"",0,0,0,0,null,null,""]
["2110: Kandozi (Chapra)","02: Segunda",36,0,"",0,0,0,0,null,null,""]
["2120: Kandozi (Kandozi)","03: Tercera",37,0,"",0,0,{"$f":"IF(Q56<>\"\",COUNTIF($Q$20:$Q$219,Q56),0)","v":0},{"$f":"IF(L56<>\"\",1,0)","v":0},null,null,""]
["2200: Kukama-kukamiria","04: Cuarta",38,0,"",0,0,0,0,null,null,""]
["2300: Madija (culina)","05: Quinta",39,0,"",0,0,0,0,null,null,""]
["2400: Maijiki","06: Sexta",40,0,"",0,0,0,0,null,null,""]
["2500: Matsés","07: Séptima",41,0,"",0,0,0,0,null,null,""]
["2600: Matsigenka","08: Octava",42,0,"",0,0,0,0,null,null,""]
["2700: Munichi","09: Sin Escala",43,0,"",0,0,0,0,null,null,""]
["2800: Murui-muinani",null,44,0,"",0,0,0,0,null,null,""]
["2900: Matsigenka-montetokunirira","321. Función o Cargo",45,0,"",0,0,0,0,null,null,""]
["3000: Nomatsigenga","(Desempeñado a la fecha de reporte)",46,0,"",0,0,0,0,null,null,""]
["3100: Ocaina","Docentes",47,0,"",0,0,0,0,null,null,""]
["3200: Omagua","01: (101)-Director General",48,0,"",0,0,0,0,null,null,""]
["3310: Quechua amazónico (Kichwa)","02: (102)-Director",49,0,"",0,0,0,0,null,null,""]
["3321: Quechua central (Ancash)","03: (103)-Sub Director",50,0,"",0,0,0,0,null,null,""]
["3322: Quechua central (Huánuco)","04: (106)-Coordinador, Asesor",51,0,"",0,0,0,0,null,null,""]
["3323: Quechua central (Wanka)","05: (111)-Docente de Aula",52,0,"",0,0,0,0,null,null,""]
["3324: Quechua central (Pasco)","06: (116)-Docente de Aula con función o cargo directivo",53,0,"",0,0,0,0,null,null,""]
["3331: Quechua norteño (Cajamarca)","07: (139)-Otro docente",54,0,"",0,0,0,0,null,null,""]
["3332: Quechua norteño (Inkawasi Kañaris)",null,55,0,"",0,0,0,0,null,null,""]
["3341: Quechua sureño (Chanka)",null,56,0,"",0,0,0,0,null,null,""]
["3342: Quechua sureño (Collao)",null,57,0,"",0,0,0,0,null,null,""]
["3400: Resígaro",null,58,0,"",0,0,0,0,null,null,""]
["3500: Secoya",null,59,0,"",0,0,0,0,null,null,""]
["3600: Sharanahua",null,60,0,"",0,0,0,0,null,null,""]
["3700: Shawi",null,61,0,"",0,0,0,0,null,null,""]
["3800: Shipibo-Konibo",null,62,0,"",0,0,0,0,null,null,""]
["3900: Shiwilu",null,63,0,"",0,0,0,0,null,null,""]
["4000: Taushiro",null,64,0,"",0,0,0,0,null,null,""]
["4100: Ticuna",null,65,0,"",0,0,0,{"$f":"IF(L84<>\"\",1,0)","v":0},null,null,""]
["4200: Urarina",null,66,{"$f":"IF(AND(LEFT(R85,2)=\"01\",LEFT(X85,2)=\"01\",LEFT(Y85,2)=\"01\",E85=1),1,0)","v":0},{"$f":"$B$17","v":""},{"$f":"COUNTIF(AO85:AT85,\"X\")","v":0},{"$f":"IF(R85<>\"\",VALUE(LEFT(R85,2)),0)","v":0},{"$f":"IF(Q85<>\"\",COUNTIF($Q$20:$Q$219,Q85),0)","v":0},0,null,null,{"$f":"IF($C85<=$B$5,C85,\"\")","v":""}]
["4300: Wampis",null,67,0,"",0,0,0,0,null,null,""]
["4400: Yagua","Administrativos",68,0,"",0,0,0,0,null,null,""]
["4500: Yaminahua","08: (501)-Psicólogo",69,0,"",0,0,0,0,null,null,""]
["4600: Yanesha","09: (502)-Trabajo social / Servicio social",70,0,"",0,0,0,0,null,null,""]
["4700: Yine","10: (503)-Personal de Salud",71,0,"",0,0,0,0,null,null,""]
["4800: Nahua","11: (504)-Administrador o contador",72,0,"",0,0,0,0,null,null,""]
["5100: Alemán","12: (537)-Guía intérprete de sordoceguera",73,0,"",0,0,0,0,null,null,""]
["5200: Inglés","13: (538)-Intérprete de Lengua de Señas Peruana",74,0,"",0,0,0,0,null,null,""]
["5300: Italiano","14: (539)-Modelo Lingüístico",75,0,"",0,0,0,0,null,null,""]
["5400: Japonés","15: (505)-Otro personal profesional",76,0,"",0,0,0,0,null,null,""]
["5500: Portugués","16: (506)-Auxiliar de Biblioteca",77,0,"",0,0,0,0,null,null,""]
["5600: Ruso","17: (507)-Auxiliar de Laboratorio",78,0,"",0,0,0,0,null,null,""]
["5700: Francés","18: (508)-Secretaria u Oficinista",79,0,"",0,0,0,0,null,null,""]
["5800: Otra lengua extranjera","19: (510)-Coordinador de Taller",80,0,"",0,0,0,0,null,null,""]
[null,"20: (511)-Asistente Administrativo",81,0,"",0,0,0,0,null,null,""]
["308. Lengua Originaria","21: (512)-Personal de Servicio - Mantenimiento",82,0,"",0,0,0,0,null,null,""]
["De: 0200 a 4800","22: (513)-Personal de Servicio - Cocina",83,0,"",0,0,0,0,null,null,""]
[null,"23: (514)-Personal de Servicio - Limpieza",84,0,"",0,0,0,0,null,null,""]
["309. Fuente de Financiamiento","24: (515)-Personal de Servicio - Portero",85,0,"",0,0,0,0,null,null,""]
["01: Sector Educación","25: (516)-Personal de Servicio - Vigilante",86,0,"",0,0,0,0,null,null,""]
["02: Otro sector público","26: (517)-Otro personal de servicio",87,0,"",0,0,0,0,null,null,""]
["03: Municipalidad","27: (518)-Otro personal No profesional",88,0,"",0,0,0,0,null,null,""]
["04: Gobierno Regional",null,89,0,"",0,0,0,0,null,null,""]
["05: APAFA",null,90,0,"",0,0,0,0,null,null,""]
["06: Otra fuente Privada",null,91,0,"",0,0,0,0,null,null,""]
[null,null,92,0,"",0,0,0,0,null,null,""]
["310. Condición Laboral",null,93,0,"",0,0,0,0,null,null,""]
["01: Nombrado",null,94,0,"",0,0,0,0,null,null,""]
["02: Contratado",null,95,0,"",0,0,0,0,null,null,""]
["03: No aplica",null,96,0,"",0,0,0,0,null,null,""]
[null,null,97,0,"",0,0,0,0,null,null,""]
["311. Modalidad de Contrato",null,98,0,"",0,0,0,0,null,null,""]
["Contrato Público",null,99,0,"",0,0,0,0,null,null,""]
["01: A plazo fijo D. Leg. 728",null,100,0,"",0,0,0,0,null,null,""]
["02: Locación de Serv. / Honorarios",null,101,0,"",0,0,0,0,null,null,""]
["03: CAS - D. Leg. 1057","99: (999)-Auxiliar de Educación",102,0,"",0,0,0,0,null,null,""]
["04: Contrato D. Leg. 276",null,103,0,"",0,0,0,0,null,null,""]
["05: Contrato Ley 30328","322. Situación en el Cargo Directivo",104,0,"",0,0,0,0,null,null,""]
["06: Otra modalidad","01: Titular ratificado eval.2014",105,0,"",0,0,0,0,null,null,""]
["Contrato Privado","02: Titular designado eval. 2015, 2016 y 2018",106,0,"",0,0,0,0,null,null,""]
["07: A plazo indefinido (Permanente)","03: Titular otro",107,0,"",0,0,0,0,null,null,""]
["08: Plazo fijo (Tiempo determinado)","04: Encargado por función, sin doc. formal",108,0,"",0,0,0,0,null,null,""]
["09: A tiempo parcial (por horas)","05: Encargado",109,0,"",0,0,0,0,null,null,""]
["10: Locación de Serv. / Honorarios",null,110,0,"",0,0,0,0,null,null,""]
["11: Otra modalidad","323. Destaque o Licencia",111,0,"",0,0,0,0,null,null,""]
[null,"01: Cubriendo una licencia",112,0,"",0,0,0,0,null,null,""]
["312. Máximo Nivel Educativo Alcanzado","02: De otra I.E./DRE/UGEL",113,0,"",0,0,0,0,null,null,""]
["01: EP.Concluidos con título","03: No Aplica",114,0,"",0,0,0,0,null,null,""]
["02: EP.Concluidos sin título",null,115,0,"",0,0,0,0,null,null,""]
["03: EP.No concluidos",null,116,0,"",0,0,0,0,null,null,""]
["04: NP.Concluidos con título",null,117,0,"",0,0,0,0,null,null,""]
["05: NP.Concluidos sin título","324. Jornada Laboral (Nombramiento / Contrato)",118,0,"",0,0,0,0,null,null,""]
["06: NP.No concluidos","40: 40 horas",119,0,"",0,0,0,0,null,null,""]
["07: Secundaria","30: 30 horas",120,0,"",0,0,0,0,null,null,""]
["08: Primaria","25: 25 horas",121,0,"",0,0,0,0,null,null,""]
[null,"24: 24 horas",122,0,"",0,0,0,0,null,null,""]
["313. Especialidad del Título","23: Menos 24 horas",123,0,"",0,0,0,0,null,null,""]
["01: Educación Inicial",null,124,0,"",0,0,0,0,null,null,""]
["02: Educación Primaria","SI / NO",125,0,"",0,0,0,0,null,null,""]
["03: E.I. Intercultural Bilingüe","SI",126,0,"",0,0,0,0,null,null,""]
["04: E.P. Intercultural Bilingüe","NO",127,0,"",0,0,0,0,null,null,""]
["05: Educación Básica Alternativa",null,128,0,"",0,0,0,0,null,null,""]
["06: Educación Especial","331. Especialidad Artistica",129,0,"",0,0,0,{"$f":"IF(L148<>\"\",1,0)","v":0},null,null,""]
["07: Educación Física","01: Danza",130,{"$f":"IF(AND(LEFT(R149,2)=\"01\",LEFT(X149,2)=\"01\",LEFT(Y149,2)=\"01\",E149=1),1,0)","v":0},{"$f":"$B$17","v":""},{"$f":"COUNTIF(AO149:AT149,\"X\")","v":0},{"$f":"IF(R149<>\"\",VALUE(LEFT(R149,2)),0)","v":0},{"$f":"IF(Q149<>\"\",COUNTIF($Q$20:$Q$219,Q149),0)","v":0},0,null,null,{"$f":"IF($C149<=$B$5,C149,\"\")","v":""}]
["08: Educación Artística","02: Música",131,0,"",0,0,0,0,null,null,""]
["09: E.S. Lengua y Literatura","03: Teatro",132,0,"",0,0,0,0,null,null,""]
["10: E.S. Comunicación","04: Artes visuales",133,0,"",0,0,0,0,null,null,""]
["11: E.S. Matemática y Física","05: Otra",134,0,"",0,0,0,0,null,null,""]
["12: E.S. Matemática","336.2 ¿Cuál es el tipo de discapacidad?",135,0,"",0,0,0,0,null,null,""]
["13: E.S. CCSS y Filosofía","01: Auditiva",136,0,"",0,0,0,0,null,null,""]
["14: E.S. Ciencias Sociales","02: Visual",137,0,"",0,0,0,0,null,null,""]
["15: E.S. Ciencias Naturales","03: Física o Motora",138,0,"",0,0,0,0,null,null,""]
["16: E.S. Ciencia Tecnología y Ambiente","04: Otras",139,0,"",0,0,0,0,null,null,""]
["17: E.S. Alimentación y Nutrición",null,140,0,"",0,0,0,0,null,null,""]
["18: E.S. Biología y Química","337.3 Asistencia Técnica",141,0,"",0,0,0,0,null,null,""]
["19: E.S. Historia y Geografía","01: Uso pedagógico de los cuadernos",142,0,"",0,0,0,0,null,null,""]
["20: E.S. CC.HH. Sociales","02: TICs",143,0,"",0,0,0,0,null,null,""]
["21: E.S. Idioma Inglés","03: Inclusión Financiera",144,0,"",0,0,0,0,null,null,""]
["22: Educación Religiosa","04: Prevención de la violencia",145,0,"",0,0,0,0,null,null,""]
["23: E.S. Educación Familiar","05: Otro",146,0,"",0,0,0,0,null,null,""]
["24: E.T. Artes Industriales","06: No recibió asistencia técnica",147,0,"",0,0,0,0,null,null,""]
["25: E.T. Artesanía",null,148,0,"",0,0,0,0,null,null,""]
["26: E.T. Agropecuaria","339.3 ¿Cuál fue el tipo de estudios en EIB?",149,0,"",0,0,0,0,null,null,""]
["27: E.T. Construcción en madera","01: Doctorado",150,0,"",0,0,0,0,null,null,""]
["28: E.T. Computación e Informática","02: Maestría",151,0,"",0,0,0,0,null,null,""]
["29: E.T. Carpintería/Ebanistería","03: Segunda especialidad",152,0,"",0,0,0,0,null,null,""]
["30: E.T. Electricidad","04: Especialización",153,0,"",0,0,0,0,null,null,""]
["31: E.T. Electrónica","05: Actualización",154,0,"",0,0,0,0,null,null,""]
["32: E.T. Ebanistería","06: Otro",155,0,"",0,0,0,0,null,null,""]
["33: E.T. Industria del Vestido",null,156,0,"",0,0,0,0,null,null,""]
["34: E.T. Industria del Vestido Alimentación y Alta Costura","Parroquiales",157,0,"",0,0,0,0,null,null,""]
["35: E.T. en Industria del Vestido y Alta Costura","05: APAFA",158,0,"",0,0,0,0,null,null,""]
["36: E.T.Técnica Esp. Ind. del Vestido Ind.Alimentaria y Artes","06: Otra fuente Privada",159,0,"",0,0,0,0,null,null,""]
["37: E.T. Industria Alimentaria","01: Sector Educación",160,0,"",0,0,0,0,null,null,""]
["38: E.T. Mecánica Automotriz",null,161,0,"",0,0,0,0,null,null,""]
["39: E.T. Mecánica de Producción",null,162,0,"",0,0,0,0,null,null,""]
["40: E.T. Mecánica de Producción y Soldadura",null,163,0,"",0,0,0,0,null,null,""]
["41: E.T. Textilería",null,164,0,"",0,0,0,0,null,null,""]
["42: Otra pedagógica",null,165,0,"",0,0,0,0,null,null,""]
[null,null,166,0,"",0,0,0,0,null,null,""]
[null,null,167,0,"",0,0,0,0,null,null,""]
["Area curriculares","332 ¿En qué turno(s)",168,0,"",0,0,0,0,null,null,""]
["01: Matemática","11: Sólo en la mañana",169,0,"",0,0,0,0,null,null,""]
["02: Comunicación","12: Sólo en la tarde",170,0,"",0,0,0,0,null,null,""]
["03: Ingles","13: Mañana y tarde",171,0,"",0,0,0,0,null,null,""]
["04: Ciencias Sociales","14: Sólo en la noche",172,0,"",0,0,0,0,null,null,""]
["05: Desarrollo personal ciudadania …","15: Mañana, tarde y noche",173,0,"",0,0,0,0,null,null,""]
["06: Educación Física","16: Mañana y noche",174,0,"",0,0,0,0,null,null,""]
["07: Ciencia y Tecnología","17: Tarde y noche",175,0,"",0,0,0,0,null,null,""]
["08: Castellano como segunda lengua","20: Discontinuo",176,0,"",0,0,0,0,null,null,""]
["09: Educación para el trabajo",null,177,0,"",0,0,0,0,null,null,""]
["10: Educación religiosa",null,178,0,"",0,0,0,0,null,null,""]
["11: Tutoría y Orientación Educativa",null,179,0,"",0,0,0,0,null,null,""]
["12: Arte y cultura",null,180,0,"",0,0,0,0,null,null,""]
[null,null,181,0,"",0,0,0,0,null,null,""]
[null,null,182,0,"",0,0,0,0,null,null,""]
[null,null,183,0,"",0,0,0,0,null,null,""]
[null,null,184,0,"",0,0,0,0,null,null,""]
[null,null,185,0,"",0,0,0,0,null,null,""]
[null,null,186,0,"",0,0,0,0,null,null,""]
[null,null,187,0,"",0,0,0,0,null,null,""]
[null,null,188,0,"",0,0,0,0,null,null,""]
[null,null,189,0,"",0,0,0,0,null,null,""]
[null,null,190,0,"",0,0,0,0,null,null,""]
[null,null,191,0,"",0,0,0,0,null,null,""]
[null,null,192,0,"",0,0,0,0,null,null,""]
[null,null,193,0,"",0,0,0,{"$f":"IF(L212<>\"\",1,0)","v":0},null,null,""]
[null,null,194,{"$f":"IF(AND(LEFT(R213,2)=\"01\",LEFT(X213,2)=\"01\",LEFT(Y213,2)=\"01\",E213=1),1,0)","v":0},{"$f":"$B$17","v":""},{"$f":"COUNTIF(AO213:AT213,\"X\")","v":0},{"$f":"IF(R213<>\"\",VALUE(LEFT(R213,2)),0)","v":0},{"$f":"IF(Q213<>\"\",COUNTIF($Q$20:$Q$219,Q213),0)","v":0},0,null,null,{"$f":"IF($C213<=$B$5,C213,\"\")","v":""}]
[null,null,195,0,"",0,0,0,0,null,null,""]
[null,null,196,0,"",0,0,0,0,null,null,""]
[null,null,197,0,"",0,0,0,0,null,null,""]
[null,null,198,0,"",0,0,0,0,null,null,""]
[null,null,199,0,"",0,0,0,0,null,null,""]
[null,null,200,0,"",0,{"$f":"IF(R219<>\"\",VALUE(LEFT(R219,2)),0)","v":0},0,{"$f":"IF(L219<>\"\",1,0)","v":0},null,null,""]
[]
[null,null,null,null,null,null,null,null,null,null,null,"….","….","….","….","….","….","….","….","….","….","….","….","….","….","….","….","….","….","….","….","….","….","….","….","….","….","….","….","….","….","….","….","….","….","….","….","….","….","….","….","….","….","….","….","….","….","….","….","….","….","….","….","…."]
[]
[]
[]
[]
[]
[]
[]
["1",{"$f":"IF(AND(R20=\"01: Docente\",V20=\"SI\"),1,0)","v":0}]
["2",0]
["3",0]
["4",0]
["5",0]
["6",0]
["7",0]
["8",0]
["9",0]
["10",0]
["11",0]
["12",0]
["13",0]
["14",0]
["15",0]
["16",0]
["17",0]
["18",0]
["19",0]
["20",0]
["21",0]
["22",0]
["23",0]
["24",0]
["25",0]
["26",0]
["27",0]
["28",0]
["29",0]
["30",0]
["31",0]
["32",0]
["33",0]
["34",0]
["35",0]
["36",0]
["37",0]
["38",0]
["39",0]
["40",0]
["41",0]
["42",0]
["43",0]
["44",0]
["45",0]
["46",0]
["47",0]
["48",0]
["49",0]
["50",0]
["51",0]
["52",0]
["53",0]
["54",0]
["55",0]
["56",0]
["57",0]
["58",0]
["59",0]
["60",0]
["61",0]
["62",0]
["63",0]
["64",0]
["65",0]
["66",{"$f":"IF(AND(R85=\"01: Docente\",V85=\"SI\"),1,0)","v":0}]
["67",0]
["68",0]
["69",0]
["70",0]
["71",0]
["72",0]
["73",0]
["74",0]
["75",0]
["76",0]
["77",0]
["78",0]
["79",0]
["80",0]
["81",0]
["82",0]
["83",0]
["84",0]
["85",0]
["86",0]
["87",0]
["88",0]
["89",0]
["90",0]
["91",0]
["92",0]
["93",0]
["94",0]
["95",0]
["96",0]
["97",0]
["98",0]
["99",0]
["100",0]
["101",0]
["102",0]
["103",0]
["104",0]
["105",0]
["106",0]
["107",0]
["108",0]
["109",0]
["110",0]
["111",0]
["112",0]
["113",0]
["114",0]
["115",0]
["116",0]
["117",0]
["118",0]
["119",0]
["120",0]
["121",0]
["122",0]
["123",0]
["124",0]
["125",0]
["126",0]
["127",0]
["128",0]
["129",0]
["130",{"$f":"IF(AND(R149=\"01: Docente\",V149=\"SI\"),1,0)","v":0}]
["131",0]
["132",0]
["133",0]
["134",0]
["135",0]
["136",0]
["137",0]
["138",0]
["139",0]
["140",0]
["141",0]
["142",0]
["143",0]
["144",0]
["145",0]
["146",0]
["147",0]
["148",0]
["149",0]
["150",0]
["151",0]
["152",0]
["153",0]
["154",0]
["155",0]
["156",0]
["157",0]
["158",0]
["159",0]
["160",0]
["161",0]
["162",0]
["163",0]
["164",0]
["165",0]
["166",0]
["167",0]
["168",0]
["169",0]
["170",0]
["171",0]
["172",0]
["173",0]
["174",0]
["175",0]
["176",0]
["177",0]
["178",0]
["179",0]
["180",0]
["181",0]
["182",0]
["183",0]
["184",0]
["185",0]
["186",0]
["187",0]
["188",0]
["189",0]
["190",0]
["191",0]
["192",0]
["193",0]
["194",{"$f":"IF(AND(R213=\"01: Docente\",V213=\"SI\"),1,0)","v":0}]
["195",0]
["196",0]
["197",0]
["198",0]
["199",0]
["200",0]

{"sheet":"C335","index":5,"n_rows":121,"n_cols":32,"rows_kept":121,"cut":false,"hidden":false,"merged":[[16,9,16,11],[6,6,6,17],[1,9,1,15],[2,9,2,15],[17,13,18,13],[17,7,18,7],[17,9,17,11],[17,6,18,6],[17,8,18,8]]}
[]
[null,null,null,null,null,null,null,null,null,"CENSO EDUCATIVO 2023"]
[null,null,null,null,null,null,null,null,null,"MATRÍCULA, DOCENTES Y MATERIALES EDUCATIVOS"]
[]
[null,{"$f":"O12","v":0}]
[]
[null,null,null,null,null,null,"DOCENTES QUE DOMINAN LENGUA ORIGINARIA (Solo para II.EE. Públicas)"]
[]
[null,null,null,null,null,null,null,"334. SEGÚN LO ANOTADO EN LA PREGUNTA 307, ¿CUENTA CON UN DOCENTE QUE DOMINE UNA LENGUA ORIGINARIA?"]
["GESTIÓN",null,null,null,null,null,null,"Hacer click en el botón [Verificar] para revisar los docentes que dominan una lengua originaria"]
[{"$f":"IF(OR('C100'!J29=\"X\",'C100'!O29=\"X\"),1,IF('C100'!T29=\"X\",3,\"\"))","v":""}]
[{"$f":"IF(OR('C100'!J30=\"X\",'C100'!O30=\"X\"),1,IF('C100'!T30=\"X\",3,\"\"))","v":""}]
[]
[null,null,null,null,null,null,null,null,null,null,null,null,null,"Pase a la sección 400."]
[]
[]
[null,null,null,null,null,null,null,null,null,335.1,null,null,335.2,335.3,335.4,335.5,335.6,335.7]
["330.3 ¿Cuál fue el tipo",null,null,null,null,null,"Nº","Nº de fila registrado en la pregunta 307","Documento de Identidad","Conocimiento de\nlengua originaria",null,null,"¿Cuenta con estudios en Educación Intercultural Bilingüe?","Solo si respondió \"SÍ\"\n en la pregunta 334.2\n¿Cuál fue el tipo de\nestudios en EIB?","¿Ha recibido\ncapacitación en EIB?","¿El docente enseña\nen lengua originaria?","¿El material recibido coincide con la lengua que enseña?","¿En la actualidad el Docente se encuentra en el Registro de Docentes Bilingües?"]
["de estudios en EIB?","Corr","Gest","Fmt",null,null,null,null,null,"Habla","Lee","Escribe"," SI - NO",null," SI - NO"," SI - NO"," SI - NO"," SI - NO"]
["01: Doctorado",1,{"$f":"$A$11","v":""},{"$f":"IF($G20<>\"\",1,0)","v":0},null,null,{"$f":"IF($B20<=$O$12,B20,\"\")","v":""},null,null,null,null,null,null,null,null,null,null,null,"","","","","","","","","","","","","",""]
["02: Maestría",2,"",{"$f":"IF($G21<>\"\",1,0)","v":0},null,null,{"$f":"IF($B21<=$O$12,B21,\"\")","v":""},null,null,null,null,null,null,null,null,null,null,null,"","","","","","","","","","","","","",""]
["03: Segunda especialidad",3,"",0,null,null,{"$f":"IF($B22<=$O$12,B22,\"\")","v":""},null,null,null,null,null,null,null,null,null,null,null,"","","","","","","","","","","","","",""]
["04: Especialización",4,"",0,null,null,"",null,null,null,null,null,null,null,null,null,null,null,"",null,null,null,null,"","","","","","","","",""]
["05: Actualización",5,"",0,null,null,"",null,null,null,null,null,null,null,null,null,null,null,"",null,null,null,null,"","","","","","","","",""]
["06: Otro",6,"",0,null,null,"",null,null,null,null,null,null,null,null,null,null,null,"","","","","","","","","","","","","",""]
[null,7,"",0,null,null,"",null,null,null,null,null,null,null,null,null,null,null,"","","","","","","","","","","","","",""]
[null,8,"",0,null,null,"",null,null,null,null,null,null,null,null,null,null,null,"","","","","","","","","","","","","",""]
["SI",9,"",0,null,null,"",null,null,null,null,null,null,null,null,null,null,null,"","","","","","","","","","","","","",""]
["NO",10,"",0,null,null,"",null,null,null,null,null,null,null,null,null,null,null,"","","","","","","","","","","","","",""]
[null,11,"",0,null,null,"",null,null,null,null,null,null,null,null,null,null,null,"","","","","","","","","","","","","",""]
[null,12,"",0,null,null,"",null,null,null,null,null,null,null,null,null,null,null,"","","","","","","","","","","","","",""]
[null,13,"",0,null,null,"",null,null,null,null,null,null,null,null,null,null,null,"","","","","","","","","","","","","",""]
[null,14,"",0,null,null,"",null,null,null,null,null,null,null,null,null,null,null,"","","","","","","","","","","","","",""]
[null,15,"",0,null,null,"",null,null,null,null,null,null,null,null,null,null,null,"","","","","","","","","","","","","",""]
[null,16,"",0,null,null,"",null,null,null,null,null,null,null,null,null,null,null,"","","","","","","","","","","","","",""]
[null,17,"",0,null,null,"",null,null,null,null,null,null,null,null,null,null,null,"","","","","","","","","","","","","",""]
[null,18,"",0,null,null,"",null,null,null,null,null,null,null,null,null,null,null,"","","","","","","","","","","","","",""]
[null,19,"",0,null,null,"",null,null,null,null,null,null,null,null,null,null,null,"","","","","","","","","","","","","",""]
[null,20,"",0,null,null,"",null,null,null,null,null,null,null,null,null,null,null,"","","","","","","","","","","","","",""]
[null,21,"",0,null,null,"",null,null,null,null,null,null,null,null,null,null,null,"","","","","","","","","","","","","",""]
[null,22,"",0,null,null,"",null,null,null,null,null,null,null,null,null,null,null,"","","","","","","","","","","","","",""]
[null,23,"",0,null,null,"",null,null,null,null,null,null,null,null,null,null,null,"","","","","","","","","","","","","",""]
[null,24,"",0,null,null,"",null,null,null,null,null,null,null,null,null,null,null,"","","","","","","","","","","","","",""]
[null,25,"",0,null,null,"",null,null,null,null,null,null,null,null,null,null,null,"","","","","","","","","","","","","",""]
[null,26,"",0,null,null,"",null,null,null,null,null,null,null,null,null,null,null,"","","","","","","","","","","","","",""]
[null,27,"",0,null,null,"",null,null,null,null,null,null,null,null,null,null,null,"","","","","","","","","","","","","",""]
[null,28,"",0,null,null,"",null,null,null,null,null,null,null,null,null,null,null,"","","","","","","","","","","","","",""]
[null,29,"",0,null,null,"",null,null,null,null,null,null,null,null,null,null,null,"","","","","","","","","","","","","",""]
[null,30,"",0,null,null,"",null,null,null,null,null,null,null,null,null,null,null,"","","","","","","","","","","","","",""]
[null,31,"",0,null,null,"",null,null,null,null,null,null,null,null,null,null,null,"","","","","","","","","","","","","",""]
[null,32,"",0,null,null,"",null,null,null,null,null,null,null,null,null,null,null,"","","","","","","","","","","","","",""]
[null,33,{"$f":"$A$11","v":""},0,null,null,"",null,null,null,null,null,null,null,null,null,null,null,"","","","","","","","","","","","","",""]
[null,34,"",0,null,null,"",null,null,null,null,null,null,null,null,null,null,null,"","","","","","","","","","","","","",""]
[null,35,"",0,null,null,"",null,null,null,null,null,null,null,null,null,null,null,"","","","","","","","","","","","","",""]
[null,36,"",0,null,null,"",null,null,null,null,null,null,null,null,null,null,null,"","","","","","","","","","","","","",""]
[null,37,"",0,null,null,"",null,null,null,null,null,null,null,null,null,null,null,"","","","","","","","","","","","","",""]
[null,38,"",0,null,null,"",null,null,null,null,null,null,null,null,null,null,null,"","","","","","","","","","","","","",""]
[null,39,"",0,null,null,"",null,null,null,null,null,null,null,null,null,null,null,"","","","","","","","","","","","","",""]
[null,40,"",0,null,null,"",null,null,null,null,null,null,null,null,null,null,null,"","","","","","","","","","","","","",""]
[null,41,"",0,null,null,"",null,null,null,null,null,null,null,null,null,null,null,"","","","","","","","","","","","","",""]
[null,42,"",0,null,null,"",null,null,null,null,null,null,null,null,null,null,null,"","","","","","","","","","","","","",""]
[null,43,"",0,null,null,"",null,null,null,null,null,null,null,null,null,null,null,"","","","","","","","","","","","","",""]
[null,44,"",0,null,null,"",null,null,null,null,null,null,null,null,null,null,null,"","","","","","","","","","","","","",""]
[null,45,"",0,null,null,"",null,null,null,null,null,null,null,null,null,null,null,"","","","","","","","","","","","","",""]
[null,46,"",0,null,null,"",null,null,null,null,null,null,null,null,null,null,null,"","","","","","","","","","","","","",""]
[null,47,"",0,null,null,"",null,null,null,null,null,null,null,null,null,null,null,"","","","","","","","","","","","","",""]
[null,48,"",0,null,null,"",null,null,null,null,null,null,null,null,null,null,null,"","","","","","","","","","","","","",""]
[null,49,"",0,null,null,"",null,null,null,null,null,null,null,null,null,null,null,"","","","","","","","","","","","","",""]
[null,50,"",0,null,null,"",null,null,null,null,null,null,null,null,null,null,null,"","","","","","","","","","","","","",""]
[null,51,"",0,null,null,"",null,null,null,null,null,null,null,null,null,null,null,"","","","","","","","","","","","","",""]
[null,52,"",0,null,null,"",null,null,null,null,null,null,null,null,null,null,null,"","","","","","","","","","","","","",""]
[null,53,"",0,null,null,"",null,null,null,null,null,null,null,null,null,null,null,"","","","","","","","","","","","","",""]
[null,54,"",0,null,null,"",null,null,null,null,null,null,null,null,null,null,null,"","","","","","","","","","","","","",""]
[null,55,"",0,null,null,"",null,null,null,null,null,null,null,null,null,null,null,"","","","","","","","","","","","","",""]
[null,56,"",0,null,null,"",null,null,null,null,null,null,null,null,null,null,null,"","","","","","","","","","","","","",""]
[null,57,"",0,null,null,"",null,null,null,null,null,null,null,null,null,null,null,"","","","","","","","","","","","","",""]
[null,58,"",0,null,null,"",null,null,null,null,null,null,null,null,null,null,null,"","","","","","","","","","","","","",""]
[null,59,"",0,null,null,"",null,null,null,null,null,null,null,null,null,null,null,"","","","","","","","","","","","","",""]
[null,60,"",0,null,null,"",null,null,null,null,null,null,null,null,null,null,null,"","","","","","","","","","","","","",""]
[null,61,"",0,null,null,"",null,null,null,null,null,null,null,null,null,null,null,"","","","","","","","","","","","","",""]
[null,62,"",0,null,null,"",null,null,null,null,null,null,null,null,null,null,null,"","","","","","","","","","","","","",""]
[null,63,"",0,null,null,"",null,null,null,null,null,null,null,null,null,null,null,"","","","","","","","","","","","","",""]
[null,64,"",0,null,null,"",null,null,null,null,null,null,null,null,null,null,null,"","","","","","","","","","","","","",""]
[null,65,{"$f":"$A$11","v":""},0,null,null,"",null,null,null,null,null,null,null,null,null,null,null,"","","","","","","","","","","","","",""]
[null,66,"",{"$f":"IF($G85<>\"\",1,0)","v":0},null,null,"",null,null,null,null,null,null,null,null,null,null,null,"","","","","","","","","","","","","",""]
[null,67,"",0,null,null,{"$f":"IF($B86<=$O$12,B86,\"\")","v":""},null,null,null,null,null,null,null,null,null,null,null,"","","","","","","","","","","","","",""]
[null,68,"",0,null,null,"",null,null,null,null,null,null,null,null,null,null,null,"","","","","","","","","","","","","",""]
[null,69,"",0,null,null,"",null,null,null,null,null,null,null,null,null,null,null,"","","","","","","","","","","","","",""]
[null,70,"",0,null,null,"",null,null,null,null,null,null,null,null,null,null,null,"","","","","","","","","","","","","",""]
[null,71,"",0,null,null,"",null,null,null,null,null,null,null,null,null,null,null,"","","","","","","","","","","","","",""]
[null,72,"",0,null,null,"",null,null,null,null,null,null,null,null,null,null,null,"","","","","","","","","","","","","",""]
[null,73,"",0,null,null,"",null,null,null,null,null,null,null,null,null,null,null,"","","","","","","","","","","","","",""]
[null,74,"",0,null,null,"",null,null,null,null,null,null,null,null,null,null,null,"","","","","","","","","","","","","",""]
[null,75,"",0,null,null,"",null,null,null,null,null,null,null,null,null,null,null,"","","","","","","","","","","","","",""]
[null,76,"",0,null,null,"",null,null,null,null,null,null,null,null,null,null,null,"","","","","","","","","","","","","",""]
[null,77,"",0,null,null,"",null,null,null,null,null,null,null,null,null,null,null,"","","","","","","","","","","","","",""]
[null,78,"",0,null,null,"",null,null,null,null,null,null,null,null,null,null,null,"","","","","","","","","","","","","",""]
[null,79,"",0,null,null,"",null,null,null,null,null,null,null,null,null,null,null,"","","","","","","","","","","","","",""]
[null,80,"",0,null,null,"",null,null,null,null,null,null,null,null,null,null,null,"","","","","","","","","","","","","",""]
[null,81,"",0,null,null,"",null,null,null,null,null,null,null,null,null,null,null,"","","","","","","","","","","","","",""]
[null,82,"",0,null,null,"",null,null,null,null,null,null,null,null,null,null,null,"","","","","","","","","","","","","",""]
[null,83,"",0,null,null,"",null,null,null,null,null,null,null,null,null,null,null,"","","","","","","","","","","","","",""]
[null,84,"",0,null,null,"",null,null,null,null,null,null,null,null,null,null,null,"","","","","","","","","","","","","",""]
[null,85,"",0,null,null,"",null,null,null,null,null,null,null,null,null,null,null,"","","","","","","","","","","","","",""]
[null,86,"",0,null,null,""]
[null,87,"",0,null,null,""]
[null,88,"",0,null,null,""]
[null,89,"",0,null,null,""]
[null,90,"",0,null,null,""]
[null,91,"",0,null,null,""]
[null,92,"",0,null,null,""]
[null,93,"",0,null,null,""]
[null,94,"",0,null,null,""]
[null,95,"",0,null,null,""]
[null,96,"",0,null,null,""]
[null,97,"",0,null,null,""]
[null,98,"",0,null,null,""]
[null,99,"",0,null,null,""]
[null,100,"",0,null,null,{"$f":"IF($B119<=$O$12,B119,\"\")","v":""},null,null,null,null,null,null,null,null,null,null,null,"","","","","","","","","","","","","",""]
[null,null,null,null,null,null,null,null,""]
[null,null,null,null,null,null,"….","….","….","….","….","….","….","….","….","….","….","…."]

{"sheet":"C400","index":6,"n_rows":41,"n_cols":13,"rows_kept":41,"cut":false,"hidden":false,"merged":[[24,3,25,3],[22,3,23,3],[20,3,21,3],[16,7,18,7],[16,5,19,5],[16,3,19,3],[22,4,22,5],[23,4,23,5],[1,5,1,10],[2,5,2,10],[6,2,6,13],[18,11,19,11],[16,8,18,8],[16,10,17,12],[18,12,19,12],[18,10,19,10],[16,9,18,9]]}
[]
[null,null,null,null,null,"CENSO EDUCATIVO 2023"]
[null,null,null,null,null,"MATRÍCULA, DOCENTES Y MATERIALES EDUCATIVOS"]
[]
[]
[]
[null,null,"400. MATERIALES EDUCATIVOS (Solo para gestión pública)"]
[]
["GESTIÓN"]
[{"$f":"IF(OR(UPPER('C100'!J29)=\"X\",UPPER('C100'!O29)=\"X\"),\"X\",\"\")","v":""},null,null,"401. ¿RECIBIÓ MATERIALES CORRESPONDIENTES A LA DOTACIÓN 2023?"]
[{"$f":"IF(UPPER('C100'!T29)=\"X\",\"X\",\"\")","v":""}]
[null,null,null,"Sí    ",null,"No  ",null,null,"Pase a la sección 500."]
[]
[]
[null,null,null,"402. MATERIALES EDUCATIVOS"]
[]
[null,null,null,"Beneficiarios",null,"Material Educativo",null,"¿Recibio los materiales?","Primera \nFecha de\nRecepción","Última\nFecha de\nRecepción","Cantidad de Material"]
[]
[null,null,null,null,null,null,{"$f":"COUNTIF(H21:H26,\"NO\")","v":0},null,null,null,"Total Recibido","Material Sobrante","Material Faltante"]
[null,null,null,null,null,null,{"$f":"COUNTIF(H21:H26,\"SI\")+COUNTIF(H21:H26,\"NO\")","v":0}," SI - NO","Día/Mes/Año","Día/Mes/Año"]
["01",null,null,"Niños y niñas de 4 y 5 años","Material impreso para niños y niñas de 4 años"]
["02",null,null,null,"Material impreso para niños y niñas de 5 años"]
["03",null,null,"Niños y niñas de 4 y 5 años EIB","Cuaderno de trabajo en lengua originaria para niños(as) de 4 años"]
["04",null,null,null,"Cuaderno de trabajo en lengua originaria para niños(as) de 5 años"]
["05",null,null,"SECCIÓN","Juegos de mesa para secciones de niños y niñas de 4 años"]
["06",null,null,null,"Juegos de mesa para secciones de niños y niñas de 5 años"]
[]
[]
[null,null,null,"403. EL MATERIAL IMPRESO RECIBIDO, ¿CORRESPONDE A LA LENGUA DE LOS ESTUDIANTES? "]
[]
[null,null,null,"Sí    ",null,"No  "]
[]
[]
[null,null,null,"404. EL MATERIAL IMPRESO RECIBIDO, ¿SE ENCUENTRA EN EL AULA?"]
[]
[null,null,null,"Sí    ",null,"No  "]
[]
[]
[null,null,null,"405. LOS MATERIALES EDUCATIVOS (IMPRESO Y CONCRETO), ¿SE ENCUENTRA AL ALCANCE DE LOS NIÑOS Y NIÑAS?"]
[]
[null,null,null,"Sí    ",null,"No  "]

{"sheet":"C500","index":7,"n_rows":94,"n_cols":23,"rows_kept":94,"cut":false,"hidden":false,"merged":[[1,5,1,18],[2,5,2,18],[58,15,58,17],[47,13,49,17],[47,18,48,21],[6,1,6,22],[11,2,13,6],[11,8,13,8],[11,9,13,9],[11,10,13,11],[14,10,14,11],[22,10,22,11],[34,2,36,6],[34,7,35,10],[47,2,49,6],[47,7,48,10],[15,10,15,11],[18,10,18,11],[19,10,19,11],[20,10,20,11],[21,10,21,11],[93,18,93,21],[81,16,81,20],[87,6,87,10],[16,10,16,11],[17,10,17,11],[23,10,23,11],[23,13,26,21],[24,10,24,11],[26,10,26,11],[59,15,59,17],[36,10,37,10],[60,2,62,6],[60,7,61,10],[49,10,50,10],[25,10,25,11]]}
[]
[null,null,null,null,null,"CENSO EDUCATIVO 2023"]
[null,null,null,null,null,"MATRÍCULA, DOCENTES Y MATERIALES EDUCATIVOS"]
[]
[]
[]
[null,"500. OTROS RECURSOS DISPONIBLES PARA LA ENSEÑANZA (Para II.EE. Públicas y Privadas)"]
[]
[null,"501. EQUIPOS Y SERVICIOS QUE DISPONE EL SERVICIO/NIVEL EDUCATIVO",null,null,null,null,null,null,null,null,null,"SI","502. ¿QUÉ EDADES ATENDIDAS CUENTAN CON UNA BIBLIOTECA DE AULA?"]
[null,null,"  EXCLUSIVO DEL NIVEL",null,null,null,null,null,null,null,null,"NO",null,"   DETALLE EL NÚMERO DE EJEMPLARES (LIBROS QUE LA CONFORMAN)."]
[]
[null,null,"EQUIPOS Y SERVICIOS",null,null,null,null,null,"¿Cuán tos tiene?","¿Cuántos estan opera- tivos?","¿Son utilizados para la enseñanza en interacción con los estudiantes?\nSí - No",null,null,"(Marque con una “X” la edad correspondiente y anote el"]
[null,null,null,null,null,null,null," SI - NO",null,null,null,null,null,"número total de ejemplares según corresponda)."]
[null,null,null,null,null,null,null,{"$f":"COUNTIF(H15:H27,\"SI\")+COUNTIF(H15:H27,\"NO\")","v":0},null,null,null,null,null,"Edad Atendida",null,null,null,null,null,"Nº Total de Ejemplares"]
[null,null,"01","Televisor(es)",null,null,null,null,null,null,null,null,null,null,null," 0 años"]
[null,null,"02","Computadoras (PC de escritorio)",null,null,null,null,null,null,null,null,null,null,null," 1 año"]
[null,null,"03","Laptop convencionales",null,null,null,null,null,null,null,null,null,null,null," 2 años"]
[null,null,"04","Laptop XO",null,null,null,null,null,null,null,null,null,null,null," 3 años"]
[null,null,"05"," Servidores (exclusivo del nivel)",null,null,null,null,null,null,null,null,null,null,null," 4 años"]
[null,null,"06","Tablets",null,null,null,null,null,null,null,null,null,null,null," 5 años y más"]
[null,null,"07","Proyector",null,null,null,null,null,null,null,null,null,null,null," NINGÚNA EDAD",null,null,null,{"$f":"SUM(T15:T20)","v":0}]
[null,null,"08","Radiograbadora"]
[null,null,"09","Reproductor de DVD o Blue Ray"]
[null,null,"10","Impresoras",null,null,null,null,null,null,null,null,null,"Las bibliotecas de aula están constituidas por libros, láminas y otros materiales didácticos similares, puestos al alcance de los estudiantes en el aula."]
[null,null,11,"Pizarras digitales"]
[null,null,12,"Modem"]
[null,null,13,"Servicio de Internet"]
[]
[]
[null,"INTERNET, SEGURIDAD E IMPLEMENTACION"]
[null,"503. SOBRE EL ACCESO A INTERNET EN LAS INSTALACIONES DONDE FUNCIONA EL",null,null,null,null,null,null,null,null,null,null,"506. SEÑOR(A) DIRECTOR(A) ¿CUAL(ES) DISPOSITIVO(S) INFORMATICO(S)"]
[null,null,"   SERVICIO/NIVEL EDUCATIVO",null,null,null,null,null,null,null,null,null,null,"  UTILIZA PRINCIPALMENTE PARA REALIZAR LAS LABORES DE GESTION"]
[null,null,"  (Marque con una “X” según corresponda)",null,null,null,null,null,null,null,null,null,null,"  DE ESTE SERVICIO/NIVEL EDUCATIVO EN SU HOGAR?"]
[]
[null,null,"ACTOR",null,null,null,null,"¿Tienen acceso a internet en el Servicio Educativo?",null,null,null,null,null,"","Marque con una “X”, una o más opciones"]
[null,null,null,null,null,null,null,null,null,null,null,null,null,"",null,"Trabajo con una PC"]
[null,null,null,null,null,null,null," Sí,"," Sí, la"," Sí,","Ninguno",null,null,"",null,"Trabajo con una Laptop"]
[null,null,null,null,null,null,{"$f":"SUM(G39:G42)","v":0},"Todos","Mayoria","Algunos",null,null,null,"",null,"Trabajo con una Tablet"]
[null,null,"01","Los estudiantes",null,null,{"$f":"COUNTIF(H39:K39,\"X\")","v":0},null,null,null,null,null,null,"",null,"Trabajo con un Celular"]
[null,null,"02","El personal directivo",null,null,{"$f":"COUNTIF(H40:K40,\"X\")","v":0},null,null,null,null,null,null,null,null,"No, no cuento con ninguno de los anteriores"]
[null,null,"03","El personal docente",null,null,{"$f":"COUNTIF(H41:K41,\"X\")","v":0}]
[null,null,"04","El personal administrativo",null,null,{"$f":"COUNTIF(H42:K42,\"X\")","v":0},null,null,null,null,null,"507. CON RESPECTO AL CONCOCIMIENTO Y ELABORACION DE CLASES VIRTUALES"]
[null,null,null,null,null,null,null,null,null,null,null,null,null,"  PARA LOS ESTUDIANTES. ¿CUÁL ES EL NIVEL DE USO DE LAS HERRAMIENTAS"]
[null,null,null,null,null,null,null,null,null,null,null,null,null,"  O PLATAFORMAS TECNOLOGICAS PARA ESTE FIN ?"]
[null,"504. SOBRE EL ACCESO A INTERNET EN EL DOMICILIO"]
[null,null,"  (Marque con una “X” según corresponda)",null,null,null,null,null,null,null,null,null,null,"Marque con una “X”, según corresponda para cada caso"]
[]
[null,null,"ACTOR",null,null,null,null,"¿Tienen acceso a internet en su domicilio?",null,null,null,null,null,"HERRAMIENTA/PLATAFORMA TECNOLÓGICA PARA LA ELABORACIÓN DE CLASES VIRTUALES",null,null,null,null,"Nivel de uso de los docentes"]
[]
[null,null,null,null,null,null,null," Sí,"," Sí, la"," Sí,","Ninguno",null,{"$f":"SUM(M51:M60)","v":0},null,null,null,null,null,"Todos","Mayoria","Algunos","Ninguno"]
[null,null,null,null,null,null,{"$f":"SUM(G52:G55)","v":0},"Todos","Mayoria","Algunos",null,null,{"$f":"COUNTIF(S51:V51,\"X\")","v":0},"Moodle",null,null,null,null,null,null,null,null,"01"]
[null,null,"01","Los estudiantes",null,null,{"$f":"COUNTIF(H52:K52,\"X\")","v":0},null,null,null,null,null,0,"Canvas",null,null,null,null,null,null,null,null,"02"]
[null,null,"02","El personal directivo",null,null,{"$f":"COUNTIF(H53:K53,\"X\")","v":0},null,null,null,null,null,0,"Zoom",null,null,null,null,null,null,null,null,"03"]
[null,null,"03","El personal docente",null,null,{"$f":"COUNTIF(H54:K54,\"X\")","v":0},null,null,null,null,null,0,"Meet",null,null,null,null,null,null,null,null,"04"]
[null,null,"04","El personal administrativo",null,null,{"$f":"COUNTIF(H55:K55,\"X\")","v":0},null,null,null,null,null,0,"Teams",null,null,null,null,null,null,null,null,"05"]
[null,null,null,null,null,null,null,null,null,null,null,null,0,"Whatsapp",null,null,null,null,null,null,null,null,"06"]
[null,null,null,null,null,null,null,null,null,null,null,null,0,"Facebook/Messenger",null,null,null,null,null,null,null,null,"07"]
[null,"505. EN EL PRESENTE AÑO, ¿CUENTAN CON PC O LAPTOP EN SU DOMICILIO?",null,null,null,null,null,null,null,null,null,null,0,"Classroom",null,null,null,null,null,null,null,null,"08"]
[null,null,"(Marque con una “X” según corresponda)",null,null,null,null,null,null,null,null,null,{"$f":"COUNTIF(S59:V59,\"X\")","v":0},"Otro 1",{"$f":"CONCATENATE(S59,T59,U59,V59)","v":""},null,null,null,null,null,null,null,"09"]
[null,null,null,null,null,null,null,null,null,null,null,null,{"$f":"COUNTIF(S60:V60,\"X\")","v":0},"Otro 2",{"$f":"CONCATENATE(S60,T60,U60,V60)","v":""},null,null,null,null,null,null,null,"10"]
[null,null,"ACTOR",null,null,null,null,"¿Cuéntan con Pc o Laptop en su domicilio?"]
[]
[null,null,null,null,null,null,null," Sí,"," Sí, la"," Sí,"]
[null,null,null,null,null,null,{"$f":"SUM(G65:G68)","v":0},"Todos","Mayoria","Algunos","Ninguno"]
[null,null,"01","Los estudiantes",null,null,{"$f":"COUNTIF(H65:K65,\"X\")","v":0}]
[null,null,"02","El personal directivo",null,null,{"$f":"COUNTIF(H66:K66,\"X\")","v":0}]
[null,null,"03","El personal docente",null,null,{"$f":"COUNTIF(H67:K67,\"X\")","v":0}]
[null,null,"04","El personal administrativo",null,null,{"$f":"COUNTIF(H68:K68,\"X\")","v":0}]
[]
[]
[null,"600. EDUCACIÓN FÍSICA Y DEPORTE (Para II.EE. Públicas y Privadas)"]
[]
[null,"A. ACTIVIDAD FÍSICA Y PSICOMOTRICIDAD"]
[null,"601. DURANTE EL AÑO 2022, EN ESTE SERVICIO/NIVEL EDUCATIVO, ¿SE FOMENTÓ",null,null,null,null,null,null,null,null,null,null,"602. EN EL PRESENTE AÑO, ¿ESTE SERVICIO/NIVEL EDUCATIVO TIENE PLANIFICADO"]
[null,null,"LA REALIZACIÓN DE ACTIVIDADES FÍSICAS O DEPORTE, CON LA FINALIDAD",null,null,null,null,null,null,null,null,null,null,"  LA EJECUCIÓN DE TALLERES COMPLEMENTARIOS?"]
[null,null,"DE PRIORIZAR EL CUIDADO DEL ESTUDIANTE Y SU BIENESTAR INTEGRAL?"]
[null,null,null,null,null,null,null,null,null,null,null,null,null," Sí",null,"No  "]
[null,null," Sí",null,"No  "]
[null,null,null,null,null,null,null,null,null,null,null,null,null,null,null,"Marque con una “X”, una o más opciones"]
[null,null,null,null,null,null,null,null,null,null,null,null,null,null,null,"Orquestando"]
[null,null,null,null,null,null,null,null,null,null,null,null,null,null,null,"Talleres deportivos recreativos"]
[null,null,null,"Marque con una “X”, una o más opciones",null,null,null,null,null,null,null,null,null,null,null,"Otro"]
[]
[null,null,null,null,"Actividades de movimiento",null,null,null,null,null,null,null,"603. ¿ESTE SERVICIO/NIVEL EDUCATIVO CUENTA CON TALLER DE PSICOMOTRICIDAD?"]
[null,null,null,null,"Actividades de deporte"]
[null,null,null,null,"Actividades artístico culturales"]
[null,null,null,null,"Actividades complementarias de encuentro con la comunidad educativa",null,null,null,null,null,null,null,null," Sí",null,"No  "]
[null,null,null,null,"Otras Actividades",null,null,null,null,null,null,null,null,null,null,null,null,null,null,"Nro. de horas"]
[null,null,null,null,null,null,null,null,null,null,null,null,null,null,null,"¿Cuántas horas a la semana?"]
[]
[null,null,null,null,null,null,null,null,null,null,null,null,null,null,null,"¿Las actividades de psicomotrocidad donde se realizan?"]
[null,null,null,null,null,null,null,null,null,null,null,null,null,null,null,null,null,"Patio"]
[null,null,null,null,null,null,null,null,null,null,null,null,null,null,null,null,null,"Aula de psicomotrocidad"]
[null,null,null,null,null,null,null,null,null,null,null,null,null,null,null,null,null,"Otro"]

{"sheet":"C700","index":8,"n_rows":310,"n_cols":26,"rows_kept":310,"cut":false,"hidden":false,"merged":[[293,11,293,12],[295,9,295,10],[298,9,298,10],[298,11,298,12],[306,19,306,22],[22,4,22,6],[23,4,30,6],[31,4,34,6],[35,4,36,6],[37,4,47,6],[48,4,51,6],[41,7,42,11],[44,7,45,11],[46,7,47,11],[46,12,47,12],[41,12,42,12],[44,12,45,12],[48,12,49,12],[50,12,51,12],[238,7,238,8],[255,8,255,11],[99,8,99,10],[112,8,112,10],[48,7,49,11],[50,7,51,11],[263,10,264,12],[265,10,266,10],[265,11,266,12],[267,11,267,12],[267,20,267,22],[268,11,268,12],[269,11,269,12],[202,5,203,9],[202,10,203,10],[205,16,205,20],[208,7,208,9],[211,18,211,20],[217,10,217,11],[221,19,221,23],[225,21,225,23],[229,6,232,8],[229,9,229,12],[230,9,232,9],[230,10,232,10],[230,11,232,11],[230,12,232,12],[142,22,142,24],[146,18,146,19],[151,7,151,10],[159,22,159,24],[181,19,181,22],[192,22,192,24],[193,7,193,9],[193,19,195,19],[193,20,196,20],[193,21,195,21],[193,22,195,22],[193,23,196,23],[193,24,195,24],[58,22,58,24],[71,19,71,22],[86,16,88,19],[86,20,88,20],[86,21,87,22],[86,23,87,24],[88,21,89,21],[88,22,89,22],[88,23,89,23],[88,24,89,24],[23,7,24,11],[23,12,24,12],[31,12,32,12],[37,12,38,12],[39,19,39,21],[37,7,38,11],[31,7,32,11],[29,7,30,11],[25,7,26,11],[25,12,26,12],[27,7,28,11],[27,12,28,12],[29,12,30,12],[200,17,200,18],[30,19,30,21],[11,16,11,22],[12,16,12,22],[12,23,13,23],[13,16,13,22],[14,16,14,22],[14,23,15,23],[16,16,16,22],[16,23,17,23],[17,16,17,22],[18,23,19,23],[20,23,21,23],[22,23,24,23],[192,16,196,18],[192,19,192,21]]}
[]
[null,null,null,null,null,null,null,null,"CENSO EDUCATIVO 2023"]
["Si",null,null,null,null,null,null,null,"MATRÍCULA, DOCENTES Y MATERIALES EDUCATIVOS"]
["No"]
[]
[]
[null,null,"700. FORTALECIMIENTO DE LA GESTIÓN"]
[]
[null,null,"701. ESTE NIVEL/SERVICIO EDUCATIVO ¿COORDINA ALGUNA ACCIÓN CON EL GOBIERNO LOCAL",null,null,null,null,null,null,null,null,null,null,null,null,"704. SOBRE LA GESTIÓN DEL RIESGO DE DESASTRES Y LA SEGURIDAD EN ESTE"]
[null,null,null,"(DISTRITAL O PROVINCIAL)  PARA MEJORAR LA PRESTACIÓN DEL SERVICIO EDUCATIVO?",null,null,null,null,null,null,null,null,null,null,null,null,"NIVEL/ SERVICIO EDUCATIVO, ATIENDA LAS SIGUIENTES PREGUNTAS:"]
[]
[null,null,null,null,null,null,null,null,null,null,null,null,null,null,null,{"$f":"SUM(P13:P25)","v":0},"PREGUNTA",null,null,null,null,null,null,"RESPUESTA"]
[null,null,"1: Siempre",null,"Sí",null,null,null,"No",null,null,"Pase a la pregunta 703.",null,null,null,{"$f":"IF(X13<>\"\",1,0)","v":0}]
[null,null,"2: Casi Siempre",null,null,null,null,null,null,null,null,null,null,null,null,null,"Gestión y Planificación Curricular para el desarrollo de una cultura de …"]
[null,null,"3: A Veces",null,null,null,"Marque con una “X”, una opción",null,null,null,null,null,null,null,null,{"$f":"IF(X15<>\"\",1,0)","v":0}]
[null,null,"4: Casi Nunca",null,null,null,"Con Municipalidad Distrital",null,null,null,null,null,null,null,null,null,"enfásis en la contingencia ante la emergencia sanitaria por Covid19?"]
[null,null,"5: Nunca",null,null,null,"Con Municipalidad Provincial",null,null,null,null,null,null,null,null,{"$f":"IF(X17<>\"\",1,0)","v":0},"Las zonas seguras para el desplazamiento de los miembros de la comu-"]
[null,null,null,null,null,null,"Con ambas",null,null,null,null,null,null,null,null,null,"nidad educativa y las rutas de evacuación ¿se encuentran señalizadas?"]
[null,null,null,null,null,null,null,null,null,null,null,null,null,null,null,{"$f":"IF(X19<>\"\",1,0)","v":0},"¿Se cuenta con el mínimo de dispositivos de seguridad"]
[null,null,"702. FRECUENCIA DE LA ACCION QUE AYUDA EL GOBIERNO LOCAL PARA MEJORAR",null,null,null,null,null,null,null,null,null,null,null,null,null,"para situaciones de emergencia y desastres?"]
[null,null,null,"LA PRESTACIÓN DEL SERVICIO",null,null,null,null,null,null,null,null,null,null,null,{"$f":"IF(X21<>\"\",1,0)","v":0},"¿Fomenta la participación, compromiso y responsabilidad"]
[null,null,null,null,null,null,null,null,null,null,null,null,null,null,null,null,"sobre la Gestión del Riesgo de Desastres en la comunidad educativa?"]
[null,null,null,{"$f":"SUM(D24:D52)","v":0},"COMPONENTE",null,null,"ACCIÓN",null,null,null,null,"FRECUENCIA",null,null,{"$f":"IF(X23<>\"\",1,0)","v":0},"¿Desarrolla actividades de soporte socioemocional como el autocuidado,"]
["01",null,null,{"$f":"IF(M24<>\"\",1,0)","v":0},"Infraestructura",null,null,"Proyecto de inversión pública para el mejoramiento o ampliación del local escolar",null,null,null,null,null,null,null,null,"la autoprotección y la resilencia en la comunidad educativa como"]
[null,null,null,null,null,null,null,null,null,null,null,null,null,null,null,null,"respuesta ante situaciones de emergencias y desastres?"]
["02",null,null,{"$f":"IF(M26<>\"\",1,0)","v":0},null,null,null,"Apoyo y asistencia técnica para el uso de recursos de mantenimiento preventivo",null,null,null,null,null,null,null,null,null,null,null,null,null,null,null,{"$f":"COUNTIF(X13:X25,\"SI\")+COUNTIF(X13:X25,\"NO\")","v":0}]
[]
["03",null,null,{"$f":"IF(M28<>\"\",1,0)","v":0},null,null,null,"Gestiones para el acceso a servicios básicos de IIEE   ( Agua, alcantarillado, luz)",null,null,null,null,null,null,null,"705. ¿CUÁL ES LA PRIMERA PALABRA QUE SE LE VIENE A LA MENTE CUANDO"]
[null,null,null,null,null,null,null,null,null,null,null,null,null,null,null,null,"PIENSA O ESCUCHA ‘’MINISTERIO DE EDUCACIÓN’’"]
["04",null,null,{"$f":"IF(M30<>\"\",1,0)","v":0},null,null,null,"Adquisición de mobiliario y equipamiento para la IIEE"]
[null,null,null,null,null,null,null,null,null,null,null,null,null,null,null,null,"Escriba solo una palabra"]
["05",null,null,{"$f":"IF(M32<>\"\",1,0)","v":0},"Aprendizajes",null,null,"Proyecto de inversión pública para la mejora de los aprendizajes"]
[]
["06",null,null,{"$f":"IF(M34<>\"\",1,0)","v":0},null,null,null,"Actividades que ayuden a implementar el refuerzo escolar",null,null,null,null,null,null,null,"706. ¿CON CUÁL DE LOS SIGUIENTES LEMAS O FRASES ASOCIA AL MINEDU?"]
["07",null,null,{"$f":"IF(M35<>\"\",1,0)","v":0},null,null,null,"Apoyo con material educativo",null,null,null,null,null,null,null,null,null,"Marque con una “X”, una opción"]
["08",null,null,{"$f":"IF(M36<>\"\",1,0)","v":0},"Docentes",null,null,"Contratación de docentes"]
["09",null,null,{"$f":"IF(M37<>\"\",1,0)","v":0},null,null,null,"Talleres o cursos de capacitación",null,null,null,null,null,null,null,null,null,null,"Mejor educación, mejores peruanos"]
["10",null,null,{"$f":"IF(M38<>\"\",1,0)","v":0},"Gestión",null,null,"Articulación local con actores públicos y privados a nivel local",null,null,null,null,null,null,null,null,null,null,"La educación no para"]
[null,null,null,null,null,null,null,null,null,null,null,null,null,null,null,null,null,null,"No asocio un lema específico al Minedu"]
["11",null,null,{"$f":"IF(M40<>\"\",1,0)","v":0},null,null,null,"Atención de casos en DEMUNA",null,null,null,null,null,null,null,null,null,null,"Otro"]
["12",null,null,{"$f":"IF(M41<>\"\",1,0)","v":0},null,null,null,"Articulación con UGEL y DRE de su ámbito"]
["13",null,null,{"$f":"IF(M42<>\"\",1,0)","v":0},null,null,null,"Gestiones para la instalación de servicios básicos de conectividad"]
[null,null,null,null,null,null,null,null,null,null,null,null,null,null,null,"707. ¿CON QUÉ EMOCIONES ASOCIA CON EL MINEDU?"]
["14",null,null,{"$f":"IF(M44<>\"\",1,0)","v":0},null,null,null,"Apoyo con alimentación para estudiantes",null,null,null,null,null,null,null,null,null,"Marque con una “X”, una opción"]
["15",null,null,{"$f":"IF(M45<>\"\",1,0)","v":0},null,null,null,"Vivienda y alimentación para docentes (zonas rurales, fronteras, etc)"]
[null,null,null,null,null,null,null,null,null,null,null,null,null,null,null,null,null,null,"Positivas (Alegría, entusiasmo)"]
["16",null,null,{"$f":"IF(M47<>\"\",1,0)","v":0},null,null,null,"Apoyo con movilidad local para estudiantes y docentes",null,null,null,null,null,null,null,null,null,null,"Neutra"]
[null,null,null,null,null,null,null,null,null,null,null,null,null,null,null,null,null,null,"Negativas (Tristeza, decepción, desconfianza, otras)"]
["17",null,null,{"$f":"IF(M49<>\"\",1,0)","v":0},"Recuperación",null,null,"Promoción de acciones comunitarias para identificación de estudiantes que interrumpen estudios"]
[]
["18",null,null,{"$f":"IF(M51<>\"\",1,0)","v":0},null,null,null,"Impulso del registro nominal de estudiantes en Alerta Escuela por parte de directores de II.EE",null,null,null,null,null,null,null,"708. ¿QUÉ CANAL DE COMUNICACIÓN UTILIZA PARA INFORMARSE SOBRE LAS"]
[null,null,null,null,null,null,null,null,null,null,null,null,null,null,null,null,"LAS NOVEDADES DEL MINEDU?"]
[null,null,null,null,null,null,null,null,null,null,null,null,null,{"$f":"COUNTIF(M24:M52,\"5: Nunca\")","v":0}]
[null,null,null,null,null,null,null,null,null,null,null,null,null,null,null,null,null,"Marque con una “X”, una o más opciones"]
[null,null,"703. ¿INCORPORA LA SEGURIDAD Y DEFENSA NACIONAL EN LOS INSTRUMENTOS DE GESTIÓN Y"]
[null,null,null,"PLANIFICACIÓN CURRICULAR PARA EL DESARROLLO DE UNA CULTURA DE PAZ, Y FORTALECIMIENTO",null,null,null,null,null,null,null,null,null,null,null,null,null,null,"SIAGIE",null,null,"Programas radiales"]
[null,null,null,"DE LA IDENTIDAD NACIONAL?",null,null,null,null,null,null,null,null,null,null,null,null,null,null,"Redes sociales",null,null,"Mensajes de texto"]
[null,null,null,null,null,null,null,null,null,null,null,null,null,null,null,null,null,null,"Portales del Minedu",null,null,"Correo electrónico"]
[null,null,null,null,"Sí",null,null,null,"No",null,null,null,null,null,null,null,null,null,"Programas televisivos",null,null,"Otro"]
[]
[]
[]
[null,null,"709. ¿CUÁLES SON LOS PRINCIPALES TEMAS QUE REQUIERE COMO CAPACITACIÓN PARA MEJORAR SU DESEMPEÑO ",null,null,null,null,null,null,null,null,null,null,null,null,"713. SEÑOR(A) DIRECTOR(A), DURANTE EL 2022, ¿EL PERSONAL AUXILIAR DE EDUCACIÓN DESEMPEÑÓ"]
[null,null,null,"COMO DIRECTOR(A)?",null,null,null,"Marque con una “X”, hasta 4 opciones",null,null,null,null,null,null,null,null,"O DESEMPEÑA OTRAS LABORES ADICIONALES A SU ROL COMO AUXILIAR DE EDUCACIÓN?"]
[]
[null,null,null,{"$f":"COUNTIF(E66:E72,\"X\")","v":0},null,"Estrategias y didáctica de las áreas de aprendizaje",null,null,null,null,null,null,null,null,null,null,null,"Marque con una “X”, una o más opciones"]
[null,null,null,null,null,"Evaluación de aprendizajes"]
[null,null,null,null,null,"Manejo de herramientas TIC y ofimáticas",null,null,null,null,null,null,null,null,null,null,null,null,"No realizó/realiza otras labores adicionales en la IE"]
[null,null,null,null,null,"Gestión del duelo y del bienestar socioemocional",null,null,null,null,null,null,null,null,null,null,null,null,"Trabaja como docente"]
[null,null,null,null,null,"Habilidades blandas para la gestión del equipo de docentes",null,null,null,null,null,null,null,null,null,null,null,null,"Trabaja como personal administrativo en la IE"]
[null,null,null,null,null,"Relacionamiento institucional y gestión de alianzas",null,null,null,null,null,null,null,null,null,null,null,null,"Trabaja en otra IE"]
[null,null,null,null,null,"Participación estudiantil",null,null,null,null,null,null,null,null,null,null,null,null,"Otro"]
[null,null,null,null,null,null,null,null,null,null,null,null,null,null,null,null,null,null,"No cuento con personal auxiliar de educación"]
[]
[null,null,"710. ¿DURANTE EL 2022 Y HASTA LA FECHA DEL CENSO 2023, ¿HA REALIZADO ACCIONES EN FAVOR DEL"]
[null,null,null,"BIENESTAR SOCIOEMOCIONAL DE LOS ESTUDIANTES Y/O DE LOS DOCENTES Y/O FAMILIAS?",null,null,null,null,null,null,null,null,null,null,null,"714. SEÑOR(A) DIRECTOR(A), ¿ESTE SERVICIO/NIVEL EDUCATIVO QUE USTED DIRIGE CUENTA CON"]
[null,null,null,null,null,null,null,null,null,null,null,null,null,null,null,null,"PERSONAL ADMINISTRATIVO?"]
[null,null,null,null,"Sí",null,null,null,"No"]
[null,null,null,null,null,null,null,null,null,null,null,null,null,null,null,null,"Sí",null,null," No  ","",null,"Pase a la pregunta 719"]
[]
[null,null,null,null,"¿Qué acciones realizo?"]
[null,null,null,null,"Marque con una “X”, una o más opciones",null,null,null,null,null,null,null,null,null,null,"715. SOBRE EL PERSONAL ADMINISTRATIVO QUE LABORA EN ESTE SERVICIO/NIVEL EDUCATIVO, "]
[null,null,null,null,null,null,null,null,null,null,null,null,null,null,null,null,"COMPLETA PARA CADA CARGO/PUESTO LOS SIGUIENTES DATOS."]
[null,null,null,null,null,"Elaborar un diagnóstico del estado del bienestar socioemocional de estudiantes"]
[null,null,null,null,null,"Elaborar un diagnóstico del estado del bienestar socioemocional de docentes",null,null,null,null,null,null,null,null,null,null,"Seleccione “Sí” o “No” para cada pregunta y consigna las cantidades donde corresponda"]
[null,null,null,null,null,"Ejecutar acciones en la IE para trabajar específicamente gestión de emociones"]
[null,null,null,null,null,"Generar espacios de diálogo en la comunidad educat. con docentes y/o familias",null,null,null,null,null,null,null,null,null,null,"Puestos Administrativos",null,null,null,"¿Cuenta con este tipo de personal?","¿Ha sido capacitado\ndurante el 2022?",null,"La cantidad de personal que tiene ¿es suﬁciente?"]
[null,null,null,null,null,"Promover espacios específicamente para abordar gestión de emociones con familias"]
[null,null,null,null,null,"Ejecutar acciones en el marco de la Tutoría y Orientación Educativa (TOE)",null,null,null,null,null,null,null,null,null,null,null,null,null,null,null,"Si  / No","¿Cuántas veces?","Si  / No","¿Qué cantidad seria suficiente?"]
[null,null,null,null,null,null,null,null,null,null,null,null,null,null,null,null,null,null,null,{"$f":"COUNTIF(U91:U97,\"NO\")","v":0},"Si  / No"]
[null,null,"711. SEÑOR(A) DIRECTOR(A), DURANTE EL 2022 Y HASTA LA FECHA DEL CENSO 2023,",null,null,null,null,null,null,null,null,null,null,null,null,"01","a. Coordinador / Administrativo"]
[null,null,null,"¿A TRAVÉS DE QUÉ MEDIO RECIBIÓ LA CAPACITACIÓN EL PERSONAL AUXILIAR DE EDUCACIÓN?",null,null,null,null,null,null,null,null,null,null,null,"02","b. Secretaria(o)"]
[null,null,null,null,null,null,null,null,null,null,null,null,null,null,null,"03","c. Oficinista"]
[null,null,null,null,"Marque con una “X”, una o más opciones",null,null,null,null,null,null,null,null,null,null,"04","d. Trabajador guardianía y/o vigilancia"]
[null,null,null,null,"","Perueduca, cursos para la comunidad educativa",null,null,null,null,null,null,null,null,null,"05","e. Trabajador limpieza y mantenimiento",null,null,null,null,null,null,null,null,0]
[null,null,null,null,"","Mi Institución Educativa",null,null,null,null,null,null,null,null,null,"06","f. Auxiliar de biblioteca"]
[null,null,null,null,"","Mi UGEL",null,null,null,null,null,null,null,null,null,"07","g. Auxiliar de laboratorio"]
[null,null,null,null,"","Otra UGEL",null,null,null,null,null,null,null,null,null,null,null,null,null,null,{"$f":"COUNTIF(U91:U97,\"SI\") + COUNTIF(U91:U97,\"NO\")","v":0}]
[null,null,null,null,"","DRE"]
[null,null,null,null,"","Otras instituciones"]
[null,null,null,null,null,"No cuento con personal auxiliar de educación",null,null,null,null,null,null,null,null,null,"716. ¿CUÁL DE LAS SIGUIENTES COMPETENCIAS CONSIDERA USTED COMO LA MÁS RELEVANTE EN EL EQUIPO "]
[null,null,null,null,"","El personal auxiliar de educación no recibió capacitación",null,null,null,null,null,null,null,null,null,null,"DE PERSONAL  ADMINISTRATIVO DE ESTE SERVICIO NIVEL EDUCATIVO?"]
[]
[null,null,"712. SEÑOR(A) DIRECTOR(A), ¿CUÁL CONSIDERA USTED COMO PRINCIPAL TEMA QUE REQUIERE COMO",null,null,null,null,null,null,null,null,null,null,null,null,null,null,"Marque con una “X”, una opción"]
[null,null,null,"CAPACITACIÓN EL PERSONAL AUXILIAR DE EDUCACIÓN,  PARA MEJORAR SU DESEMPEÑO?"]
[null,null,null,null,null,null,null,null,null,null,null,null,null,null,null,null,null,null,"Trabajo en equipo"]
[null,null,null,null,"Marque con una “X”, una o más opciones",null,null,null,null,null,null,null,null,null,null,null,null,null,"Atención a usuarios"]
[null,null,null,null,null,"Habilidades blandas (intelig. emocional, comunic. asertiva, manejo de conflictos, etc)",null,null,null,null,null,null,null,null,null,null,null,null,"Comunicación asertiva"]
[null,null,null,null,null,"Habilidades duras (TICs, primeros aux., uso y peligros de internet, etc.)",null,null,null,null,null,null,null,null,null,null,null,null,"Orientación a resultados"]
[null,null,null,null,null,"Relación con los estudiantes (el juego, soporte socioem., prevención de la violencia escolar (bullying)",null,null,null,null,null,null,null,null,null,null,null,null,"Orden y planificación estratégica"]
[null,null,null,null,null,"No cuento con personal auxiliar de educación",null,null,null,null,null,null,null,null,null,null,null,null,"Orientación al servicio"]
[null,null,null,null,null,"Características evolutivas de los niños de 0 a 5 años",null,null,null,null,null,null,null,null,null,null,null,null,"Proactividad"]
[null,null,null,null,null,"Otros temas"]
[]
[]
[null,null,"717. ¿CUÁLES SON LAS DOS PRINCIPALES TEMÁTICAS QUE CONSIDERA USTED QUE EL PERSONAL ",null,null,null,null,null,null,null,null,null,null,null,null,"723. ¿QUÉ CONTENIDOS NORMATIVOS ESPERARÍA ENCONTRAR EN EL PORTAL WEB PARA "]
[null,null,null,"ADMINISTRATIVO DE ESTE SERVICIO/NIVEL EDUCATIVO PODRÍA SER CAPACITADO?",null,null,null,null,null,null,null,null,null,null,null,"          DIRECTIVO DE IE DEL MINEDU?",null,null,null,null,"Marque con una “X”, hasta dos opciones"]
[]
[null,null,null,null,"Marque con una “X”, solamente dos opciones",null,null,null,null,null,null,null,null,null,null,null,{"$f":"COUNTIF(R119:R122,\"X\")","v":0},null,"Sobre sus funciones"]
[null,null,null,null,null,null,null,null,null,null,null,null,null,null,null,null,null,null,"Sobre los documentos de gestión de debe elaborar"]
[null,null,null,{"$f":"COUNTIF(E121:E128,\"X\")","v":0},null,"Seguridad de control de accesos y de control interno de la IE.",null,null,null,null,null,null,null,null,null,null,null,null,"Sobre su rol de líder pedagógico"]
[null,null,null,null,null,"Gestión del mantenimiento de la IE (materiales, ambientes y equipos)",null,null,null,null,null,null,null,null,null,null,null,null,"Sobre las faltas en las podría incurrir de incumplir sus funciones"]
[null,null,null,null,null,"Manejo de habilidades interpersonales (atención de usuarios)"]
[null,null,null,null,null,"Técnicas de archivo y despacho de documentos",null,null,null,null,null,null,null,null,null,"724. DESDE EL 2019 A LA FECHA DE APLICACIÓN DEL CENSO 2022, ¿CONOCE LAS NORMAS"]
[null,null,null,null,null,"Manejo de los sistemas informáticos del Minedu",null,null,null,null,null,null,null,null,null,"         QUE REGULAN SUS FUNCIONES COMO DIRECTOR?"]
[null,null,null,null,null,"Administración y control de recursos propios (financieros)"]
[null,null,null,null,null,"Manejo de herramientas TIC y ofimática",null,null,null,null,null,null,null,null,null,null,"Sí",null,null,"No"]
[null,null,null,null,null,"Prevención y atención de situaciones de riesgo"]
[null,null,null,null,null,null,null,null,null,null,null,null,null,null,null,"725. ¿TIENE CONOCIMIENTO QUE EXISTE UNA HERRAMIENTA DIGITAL PARA LA EMISIÓN "]
[null,null,"718. CON RESPECTO A LAS LABORES DEL PERSONAL ADMINISTRATIVO DURANTE EL",null,null,null,null,null,null,null,null,null,null,null,null,"          DE CERTIFICADOS DE ESTUDIOS?"]
[null,null,null,"AÑO 2022, ¿EN QUÉ ÁMBITO(S) IDENTIFICÓ MAYOR CARGA DE ACTIVIDADES"]
[null,null,null,"OPERATIVAS?",null,null,null,null,null,null,null,null,null,null,null,null,"Sí",null,null,"¿Has hecho uso de la herramienta?"]
[]
[null,null,null,null,"Marque con una “X”, una o más opciones",null,null,null,null,null,null,null,null,null,null,null,null,null,null,"Si  "]
[null,null,null,null,null,null,null,null,null,null,null,null,null,null,null,null,null,null,null,"No"]
[null,null,null,null,null,"Gestión de recursos financieros, bienes, servicios e infraestructura ",null,null,null,null,null,null,null,null,null,null,"No"]
[null,null,null,null,null,"Gestión de información de la IE (registro en sistemas administrativos y trámite documentario) ",null,null,null,null,null,null,null,null,null,null,null,null,null,null,"¿Por qué?"]
[null,null,null,null,null,"Gestión y seguimiento del uso de los recursos educativos. ",null,null,null,null,null,null,null,null,null,null,null,null,null,null,"Marque con una “X”, una o más opciones"]
[null,null,null,null,null,"Limpieza y mantenimiento ",null,null,null,null,null,null,null,null,null,null,null,null,null,null,null," Baja demanda educativa o pocos estudiantes"]
[null,null,null,null,null,"Prevención y atención de situaciones de riesgo",null,null,null,null,null,null,null,null,null,null,null,null,null,null,null," La IE que dirijo es multigrado"]
[null,null,null,null,null,"Vigilancia y guardianía",null,null,null,null,null,null,null,null,null,null,null,null,null,null,null," Bajo o escaso acceso a internet en la localidad"]
[null,null,null,null,null,null,null,null,null,null,null,null,null,null,null,null,null,null,null,null,null," En la localidad se habla otra lengua distinta al español"]
[null,null,"719. ¿QUÉ INFORMACIÓN LE GUSTARÍA ENCONTRAR EN EL PORTAL WEB PARA DIRECTIVO DE I.E. DEL MINEDU?",null,null,null,null,null,null,null,null,null,null,null,null,null,null,null,null,null,null," Otro motivo"]
[]
[null,null,null,null,"Marque con una “X”, una o más opciones",null,null,null,null,null,null,null,null,null,null,"726.  EN SU OPINIÓN, ¿CUÁL DE LAS SIGUIENTES ALTERNATIVAS CONSIDERA MÁS ÚTIL, SI SE "]
[null,null,null,null,null,null,null,null,null,null,null,null,null,null,null,"           IMPLEMENTA EL SISTEMA DE MATRÍCULA DIGITAL /1 EN SU JURISDICCIÓN?"]
[null,null,null,null,null,"Lecturas, infografías y materiales diversos sobre las funciones como directivo"]
[null,null,null,null,null,"Videos tutoriales sobre las labores como directivos",null,null,null,null,null,null,null,null,null,null,null,"Marque con una “X”, una opcion"]
[null,null,null,null,null,"Material diverso sobre habilidades blandas necesarias para el cargo",null,null,null,null,null,null,null,null,null,null,null,null,"Reducción carga administrativa"]
[null,null,null,null,null,"Buenas prácticas para la gestión directiva",null,null,null,null,null,null,null,null,null,null,null,null,"Mayor transparencia en los procesos de admisión de los estudiantes"]
[null,null,null,null,null,"Información sobre las normativas sobre la gestión escolar",null,null,null,null,null,null,null,null,null,null,null,null,"Mejoras en la difusión de vacantes"]
[null,null,null,null,null,"Otros",null,null,null,null,null,null,null,null,null,null,null,null,"Mejoras en la difusión de información sobre las características de su IE"]
[null,null,null,null,null,null,null,null,null,null,null,null,null,null,null,null,null,null,"No será útil"]
[null,null,"720. SEÑOR(A) DIRECTOR(A), DESDE QUE EMPEZASTE TU CARRERA COMO DOCENTE, ",null,null,null,null,null,null,null,null,null,null,null,null,null,null,null,null,null,"¿ Por qué ?"]
[null,null,null,"¿CUÁNTOS AÑOS DE EXPERIENCIA TIENES COMO?",null,null,null,null,null,null,null,null,null,null,null,null,null,null,null,null,"Marque con una “X”, una o más opciones"]
[null,null,null,null,null,null,null,null,null,null,null,null,null,null,null,null,null,null,null,null,null,"Baja demanda educativa o pocos estudiantes"]
[null,null,null,null,"Marque con una “X”, una opcion",null,null,null,null,null,null,null,null,null,null,null,null,null,null,null,null,"La IE que dirijo es multigrado"]
[null,null,null,null,null,null,null,null,null,null,null,null,null,null,null,null,null,null,null,null,null,"Bajo o escaso acceso a internet en la localidad"]
[null,null,null,null,null,"Directivo encargado    --          Cantidad de años:",null,null,null,null,null,null,null,null,null,null,null,null,null,null,null,"En la localidad se habla otra lengua distinta al español"]
[null,null,null,null,null,"Directivo designado    --          Cantidad de años:",null,null,null,null,null,null,null,null,null,null,null,null,null,null,null,"Otro motivo"]
[]
[null,null,"721. ¿CON QUÉ FRECUENCIA VISITA EL PORTAL WEB PARA DIRECTIVO DE IE DEL MINEDU",null,null,null,null,null,null,null,null,null,null,null,null,"727. SEÑOR(A) DIRECTOR(A), DURANTE EL 2022 Y A LA LLEGADA DEL CENSO 2023"]
[null,null,null," (https://directivos.minedu.gob.pe/)?",null,null,null,null,null,null,null,null,null,null,null,null,"¿ H A PARTICIPADO DE ALGUNA DE LAS SIGUIENTES ACCIONES FORMATIVAS?"]
[]
[null,null,null,null,"Marque con una “X”, una opcion",null,null,null,null,null,null,null,null,null,null,null,"Sí",null,null,"No",null,null,"Pase a la pregunta 729"]
[]
[null,null,null,null,null,"Frecuentemente",null,null,null,null,null,null,null,null,null,null,null,null,"Marque con una “X”, una o más opciones"]
[null,null,null,null,null,"Poca frecuencia",null,null,null,null,null,null,null,null,null,null,null,null,"Cursos en didáctica o pedagogía"]
[null,null,null,null,null,"Casi nunca",null,null,null,null,null,null,null,null,null,null,null,null,"Congresos o seminarios vinculados a su cargo y funciones",null,null,null,null," "]
[null,null,null,null,null,"No visito el portal web",null,null,null,null,"Pase a la pregunta 725"]
[null,null,null,null,null,null,null,null,null,null,null,null,null,null,null,"728. ¿QUÉ ASPECTOS DE SU FORMACIÓN EN LIDERAZGO PEDAGÓGICO REQUIERE FORTALECER"]
[null,null,"722. ¿CONSIDERAS QUE LA INFORMACIÓN QUE ENCUENTRAS EN EL PORTAL WEB DE DIRECTIVOS ES ÚTIL?\n",null,null,null,null,null,null,null,null,null,null,null,null,null,"PARA MEJORAR LA GESTIÓN ESCOLAR EN SU SERVICIO/NIVEL EDUCATIVO?"]
[null,null,null,null,null,null,null,null,null,null,null,null,null,null,null,null,null,"Marque con una “X”, hasta 3 opciones"]
[null,null,null,null,"Marque con una “X”, una opcion",null,null,null,null,null,null,null,null,null,null,null,null,null,"Habilidades en organización e interpretación de la planificación en la IE"]
[null,null,null,null,null,null,null,null,null,null,null,null,null,null,null,null,null,null,"Habilidades para resolución de problemas en la IE"]
[null,null,null,null,null,"Muy útil",null,null,null,null,null,null,null,null,null,null,null,null,"Habilidades para apoyar a los docentes"]
[null,null,null,null,null,"Útil",null,null,null,null,null,null,null,null,null,null,null,null,"Habilidades para el fortalecimiento docente"]
[null,null,null,null,null,"Poco útil",null,null,null,null,null,null,null,null,null,null,null,null,"Habilidades para establecer el orden"]
[null,null,null,null,null,"Nada útil",null,null,null,null,null,null,null,null,null,null,null,null,"Habilidades para influenciar"]
[null,null,null,null,null,"No visito el portal web",null,null,null,null,null,null,null,null,null,null,null,null,"Habilidades para prevenir el conflicto"]
[null,null,null,null,null,null,null,null,null,null,null,null,null,null,null,null,null,null,"Habilidades para monitorear la contribución de la IE con la política educativa"]
[null,null,null,null,null,null,null,null,null,null,null,null,null,null,null,null,null,null,"Otros"]
[]
[]
[null,null,"729. EN EL AÑO 2023, ¿ESTE SERVICIO/NIVEL EDUCATIVO HA REALIZADO O PARTICIPADO EN ",null,null,null,null,null,null,null,null,null,null,null,null,"733. ESTE SERVICIO/NIVEL EDUCATIVO ¿CUENTA CON ALGUNA EXPERIENCIA EXITOSA O BUENA"]
[null,null,"         ACCIONES DE SEGURIDAD Y DEFENSA NACIONAL?",null,null,null,null,null,null,null,null,null,null,null,null,"  PRÁCTICA DOCENTE Y/O GESTIÓN ESCOLAR ENMARCADAS EN ALGUNA DE LAS LÍNEAS ESTRATÉGICAS?"]
[]
[null,null,null,"Sí",null,null,null,null,"No",null,null,null,null,null,null,null,"Sí",null,null,"No"]
[]
[null,null,null,null,null,"Marque todas las opciones implementadas"]
[null,null,null,null,null,"Actividad",null,null,null,null,"Marcar con “X”",null,null,null,null,null,null,"Complete la tabla"]
[null,null,null,null,null,"Capacitaciones",null,null,null,null,null,null,null,null,null,null,"Seleccione “Sí” o “No” para cada línea estratégica e ingrese los años según corresponda"]
[null,null,null,null,null,"Utilizado una estrategía\ncomunicacional",null,null,null,null,null,null,null,null,null,null,"Línea estratégica",null,null,"Experiencia exitosa",null,null,"Buena práctica docente y/o Gestión escolar"]
[null,null,null,null,null,"Otros",null,null,null,null,null,null,null,null,null,null,null,null,null,"¿Cuenta con experiencia exitosa?","Año de la experiencia exitosa","Se socializó con otras entidades","¿Cuenta con buena práctica docente y Gestión escolar?","Año de la buena práctica docente y/o Gestión escolar","Se socializó con otras entidades"]
[]
[null,null,"730. EN EL AÑO 2023, ¿ESTE SERVICIO/NIVEL EDUCATIVO HA INCORPORADO ACCIONES DE GESTIÓN"]
[null,null," DEL RIESGO DE EMERGENCIAS Y DESASTRES EN SUS INSTRUMENTOS DE GESTIÓN VIGENTES?",null,null,null,null,null,null,null,null,null,null,null,null,null,null,null,null,"Si / No",null,"Si / No","Si / No",null,"Si / No"]
[null,null,null,null,null,null,null,null,null,null,null,null,null,null,null,"01","a. Gestión del Riesgo de Desastres"]
[null,null,null,"Sí",null,null,null,null,"No",null,null,null,null,null,null,"02","b. Adaptación al cambio climático"]
[null,null,null,null,null,null,null,null,null,null,null,null,null,null,null,"03","c. Seguridad y Defensa Nacional"]
[null,null,null,null,null,"Precise los documentos de gestión",null,null,null,null,null,null,null,null,null,"04","d. Otro"]
[null,null,null,null,null,null,null,null,null,null,null,null,null,null,null,"03",null,null,null,{"$f":"COUNTIF(T198:T201,\"SI\")+COUNTIF(T198:T201,\"NO\")","v":0},null,null,{"$f":"COUNTIF(W198:W201,\"SI\")+COUNTIF(W198:W201,\"NO\")","v":0},"",""]
[null,null,null,null,null,"Documentos de Gestión",null,null,null,null,"Marcar\ncon “X”",null,null,null,null,"734. EN EL AÑO 2023 ¿CUÁLES SON LOS EQUIPOS Y SERVICIOS INFORMÁTICOS QUE CUENTA ESTE SERVICIO/NIVEL "]
[null,null,null,null,null,null,null,null,null,null,null,null,null,null,null,"         EDUCATIVO PARA REPORTAR LAS EMERGENCIAS, DESASTRES Y/O PELIGRO INMINENTE?"]
[null,null,null,null,null,"Proyecto Educativo Institucional (PEI)",null,null,null,null,null,null,null,null,null,null,"Marque con una “X”, una o más opciones"]
[null,null,null,null,null,"Plan Anual de Trabajo (PAT)",null,null,null,null,null,null,null,null,null,null,"Equipos ",null,null,null,null,"Marcar con X"]
[null,null,null,null,null,"Proyecto Currícular Institucional (PCI)",null,null,null,null,null,null,null,null,null,null,"PC"]
[null,null,null,null,null,"Reglamento Interno (RI)",null,null,null,null,null,null,null,null,null,null,"Tablet"]
[null,null,null,null,null,"Otros",null,null,null,null,null,null,null,null,null,null,"Equipos Móviles"]
[null,null,null,null,null,null,null,null,null,null,null,null,null,null,null,null,"Internet"]
[null,null,null,null,null,null,null,null,null,null,null,null,null,null,null,null,"No se cuenta"]
[null,null,"731. EN EL AÑO 2022, ¿ESTE SERVICIO/NIVEL EDUCATIVO CUENTA CON SU PLAN",null,null,null,null,null,null,null,null,null,null,null,null,null,"Otros"]
[null,null,null,"DE GESTIÓN DEL RIESGO DE DESASTRES VIGENTE?"]
[null,null,null,null,null,null,null,null,null,null,null,null,null,null,null,"735. EN EL AÑO 2023, ANTE LA DETECCIÓN DEL PELIGRO INMINENTE, EMERGENCIA O DESASTRE ¿ESTE SERVICIO/NIVEL"]
[null,null,null,"Sí",null,null,null,null,"No",null,null,null,null,null,null,"EDUCATIVO REALIZA LA ALERTA AL ESPACIO DE MONITOREO Y SEGUIMIENTO SECTORIAL (EMSS) DE LA UGEL?"]
[]
[null,null,null,null,null,null,null,null,null,null,null,null,null,null,null,null,"Sí",null,null,"No"]
[null,null,null,null,null,null,"Documento de aprobación N°"]
[]
[null,null,null,null,null,null,"Fecha de aprobación",null,null,"Día","Mes","Año",null,null,null,null,null,null,null,null,"¿Por qué? "]
[null,null,null,null,null,null,null,null,null,null,null,null,null,null,null,null,null,null,null,"Marque con una “X”, una o más opciones"]
[null,null,null,null,null,null,null,null,null,null,null,null,null,null,null,null,null,null,null,"ITEMS",null,null,null,null,"Marcar con X"]
[null,null,null,null,null,null,null,null,null,null,null,null,null,null,null,null,null,null,null,"No se tuvo emergencia en territorio"]
[null,null,"732. EN EL AÑO 2022 ¿LOS MIEMBROS DE ESTE SERVICIO/NIVEL EDUCATIVO HAN SIDO",null,null,null,null,null,null,null,null,null,null,null,null,null,null,null,null,"No se cuenta con los instrum. y herramientas"]
[null,null,"     CAPACITADOS EN MATERIA DE GESTIÓN INTEGRAL DEL RIESGO DE EMERGENCIAS Y DESASTRES?",null,null,null,null,null,null,null,null,null,null,null,null,null,null,null,null,"No se conoce el procedimiento"]
[null,null,null,null,null,null,null,null,null,null,null,null,null,null,null,null,null,null,null,"Otro"]
[null,null,null,"Sí",null,null,null,null,"No"]
[null,null,null,null,null,null,null,null,null,null,null,null,null,null,null,"736. EN EL AÑO 2023, ¿ESTE SERVICIO/NIVEL EDUCATIVO PARTICIPÓ EN LOS SIMULACROS CONVOCADOS"]
[null,null,null,null,null,null,null,null,null,null,null,null,null,null,null,"         POR MINEDU Y/O INDECI?"]
[null,null,null,null,null,null,"Tipo de\nCapacitación",null,null,"Cantidad de personas capacitadas"]
[null,null,null,null,null,null,null,null,null,"N° de Direc tores","N° de Docentes","N° de Adminis- trativos","N° Capacitados que pertenecen a la CEA y GRD",null,null,null,"Sí",null,null,"No"]
[]
[null,null,null,null,null,null,null,null,null,null,null,null,null,null,null,null,null,null,null,"Marque con una “X”, una o más opciones"]
[null,null,null,null,null,"01","Curso",null,null,null,null,null,null,{"$f":"SUM(J234:M234)","v":0}]
[null,null,null,null,null,"02","Taller",null,null,null,null,null,null,{"$f":"SUM(J235:M235)","v":0},null,null,null,null,null,"ITEMS",null,null,"Marcar con X"]
[null,null,null,null,null,"03","Charla",null,null,null,null,null,null,0,null,null,null,null,null,"Primer Simulacro"]
[null,null,null,null,null,"04","Seminario",null,null,null,null,null,null,0,null,null,null,null,null,"Segundo Simulacro"]
[null,null,null,null,null,"05","Webinar",null,null,null,null,null,null,0,null,null,null,null,null,"Tercer Simulacro"]
[null,null,null,null,null,"06","Otro",null,null,null,null,null,null,0,null,null,null,null,null,"Cuarto Simulacro"]
[null,null,null,null,null,null,null,null,null,null,null,null,{"$f":"SUM(J234:M239)","v":0}]
[]
[null,null,"737. ¿ESTE SERVICIO/NIVEL EDUCATIVO, ¿HA RECIBIDO POR PARTE DE LA UGEL ACCIONES DE COMUNICACIÓN",null,null,null,null,null,null,null,null,null,null,null,null,"742. EN ESTE SERVICIO/NIVEL EDUCATIVO, ¿EL RESPONSABLE DE GESTIÓN DE RIESGO"]
[null,null,"         PRESENCIAL O VIRTUAL PARA SENSIBILIZAR A LA COMUNIDAD EDUCATIVA EN TEMAS DE GESTIÓN DEL",null,null,null,null,null,null,null,null,null,null,null,null,null,"DE DESASTRES HA SIDO CAPACITADO PARA EL DESARROLLO DE SUS ROLES?"]
[null,null,"         RIESGO DE DESASTRES, CAMBIO CLIMÁTICO Y/O SEGURIDAD Y DEFENSA NACIONAL ?"]
[null,null,null,null,null,null,null,null,null,null,null,null,null,null,null,null,"Sí",null,null,"No"]
[null,null,null,"Sí",null,null,null,null,"No"]
[]
[null,null,null,null,null,null,"Indique,  ¿Qué acciones implementó o recibió? ",null,null,null,null,null,null,null,null,null,null,null,"Entidad que capacitó:",null,null,"DRE/GRE"]
[null,null,null,null,null,null,"Marque con una “X”, según corresponda",null,null,null,null,null,null,null,null,null,null,null,null,null,null,"UGEL"]
[]
[null,null,null,null,null,null,"ITEMS",null,null,null,null,null,"Marcar con X"]
[null,null,null,null,null,null,"Afiches y/o díptico y/o tríptico",null,null,null,null,null,null,null,null,"743. DURANTE EL ÚLTIMO MES, EN PROMEDIO, ¿CUÁNTAS HORAS SEMANALES,"]
[null,null,null,null,null,null,"Carteles o murales",null,null,null,null,null,null,null,null,null,"ADICIONALES A SU JORNADA LABORAL, USTED CONSIDERA QUE HA DESTINADO"]
[null,null,null,null,null,null,"Ferias estudiantiles",null,null,null,null,null,null,null,null,null,"PARA REALIZAR ACTIVIDADES RELACIONADAS A SU TRABAJO COMO DIRECTOR?"]
[null,null,null,null,null,null,"Radionovela y/o audios y radioteatro y videos animados"]
[null,null,null,null,null,null,"Otros",null,null,null,null,null,null,null,null,null,null,"Horas Semanales adicionales"]
[]
[]
[null,null,"738. ¿ESTE SERVICIO/NIVEL EDUCATIVO, ¿CUENTA CON EL APOYO DE ALIADOS ESTRATÉGICOS DE SU LOCALIDAD",null,null,null,null,null,null,null,null,null,null,null,null,"744. ¿CUÁLES SON LOS INSTRUMENTOS DE GESTIÓN ESCOLAR QUE SE HAN IMPLEMENTADO"]
[null,null,null,"PARA ATENDER ALGUNO DE LOS SIGUIENTES TEMAS?",null,null,null,null,null,null,null,null,null,null,null,null,"EN ESTE SERVICIO/NIVEL EDUCATIVO?"]
[]
[null,null,null,"Seleccione “Si” o “No” para cada caso y detalle al principal aliado estratégico según corresponda",null,null,null,null,null,null,null,null,null,null,null,null,null,null,"Documentos de Gestión",null,null,null,null,"Marcar con X"]
[null,null,null,null,null,null,null,null,null,null,null,null,null,null,null,null,null,null,"Proyecto Educativo Institucional (PEI)"]
[null,null,null,"Temas por atender",null,null,null,null,null,null,"¿Cuenta con el apoyo de aliados\nestratégicos de su localidad?",null,null,null,null,null,null,null,"Proyecto Currícular Institucional (PCI)"]
[null,null,null,null,null,null,null,null,null,null,null,null,null,null,null,null,null,null,"Reglamento Interno (RI)"]
[null,null,null,null,null,null,null,null,null,null,"Si / No","Mencione al principal aliado en cada caso",null,null,null,null,null,null,"Plan Anual de Trabajo (PAT)"]
[null,null,null,null,null,null,null,null,null,null,null,null,null,null,null,null,null,null,"Documento de Gestión (DG)"]
[null,null,null,"Gestión integral del riesgo de emergencias y desastres",null,null,null,null,null,null,null,null,null,null,null,null,null,null,"Otros - especifique"]
[null,null,null,"Adaptación al cambio climático"]
[null,null,null,"Seguridad y defensa nacional"]
[null,null,null,null,null,null,null,null,null,null,{"$f":"COUNTIF(K268:K270,\"SI\")+COUNTIF(K268:K270,\"NO\")","v":0},null,null,null,null,"745. POSTERIOR AL MONITOREO, ¿QUÉ TIPO DE RETROALIMENTACIÓN BRINDA A CADA DOCENTE?"]
[null,null,"739. ¿QUÉ COMITÉS DE GESTIÓN ESCOLAR HA IMPLEMENTADO EN ESTE SERVICIO/NIVEL EDUCATIVO?",null,null,null,null,null,null,null,null,null,null,null,null,null,null,"Marque con una \"X\", una opción"]
[null,null,null,null,null,null,null,null,null,null,null,null,null,null,null,null,null,null,"Descriptiva"]
[null,null,null,null,"I. Comité de Gestión de Condiciones Operativas",null,null,null,null,null,null,null,null,null,null,null,null,null,"Elemental"]
[null,null,null,null,"II. Comité de Gestión Pedagógica",null,null,null,null,null,null,null,null,null,null,null,null,null,"Reflexiva o por descubrimiento"]
[null,null,null,null,"III. Comité de Gestión del Bienestar",null,null,null,null,null,null,null,null,null,null,null,null,null,"No brinda retroalimentación por falta de tiempo"]
[]
[null,null,null,null,null,null,"Solo I"]
[null,null,null,null,null,null,"Solo II",null,null,null,null,null,null,null,null,"746. ¿CONOCE LOS PERFILES DE CARGOS DE DIRECTOR Y SUBDIRECTOR DE IE PUBLICADOS"]
[null,null,null,null,null,null,"Solo III",null,null,null,null,null,null,null,null,null,"EN EL AÑO 2021 EN EL CLASIFICADOR DE CARGOS (RVM N° 223-2021-MINEDU)?"]
[null,null,null,null,null,null,"I y II"]
[null,null,null,null,null,null,"I y III",null,null,null,null,null,null,null,null,null,"Sí",null,null,"No"]
[null,null,null,null,null,null,"II y III"]
[null,null,null,null,null,null,"Todos"]
[null,null,null,null,null,null,"Ninguno",null,null,null,null,null,null,null,null,null,"¿Considera que los perfiles de cargo de director y subdirector de IE brindan claridad"]
[null,null,null,null,null,null,null,null,null,null,null,null,null,null,null,null," para el desarrollo de las funciones del equipo directivo?"]
[null,null,"740. EL SERVICIO/NIVEL EDUCATIVO, ¿CUENTA CON LA BRIGADA DE EDUCACIÓN"]
[null,null,null,"AMBIENTAL Y GESTIÓN DE RIESGO DE DESASTRES?",null,null,null,null,null,null,null,null,null,null,null,null,"Sí",null,null,"No"]
[]
[null,null,null,"Sí",null,null,null,null,"No",null,null,"Pase a la pregunta 742"]
[null,null,null,null,null,null,null,null,null,null,null,null,null,null,null,"747. ESTE SERVICIO/NIVEL EDUCATIVO QUE DIRIGE, ¿DURANTE EL PRESENTE AÑO HA RECIBIDO O"]
[null,null,null,null,null,null,null,null,null,null,null,null,null,null,null,null,"VIENE RECIBIENDO APOYO DE ALGUNA EMPRESA PRIVADA O DE ALGUNA ONG EN TEMAS DE MEJORA"]
[null,null,null,null,null,"Documento que lo aprueba",null,null,null,null,"Resolución",null,null,null,null,null,"DE INFRAESTRUCTURA, MOBILIARIO Y EQUIPAMIENTO O CAPACITACIÓN DE PERSONAL DOCENTE?"]
[null,null,null,null,null,null,null,null,null,null,"Otro"]
[null,null,null,null,null,null,null,null,null,null,null,null,null,null,null,null,"Sí",null,null,"No",null,null,"Pase a la pregunta 801"]
[null,null,null,null,null,"Número del Documento"]
[]
[null,null,null,null,null,null,null,null,null,"Desde","DD/MM/AAAA","Hasta","DD/MM/AAAA",null,null,"748. INDIQUE EL TIPO DE APOYO QUE HA RECIBIDO DE LA EMPRESA PRIVADA U"]
[null,null,null,null,null,"Vigencia de la brigada",null,null,null,null,null,null,null,null,null,null,"ONG MENCIONADA EN SU RESPUESTA ANTERIOR"]
[]
[null,null,"741. EN ESTE SERVICIO/NIVEL EDUCATIVO, ¿LOS INTEGRANTES DE LA BRIGADA DE EDUCACIÓN AMBIENTAL Y",null,null,null,null,null,null,null,null,null,null,null,null,null,null,"Marque con una “X” una o más opciones"]
[null,null,null,"GESTIÓN DE RIESGO DE DESASTRES HAN SIDO CAPACITADOS ANTE SITUACIONES DE EMERGENCIA O DESASTRE?"]
[null,null,null,null,null,null,null,null,null,null,null,null,null,null,null,null,null,null,"Infraestructura"]
[null,null,null,"Sí",null,null,null,null,"No",null,null,null,null,null,null,null,null,null,"Mobiliario"]
[null,null,null,null,null,null,null,null,null,null,null,null,null,null,null,null,null,null,"Equipamiento"]
[null,null,null,null,null,"N° de integrantes que conforma la brigada",null,null,null,null,null,null,null,null,null,null,null,null,"Capacitación de personal docente"]
[null,null,null,null,null,"N° de integrantes capacitados de dicha brigada:",null,null,null,null,null,null,null,null,null,null,null,null,"Otro"]
[null,null,null,null,null,"Entidad que capacitó:"]
[null,null,null,null,null,null,null,null,null,null,"DRE/GRE"]
[null,null,null,null,null,null,null,null,null,null,"UGEL"]

{"sheet":"C800","index":9,"n_rows":124,"n_cols":17,"rows_kept":124,"cut":false,"hidden":false,"merged":[[75,10,75,15],[75,16,75,18],[76,2,76,6],[76,7,76,9],[76,10,76,15],[76,16,76,18],[75,2,75,6],[75,7,75,9],[56,14,56,17],[58,4,58,7],[64,14,64,17],[74,7,74,9],[74,10,74,15],[74,16,74,18],[69,2,69,18],[74,3,74,5],[17,14,17,17],[27,4,27,7],[37,4,37,7],[49,16,49,18],[47,4,47,7]]}
[]
[null,null,null,null,null,"CENSO EDUCATIVO 2023"]
[null,null,null,null,null,"MATRÍCULA, DOCENTES Y MATERIALES EDUCATIVOS"]
[]
[]
[]
[null,"800. APRENDO EN CASA - MULTICANALES"]
[]
[null,"801. ¿EL DOCENTE HACE USO DE LOS RECURSOS QUE SE ENCUENTRAN ALOJADOS",null,null,null,null,null,null,null,null,"807. SEGÚN LOS DOCENTES Y/O PEC DE SU SERVICIO EDUCATIVO ¿QUÉ TIPO DE"]
[null,null,"EN LAS PLATAFORMAS DE MINEDU? (Perueduca - Aprendo en Casa)",null,null,null,null,null,null,null,null,"MATERIALES CONSIDERAN NECESARIOS INCLUIR EN LA PLATAFORMA DE"]
[null,null,null,null,null,null,null,null,null,null,null,"APRENDO EN CASA 2023?"]
[null,null,null," Sí  ",null,"No  ",null,null,null,null,""]
[null,null,null,null,null,null,null,null,null,null,"","Marque con una \"X\", una o más opciones"]
[null,"802. EN SU SERVICIO EDUCATIVO, ¿HAN USADO LOS RECURSOS Y MATERIALES",null,null,null,null,null,null,null,null,"",null,null,"Libros digitales"]
[null,null,"EDUCATIVOS DE LA PLATAFORMA APRENDO EN CASA 2023?",null,null,null,null,null,null,null,null,null,null,"Audio cuentos"]
[null,null,null,null,null,null,null,null,"Pase a la",null,null,null,null,"Juegos educativos"]
[null,null,null," Sí  ",null,"No  ",null,null,"pregunta 810",null,null,null,null,"Interactivos"]
[null,null,null,null,null,null,null,null,null,null,null,null,null,"Otro"]
[null,"803. ¿CUÁL O CUÁLES SON LOS ACTORES DE SU SERVICIO EDUCATIVO QUE HAN"]
[null,null,"USADO LOS RECURSOS Y MATERIALES EDUCATIVOS DE LA PLATAFORMA",null,null,null,null,null,null,null,"808. ¿EN QUÉ MOMENTO DE LA JORNADA PEDAGÓGICA SUS DOCENTES O PROMOTORAS"]
[null,null,"APRENDO EN CASA 2023?",null,null,null,null,null,null,null,null,"PREFIEREN UTILIZAR LOS RECURSOS Y MATERIALES EDUCATIVOS DIGITALES DE"]
[null,null,null,null,null,null,null,null,null,null,null,"LA PLATAFORMA WEB APRENDO EN CASA?"]
[null,null,"Marque con una \"X\", una o más opciones",null,null,null,null,null,null,null,null,"Marque con una \"X\", una o más opciones"]
[null,null,null,"Docentes",null,null,null,null,null,null,null,null,null,"Actividades permanentes"]
[null,null,null,"Familias",null,null,null,null,null,null,null,null,null,"Juego en sectores"]
[null,null,null,"Estudiantes",null,null,null,null,null,null,null,null,null,"Actividad de un proyecto o unidad didác􀆟ca"]
[null,null,null,"Directivos",null,null,null,null,null,null,null,null,null,"Talleres"]
[null,null,null,"Otro",""]
[null,null,"",null,null,null,null,null,null,null,"809. ¿QUÉ TAN SATISFECHOS SE ENCUENTRAN LOS DOCENTES Y/O PROMOTORAS"]
[null,"804. LOS DOCENTES Y/O PEC DE SU SERVICIO EDUCATIVO HAN USADO LOS",null,null,null,null,null,null,null,null,null,"DE SU SERVICIO EDUCATIVO CON RESPECTO A LOS MATERIALES Y RECURSOS"]
[null,null,"MATERIALES Y RECURSOS DE LA PLATAFORMA APRENDO EN CASA 2023 PARA:",null,null,null,null,null,null,null,null,"PROPORCIONADOS EN LA PLATAFORMA APRENDO EN CASA 2023?"]
[]
[null,null,"Marque con una \"X\", una o más opciones",null,null,null,null,null,null,null,null,"Marque con una \"X\", una opción"]
[null,null,null,"Reforzar los aprendizajes de los estudiantes",null,null,null,null,null,null,null,null,null,"Satisfecho"]
[null,null,null,"Complementar los aprendizajes de sus estudiantes",null,null,null,null,null,null,null,null,null,"Poco satisfecho"]
[null,null,null,"Generar el interés de sus estudiantes",null,null,null,null,null,null,null,null,null,"Insatisfecho"]
[null,null,null,"Reforzar mensajes a las familias",null,null,null,null,null,null,null,null,null,"No aplica"]
[null,null,null,"Otro"]
[null,null,null,null,null,null,null,null,null,null,"810. ¿LOS ESTUDIANTES HACEN USO DE LAS TABLETAS?"]
[null,"805. LOS ESTUDIANTES HAN USADO LOS RECURSOS Y MATERIALES EDUCATIVOS"]
[null,null,"DE LA PLATAFORMA APRENDO EN CASA 2023 PARA:",null,null,null,null,null,null,null,null," Sí  ",null,"No  ",null,null,"Complete datos del director"]
[]
[null,null,"Marque con una \"X\", una o más opciones"]
[null,null,null,null,null,null,null,null,null,null,null,null,null,null,"¿Por qué no hacen uso de las tabletas?"]
[null,null,null,"Fortalecer sus aprendizajes",null,null,null,null,null,null,null,null,null,null,"Marque con una \"X\", una o más opciones"]
[null,null,null,"Complementar sus aprendizajes"]
[null,null,null,"Resolver dudas",null,null,null,null,null,null,null,null,null,null,null,"Por miedo/temor a dañarlas"]
[null,null,null,"Otro",null,null,null,null,null,null,null,null,null,null,null,"Porque no saben cómo usarla"]
[null,null,null,null,null,null,null,null,null,null,null,null,null,null,null,"Porque no funcionan"]
[null,"806. ¿CUÁL ES EL FORMATO DE LOS RECURSOS Y MATERIALES EDUCATIVOS DE LA",null,null,null,null,null,null,null,null,null,null,null,null,null,"Otros"]
[null,null,"PLATAFORMA APRENDO EN CASA 2023 PREFERIDO POR LOS ACTORES DE SU"]
[null,null,"SERVICIO EDUCATIVO?",null,null,null,null,null,null,null,"811. SUS ESTUDIANTES, ¿QUÉ ACCIONES REALIZAN CON AYUDA DE LAS TABLETAS?"]
[null,null,null,null,null,null,null,null,null,null,null,"Marque con una \"X\", una o más opciones"]
[null,null,"Marque con una \"X\", una opción",null,null,null,null,"1: Siempre",null,null,null,null,null,"Buscar información"]
[null,null,null,"PDF",null,null,null,"2: Casi Siempre",null,null,null,null,null,"Elaborar sus productos"]
[null,null,null,"Interactivo",null,null,null,"3: A Veces",null,null,null,null,null,"Organizar sus actividades"]
[null,null,null,"Audio",null,null,null,"4: Casi Nunca",null,null,null,null,null,"Otros"]
[null,null,null,"Vídeo",null,null,null,"5: Nunca"]
[null,null,null,"Otro",null,null,null,null,null,null,"812. ¿QUÉ APLICACIONES O UTILITARIOS DE LAS TABLET SON LOS MÁS INTEGRADOS/"]
[null,null,null,null,null,null,null,null,null,null,null,"USADOS POR LOS DOCENTES EN EL PROCESO DE ENSEÑANZA Y APRENDIZAJE?"]
[null,null,null,null,null,null,null,null,null,null,null,"Marque con una \"X\", una o más opciones"]
[null,null,null,null,null,null,null,null,null,null,null,null,null,"Aplicaciones para crear objetos virtuales"]
[null,null,null,null,null,null,null,null,null,null,null,null,null,"Aplicaciones que brindan información"]
[null,null,null,null,null,null,null,null,null,null,null,null,null,"Utilitarios, como lector y editor PDF, AnyDesk, etc."]
[null,null,null,null,null,null,null,null,null,null,null,null,null,"Otros"]
[]
[]
[null,"ANOTACIONES COMPLEMENTARIAS QUE CONSIDERE NECESARIO AGREGAR (máximo 200 caracteres)"]
[]
[]
[]
[]
[null,"DATOS DEL DIRECTOR(A) Y/O RESPONSABLE (S) DEL LLENADO DE LA CÉDULA"]
[]
[null,null,null,"NOMBRES Y APELLIDOS",null,null,null,"CARGO",null,null,"CORREO ELECTRÓNICO",null,null,null,null,null,"TELÉFONO"]
[]
[]
[]
[]
[]
[]
[]
[]
[]
[]
["DIRECTOR(A)"]
["SUB DIRECTOR(A)"]
["DOCENTE"]
["COORDINADOR(A)"]
["ASESOR"]
["ADMINISTRATIVO"]
["ASISTENTE"]
["AUXILIAR"]
["SECRETARIA(O)"]
["ESTADÍSTICO"]
["ESPECIALISTA"]
["BIBLIOTECARIO"]
["CARE"]
["COMANDANTE PNP"]
["CONTADOR"]
["DAIP"]
["DIGITADOR(A)"]
["GERENTE"]
["JEFE ACADÉMICO"]
["JEFE ADMINISTRATIVO"]
["JEFE DE AREA"]
["JEFE DE LABORATORIO"]
["JEFE DE PERSONAL"]
["JEFE DE SEDE"]
["JEFE UNIDAD"]
["OFICINISTA"]
["OPERADOR DE SISTEMAS"]
["PERSONAL DE SERVICIO"]
["PROGRAMADOR"]
["PROMOTOR(A)"]
["PSICOLOGO"]
["REGISTRADOR(A)"]
["REPRESENTANTE LEGAL"]
["SOPORTE TECNOLOGICO"]
["TÉCNICO ADMINISTRATIVO"]
["TESORERO(A)"]
["TRABAJADOR SOCIAL"]
["TUTOR"]
["OTROS"]

{"sheet":"Enviar","index":10,"n_rows":9,"n_cols":4,"rows_kept":9,"cut":false,"hidden":false,"merged":[[0,1,0,4],[1,1,1,4]]}
[null,"CENSO EDUCATIVO 2023"]
[null,"MATRÍCULA, DOCENTES Y MATERIALES EDUCATIVOS"]
[]
[]
[null,null,"Paso 1:","Realice el ENVÍO con su clave EOL."]
[]
[null,null,"Paso 2:","Una vez realizado el ENVÍO,  Revise su constancia de envio."]
[]
[null,null,"  ADVERTENCIA","ASEGÚRESE DE REGISTRAR TODA LA INFORMACIÓN DEL NIVEL INFORMANTE"]